{"text_format":"1","workbook":"xlsx","n_sheets":13,"sheets":["F-22 CATAL (2)","F-22 CATAL (4)","F-22 CATAL (3)","b)Estandar (E)","F-22 CATAL","OPUS","Hoja1","Hoja2","Hoja3","Hoja4","datos","Hoja5","Hoja6"],"not_rendered":{"charts":0,"images":1,"macros":1,"external_links":1,"defined_names":190,"comments":0,"pivot_tables":0},"unopened":[],"bounds":{"document_bytes":16777216,"sheet_cells":100000,"rows_first":2000,"rows_last":500,"rows_between":2000,"halvings":0,"cell_chars":16384,"cell_head_chars":4096},"cells_cut":0,"cells_raw":0,"read":"whole","date_system":"1900"}

{"sheet":"F-22 CATAL (2)","index":0,"n_rows":76,"n_cols":11,"rows_kept":76,"cut":false,"hidden":true,"merged":[[73,3,73,7],[75,0,75,2],[75,3,75,5],[75,6,75,7],[76,3,76,7],[72,3,72,5],[72,6,72,7],[61,3,61,7],[63,0,63,2],[63,3,63,7],[64,6,64,7],[65,6,65,7],[66,6,66,7],[67,6,67,7],[68,6,68,7],[69,6,69,7],[70,6,70,7],[71,6,71,7],[60,3,60,5],[60,6,60,7],[50,3,50,5],[50,6,50,7],[51,3,51,7],[55,6,55,7],[56,6,56,7],[57,6,57,7],[58,6,58,7],[59,6,59,7],[53,0,53,2],[53,3,53,7],[54,6,54,7],[44,6,44,7],[45,6,45,7],[46,6,46,7],[47,6,47,7],[48,6,48,7],[49,6,49,7],[43,0,43,2],[43,3,43,7],[32,3,32,7],[34,0,34,2],[34,3,34,7],[35,6,35,7],[36,6,36,7],[37,6,37,7],[38,6,38,7],[39,6,39,7],[40,3,40,5],[40,6,40,7],[41,3,41,7],[28,0,28,2],[28,3,28,7],[29,6,29,7],[30,6,30,7],[31,3,31,5],[31,6,31,7],[26,3,26,7],[16,6,16,7],[17,6,17,7],[18,3,18,5],[18,6,18,7],[22,6,22,7],[23,6,23,7],[24,6,24,7],[25,3,25,5],[25,6,25,7],[21,0,21,2],[21,3,21,7],[10,6,10,7],[12,0,12,2],[12,3,12,7],[13,6,13,7],[14,6,14,7],[15,6,15,7],[9,0,9,2],[9,3,9,7],[0,6,0,7],[2,2,3,7],[5,2,7,5],[5,6,7,7],[6,0,7,1]]}
[null,null,null,null,null,null,"FORMATO N0. 22"]
[]
[null,"COMISION DE VIVIENDA ","CATÁLOGO DE CONCEPTOS, CANTIDADES DE OBRA, PRECIOS UNITARIOS, IMPORTES PARCIALES Y TOTALES DE LA PROPUESTA"]
[null,"DEL ESTADO DE SONORA"]
[null,null,"FECHA DE PRESENTACIÓN DE LA PROPUESTA: "]
["LICITACIÓN No.:"]
["CONSTRUCCIÓN DE  1 (UNA) VIVIENDA DE 40.01 M2, A BASE DE LOSA DE CIMENTACIÓN, MUROS DE BLOCK, TECHO DE VIGUETA Y BOVEDILLA, INSTALACIONES ELÉCTRICAS, HIDRÁULICAS Y SANITARIAS. EN EL MUNICIPIO DE __________ SONORA."]
[]
[]
[" ",null,null,"CANTIDADES DE OBRA, PRECIOS UNITARIOS E IMPORTES"]
["CLAVE","DESCRIPCIÓN","UNIDAD","CANTIDAD","P. UNIT. CON NUMERO","PRECIO UNIT. CON LETRA","IMPORTE",null,1,35]
[]
["LOSA DE CIMENTACIÓN",null,null,"PESOS 00/100 M.N.**"]
["PC-01","      Limpia, trazo y nivelación.","M2",{"$f":"+K14","v":40.01},{"$f":"+#REF!","v":{"$error":"#REF!"}},null,{"$f":"D14*E14","v":{"$error":"#REF!"}},null,40.01,44.56,{"$f":"+I14*$I$11","v":40.01}]
["PC-02","      Excavación a mano en terreno investigado en obra, cualquier profundidad, incluye afine de taludes y acarreo fuera de la obra de material no utilizable.","M3",{"$f":"+K15","v":0.88},{"$f":"+#REF!","v":{"$error":"#REF!"}},null,{"$error":"#REF!"},null,0.88,9.8800000000000008,{"$f":"+I15*$I$11","v":0.88}]
["PC-05","      Losa de Cimentación de 9 cm de espesor, a base de concreto F'c=200  kg/cm2; t.m.a. 3/4\" hecho en obra; reforzado con  malla electrosoldada 6x6-10/10, plantilla de 5 cm de espesor a base de concreto F'c=100 kg/cm2 t.m.a. 3/4\", dentellón perimetral e intermedio a base de armex de 15x20 cm; anclaje a base de  bastones con varilla 3/8\"  @ 30 con 40 cm de largo donde se indique en los planos de proyecto,  acabado pulido, incluye: fumigacion antitermitas con fumigante aditivo adherente termidor o similar, curado, vibrado, colado y todo lo necesario para su correcta ejecución.","M2",40.01,{"$f":"+#REF!","v":{"$error":"#REF!"}},null,{"$error":"#REF!"},null,40.01,8.91,40.01]
["PC-06","      Impermeabilización a base de producto epóxico color negro aplicado sobre los 12 cm del desplante y 20 cm del espesor de la losa y dentellón perimetral  en todo el perímetro, incluye: materiales, mano de obra, herramienta y equipo necesarios para su correcta ejecución.","Ml",23.12,{"$f":"+#REF!","v":{"$error":"#REF!"}},null,{"$error":"#REF!"},null,23.12,8.91,23.12]
["PC-07","      Afine, nivelacion y compactacion de terreno natural para desplante de losa de cimentacio, incluye todo lo necesario para su correcta ejecucion.","M2",40.01,{"$f":"+#REF!","v":{"$error":"#REF!"}},null,{"$error":"#REF!"},null,40.01,44.56,40.01]
[null,null,null,"LOSA DE CIMENTACIÓN",null,null,{"$f":"+SUM(G14:H18)","v":{"$error":"#REF!"}}]
[]
[]
["MUROS"]
["MC-01","      Construcción de muro de block de 12x20x40 cm junteado con mortero cemento arena proporción 1:4, incluye; Muro de enrase, plomeado, relleno de huecos en contorno de ventanas a base de concreto F´c= 150 kg/cm2 hecho en obra t.m.a. 3/4\", materiales, mano de obra, herramienta, equipo, deberá quedar aparente por ambas caras.","M2",{"$f":"+K23","v":74.010000000000005},{"$f":"+#REF!","v":{"$error":"#REF!"}},null,{"$f":"D23*E23","v":{"$error":"#REF!"}},null,74.010000000000005,79.680000000000007,{"$f":"+I23*$I$11","v":74.010000000000005}]
["MC-02","      Castillo de concreto F´c=150 kg/cm2 hecho en obra t.m.a. 3/4\", 12x12 cm de sección, armado con armex 12x12-4; incluye: cimbra aparente y descimbra; fabricación, colado y  curado del concreto; materiales y mano de obra, deberá de quedar con acabado final aparente.","ML",43.46,{"$f":"+#REF!","v":{"$error":"#REF!"}},null,{"$error":"#REF!"},null,43.46,43.46,43.46]
["MC-03","      Cadena de cerramiento de concreto F´c=150 kg/cm2 hecho en obra t.m.a. 3/4\", 12x20 cm de sección, armada con armex 12X20-4; incluye: cimbra aparente y descimbra; fabricación, colado y  curado del concreto; materiales y mano de obra, deberá de quedar con acabado final aparente.","ML",37.85,{"$f":"+#REF!","v":{"$error":"#REF!"}},null,{"$error":"#REF!"},null,37.85,40.159999999999997,37.85]
[null,null,null,"MUROS",null,null,{"$f":"+SUM(G23:H25)","v":{"$error":"#REF!"}}]
[]
[]
["TECHO"]
["CU-01","      Losa aligerada de 15 cm de espesor, a base de bovedilla de poliestireno y vigueta de alma abierta con armadura de acero diseño 10-36 de la marca deacero o similar, con patín de 12 cm de ancho por 5 cm de peralte, colado de capa de compresión de 4 cm con concreto F'c=200 kg/cm2, t.m.a. 3/4\", reforzado malla electrosoldada de 6x6-10/10, el concepto incluye: afine de la superficie superior  con acabado semipulido para recibir impermeabilización, cimbra y descimbraaparente, volado de concreto armado de 0.19x0.10m, colado, vibrado, curado y todo lo necesario para su correcta ejecución.","M2",{"$f":"+K30","v":41.36},{"$f":"+#REF!","v":{"$error":"#REF!"}},null,{"$f":"D30*E30","v":{"$error":"#REF!"}},null,41.36,46.07,{"$f":"+I30*$I$11","v":41.36}]
["CU-02","      Impermeabilización de losa de azotea a base de impermeabilizante elastomerico marca termoteck o similar de 3 años de garantía,a razón de 1 m2/lt, y  tela de refuerzo sencillo, incluye limpieza y preparación de la superficie.","M2",41.36,{"$f":"+#REF!","v":{"$error":"#REF!"}},null,{"$error":"#REF!"},null,41.36,46.07,41.36]
[null,null,null,"TECHO",null,null,{"$f":"SUM(G30:H31)","v":{"$error":"#REF!"}}]
[]
[]
["ACABADOS"]
["AC-02","      Sardinel de 10x10 cm a  base de concreto hidráulico de F'c=150 kg/cm2 t.m.a. 3/4\". Incluye: Herramienta, mano de obra y todo lo necesario para su correcta ejecución.","Ml",{"$f":"+K36","v":1.92},{"$f":"+#REF!","v":{"$error":"#REF!"}},null,{"$f":"D36*E36","v":{"$error":"#REF!"}},null,1.92,null,{"$f":"+I36*$I$11","v":1.92}]
["AC-03","      Aplanado de yeso en plafones, de 1.5 cm de espesor promedio, a plomo y regla, acabado pulido, reforzada con malla pollera en toda el área incluye: perfilado de aristas y remate en columnas, trabes y muros.","M2",35.6,{"$f":"+#REF!","v":{"$error":"#REF!"}},null,{"$error":"#REF!"},null,35.6,null,35.6]
["AC-04","      Suministro y colocación de azulejo de 20x30cm de color blanco de la marca porcelanite o similar asentado con cemento crest o similar, boquilla de 2 mm a base de junta crest anti-hongo o similar.  Incluye: Herramienta, mano de obra y todo lo necesario para su correcta ejecución.","M2",3.8,{"$f":"+#REF!","v":{"$error":"#REF!"}},null,{"$error":"#REF!"},null,3.8,null,3.8]
["AC-05","      Suministro y colocación de piso antiderrapante de 20x20cm de color blanco de la marca porcelanite o similar asentado con cemento crest o similar, boquilla de 2 mm a base de junta crest anti-hongo o similar. Incluye: Herramienta, mano de obra y todo lo necesario para su correcta ejecución.","M2",3.94,{"$f":"+#REF!","v":{"$error":"#REF!"}},null,{"$error":"#REF!"},null,3.94,null,3.94]
["AC-09","      Colocación de placa de cerámica en medidas de 20x20 cm, con cemento crest, en muro de fachada. Incluye; Material, herramienta, mano de obra y todo lo necesario para su correcta ejecución.","Pza",1,{"$f":"+#REF!","v":{"$error":"#REF!"}},null,{"$error":"#REF!"},null,1,null,1]
[null,null,null,"ACABADOS",null,null,{"$f":"+SUM(G36:H40)","v":{"$error":"#REF!"}}]
[]
[]
["PUERTAS Y VENTANAS"]
["PV-01","      Suministro e instalación de puerta tipo multypanel 0.90x2.06m con marco metálico de 0.96x2.10m fabricado a base de perfil tubular M-225., chapa tipo bola con llave para exterior modelo MH52T3  marca fanal o similar acabado en latón brillante para exterior, dos bisagras de 3\", pintura esmalte anticorrosivo color blanco en el marco metálico, el concepto incluye perfilado del hueco previo a su colocación con mortero cemento-arena 1:4. Incluye: Herramienta, mano de obra y todo lo necesario para su correcta ejecución.","Pza",{"$f":"+K45","v":1},{"$f":"+#REF!","v":{"$error":"#REF!"}},null,{"$f":"D45*E45","v":{"$error":"#REF!"}},null,1,1,{"$f":"+I45*$I$11","v":1}]
["PV-02","      Suministro e instalación de puerta de tambor 0.80x2.06m con marco metálico de 0.86x2.10m fabricado a base de perfil tubular M-225., chapa tipo bola para interior  marca fanal o similar, dos bisagras de 3\", pintura esmalte anticorrosivo color blanco en el marco metálico, el concepto incluye perfilado del hueco previo a su colocación con mortero cemento-arena 1:4. Incluye: Herramienta, mano de obra y todo lo necesario para su correcta ejecución.","Pza",{"$f":"+K46","v":2},{"$f":"+#REF!","v":{"$error":"#REF!"}},null,{"$error":"#REF!"},null,2,2,2]
["PV-03","      Suministro e instalación de puerta de tambor 0.70x2.06m con marco metálico de 0.76x2.10m fabricado a base de perfil tubular M-225., chapa tipo bola para interior  marca fanal o similar, dos bisagras de 3\", pintura esmalte anticorrosivo color blanco en el marco metálico, el concepto incluye perfilado del hueco previo a su colocación con mortero cemento-arena 1:4. Incluye: Herramienta, mano de obra y todo lo necesario para su correcta ejecución.","Pza",1,{"$f":"+#REF!","v":{"$error":"#REF!"}},null,{"$error":"#REF!"},null,1,1,1]
["PV-04","      Suministro y colocación  de ventana corrediza de 0.83x1.05m a base de perfil de aluminio anodizado natural  de 1 1/2\" con cristal claro de 3mm con un fijo lateral y un corredizo, incluye perfilado del hueco, previo a su colocación a base de mortero cemento-arena proporción  1:4. Incluye: Herramienta, mano de obra y todo lo necesario para su correcta ejecución.","Pza",3,{"$f":"+#REF!","v":{"$error":"#REF!"}},null,{"$error":"#REF!"},null,3,3,3]
["PV-05","      Suministro y colocación  de ventana corrediza de 0.60x0.40m a base de perfil de aluminio anodizado natural  de 1 1/2\" con cristal claro de 3mm con un fijo lateral y un corredizo, incluye perfilado del hueco previo a su colocación a base de mortero cemento-arena proporción  1:4. Incluye: Herramienta, mano de obra y todo lo necesario para su correcta ejecución.","Pza",1,{"$f":"+#REF!","v":{"$error":"#REF!"}},null,{"$error":"#REF!"},null,1,1,1]
["PV-06","      Suministro e instalación de puerta tipo multypanel 0.80x2.06m con marco metálico de 0.86x2.10m fabricado a base de perfil tubular M-225., chapa tipo bola con llave para exterior modelo MH52T3  marca fanal o similar acabado en latón brillante para exterior, dos bisagras de 3\", pintura esmalte anticorrosivo color blanco en el marco metálico, el concepto incluye perfilado del hueco previo a su colocación con mortero cemento-arena 1:4. Incluye: Herramienta, mano de obra y todo lo necesario para su correcta ejecución.","Pza",1,{"$f":"+#REF!","v":{"$error":"#REF!"}},null,{"$error":"#REF!"},null,1,1,1]
[null,null,null,"PUERTAS Y VENTANAS",null,null,{"$f":"+SUM(G45:H50)","v":{"$error":"#REF!"}},null,null,null,0]
[]
[]
["INSTALACIONES ELÉCTRICAS"]
["IE-01","      Suministro y colocación de centro de carga de dos circuitos  con una pieza de interruptor sencillo de 1x30 amperes, tubería galvanizada conduit pared delgada de 3/4\", el concepto incluye ranurado, resanado con mortero cemento-arena 1:4, prueba del correcto funcionamiento de las instalaciones y todo lo necesario para su correcto funcionamiento.","Pza",{"$f":"+K55","v":1},{"$f":"+#REF!","v":{"$error":"#REF!"}},null,{"$f":"D55*E55","v":{"$error":"#REF!"}},null,1,1,{"$f":"+I55*$I$11","v":1}]
["IE-02","      Salida eléctrica para tomacorriente, incluye; Contacto doble, tapa, poliducto eléctrico, cableado, ranurado, sujeción de poliducto, mano de obra y equipo.","Sal",9,{"$f":"+#REF!","v":{"$error":"#REF!"}},null,{"$error":"#REF!"},null,9,9,9]
["IE-03","      Salida eléctrica para apagador sencillo,  incluye: tapa de una via, poliducto eléctrico naranja reforzado de 1/2\", cableado con cable thw #12, ranurado, resanado con mortero cemento-arena 1:4, sujeción de poliducto, mano de obra y equipo.","Sal",3,{"$f":"+#REF!","v":{"$error":"#REF!"}},null,{"$error":"#REF!"},null,3,3,3]
["IE-04","      Salida eléctrica para apagador doble, incluye; tapa de dos vías, poliducto eléctrico naranja reforzado de 1/2\", cableado con cable thw #12, ranurado, resanado con mortero cemento-arena 1:4, sujeción de poliducto, mano de obra y equipo.","Sal",2,{"$f":"+#REF!","v":{"$error":"#REF!"}},null,{"$error":"#REF!"},null,2,2,2]
["IE-05","      Salida eléctrica para lámpara,  incluye; cableado con cable thw #12,  caja octogonal de 4\", con poliducto naranja reforzado de 1/2\", cableado, ranurado, resanado con mortero cemento arena 1:4, sujeción de poliducto, mano de obra y equipo.","Sal",7,{"$f":"+#REF!","v":{"$error":"#REF!"}},null,{"$error":"#REF!"},null,7,7,7]
["IE-06","      Suministro e instalación de foco fluorescente espiral 23 w. De luz fria con 100 W de iluminacion según proyecto, incluye: la roseta de porcelana de 4\" y todo lo necesario para su correcta instalación.","Pza",7,{"$f":"+#REF!","v":{"$error":"#REF!"}},null,{"$error":"#REF!"},null,7,7,7]
[null,null,null,"INSTALACIONES ELÉCTRICAS",null,null,{"$f":"+SUM(G55:H60)","v":{"$error":"#REF!"}}]
[]
[]
["INSTALACIONES HIDRÁULICAS Y SANITARIAS"]
["IHS-01","      Salidas para instalación sanitaria de 1 1/2\",  2\" y 4\" para ventila,  lavabo, sanitario, tarja y regadera, tubería de pvc, conexiones, pegamento, ranurado, resanado con mortero cemento-arena 1:4, pendiente, materiales, mano de obra, herramienta y equipo.","Sal",{"$f":"+K65","v":5},{"$f":"+#REF!","v":{"$error":"#REF!"}},null,{"$f":"D65*E65","v":{"$error":"#REF!"}},null,5,5,{"$f":"+I65*$I$11","v":5}]
["IHS-02","      Salidas para instalación hidráulica  para  regadera agua fría y caliente, lavabo, sanitario,  tarja o zinc, con tubería cpvc de 1/2\" marca duralon o similar, el concepto incluye: limpieza,  conexiones, ranurado, pendiente, materiales, mano de obra, herramienta,  equipo, resanado con mortero cemento-arena 1:4, prueba del correcto funcionamiento de las instalaciones y todo lo necesario para su correcto funcionamiento.","Sal",5,{"$f":"+#REF!","v":{"$error":"#REF!"}},null,{"$error":"#REF!"},null,5,5,5]
["IHS-03","      Suministro e instalación de sanitario marca lamosa o similar línea económica  en color blanco, incluye asiento, pijas, cuello de cera, manguera flexible, llave cromada de 1/2\".","Pza",1,{"$f":"+#REF!","v":{"$error":"#REF!"}},null,{"$error":"#REF!"},null,1,1,1]
["IHS-04","      Suministro e instalación de lavabo marca lamosa o similar línea económica  en color blanco, incluye: Llave mezcladora marca helvex o similar línea económica, patas, soportes, manguera flexible, llave cromada de 1/2\", cespol bote.","Pza",1,{"$f":"+#REF!","v":{"$error":"#REF!"}},null,{"$error":"#REF!"},null,1,1,1]
["IHS-05","      Suministro e instalación de regadera línea económica  incluye brazo y chapetón.","Pza",1,{"$f":"+#REF!","v":{"$error":"#REF!"}},null,{"$error":"#REF!"},null,1,1,1]
["IHS-06","      Construcción de registro sanitario de 46x45cm de medida interna, a base de ladrillo recocido común de la región de 7x14x28 cm, junteado con mortero cal-arena 1:5 + 10% de cemento, base y tapa a base de concreto F'c=150 kg/cm2 con t.m.a. 3/4\" reforzado con malla electrosoldada 6x6-10/10 el concepto incluye: enjarre interior con mortero cemento-arena 1:3, fabricación y colocación de dos jaladeras para la tapa a base de alambrón de 1/4\", con pases a base de poliducto de 1/2\". y todo lo necesario para su correcta ejecución.","Pza",2,{"$f":"+#REF!","v":{"$error":"#REF!"}},null,{"$error":"#REF!"},null,2,1,2]
["IHS-07","      Suministro e instalación de tinaco de 600 lt de la marca rotoplas o similar con el sistema de 3 capas para garantizar una vida útil de 35 años, con todos los accesorios como jarro de aire, flotador #5, válvula de llenado ¾\", multiconector con válvula de esfera, tuerca unión y válvula check, incluye base para nivelar tinaco (detalle plano), la alimentación hidráulica por medio de tubería cpvc de 1/2\" y todo lo necesario para su correcto funcionamiento.","Pza",1,{"$f":"+#REF!","v":{"$error":"#REF!"}},null,{"$error":"#REF!"},null,1,1,1]
["IHS-08","      Suministro e instalación de lavadero doble de empotrar, el concepto incluye; firme de concreto sencillo, murete de block de 12x20x40 cm, la salida sanitaria con tubería pvc de 2\" y la salida hidráulica con tubería cpvc de 1/2\", llave de jardín de 1/2\",  resanado con mortero cemento-arena 1:4  y todo lo necesario para su correcto funcionamiento.","Pza",1,{"$f":"+#REF!","v":{"$error":"#REF!"}},null,{"$error":"#REF!"},null,1,1,1]
[null,null,null,"INSTALACIONES HIDRÁULICAS Y SANITARIAS",null,null,{"$f":"+SUM(G65:H72)","v":{"$error":"#REF!"}}]
[]
[]
["TOTAL DE PRESUPUESTO **                                             ",null,null,"TOTAL DE PRESUPUESTO",null,null,{"$f":"+G73+G61+G51+G41+G32+G26+G19","v":{"$error":"#REF!"}}]

{"sheet":"F-22 CATAL (4)","index":1,"n_rows":91,"n_cols":11,"rows_kept":91,"cut":false,"hidden":true,"merged":[[0,6,0,7],[2,2,3,7],[4,6,4,7],[6,0,7,1],[6,2,7,5],[6,6,7,7],[14,6,14,7],[15,3,15,5],[15,6,15,7],[18,0,18,2],[18,3,18,7],[19,6,19,7],[9,0,9,2],[9,3,9,7],[10,6,10,7],[12,0,12,2],[12,3,12,7],[13,6,13,7],[26,3,26,7],[28,0,28,2],[28,3,28,7],[29,6,29,7],[30,6,30,7],[31,6,31,7],[20,6,20,7],[21,6,21,7],[22,6,22,7],[23,6,23,7],[24,6,24,7],[25,3,25,5],[25,6,25,7],[38,0,38,2],[38,3,38,7],[39,6,39,7],[40,6,40,7],[41,6,41,7],[42,6,42,7],[32,6,32,7],[33,6,33,7],[34,6,34,7],[35,3,35,5],[35,6,35,7],[36,3,36,7],[49,3,49,7],[51,0,51,2],[51,3,51,7],[52,6,52,7],[53,6,53,7],[54,6,54,7],[43,6,43,7],[44,6,44,7],[45,6,45,7],[46,6,46,7],[47,6,47,7],[48,3,48,5],[48,6,48,7],[61,6,61,7],[62,6,62,7],[63,6,63,7],[64,6,64,7],[65,3,65,5],[65,6,65,7],[55,6,55,7],[56,6,56,7],[57,6,57,7],[58,6,58,7],[59,6,59,7],[60,6,60,7],[71,6,71,7],[72,3,72,5],[72,6,72,7],[73,0,73,2],[73,3,73,7],[74,6,74,7],[66,0,66,2],[66,3,66,7],[67,6,67,7],[68,6,68,7],[69,6,69,7],[70,6,70,7],[81,0,81,2],[81,3,81,7],[82,6,82,7],[83,6,83,7],[84,3,84,5],[84,6,84,7],[75,6,75,7],[76,6,76,7],[77,6,77,7],[78,6,78,7],[79,6,79,7],[80,3,80,5],[80,6,80,7],[91,3,91,7],[85,0,85,2],[85,3,85,7],[86,6,86,7],[87,3,87,5],[87,6,87,7],[90,0,90,2],[90,3,90,5],[90,6,90,7]]}
[null,null,null,null,null,null,"FORMATO N0. 22"]
[]
[null,"COMISION DE VIVIENDA ","CATÁLOGO DE CONCEPTOS, CANTIDADES DE OBRA, PRECIOS UNITARIOS, IMPORTES PARCIALES Y TOTALES DE LA PROPUESTA"]
[null,"DEL ESTADO DE SONORA"]
[null,null,"FECHA DE PRESENTACIÓN DE LA PROPUESTA: ",null,null,null,{"$f":"IF(+datos!B10=\"\",\"\",+datos!B10)","v":""}]
[{"$f":"CONCATENATE(\"LICITACIÓN No.: \",+datos!B1)","v":"LICITACIÓN No.: "},null,"F. INICIO",{"$f":"IF(+datos!B6=\"\",\"\",+datos!B6)","v":""},"F. TERMINO",{"$f":"IF(+datos!B7=\"\",\"\",+datos!B7)","v":""},"PLAZO:",{"$f":"CONCATENATE(+datos!B8, \" DIAS NATURALES.\")","v":"150 DIAS NATURALES."}]
[{"$f":"+datos!B9","v":"TERMINACION DE CONSTRUCCIÓN DE 10(DIEZ ) UNIDAD BASICA DE VIVIENDA INDIGENA  DE 45 M2 EN AREA URBANA Y SEMIURBANA  A BASE DE LOSA DE CIMENTACIÓN, MUROS DE BLOCK, TECHO DE VIGUETA, INSTALACIONES ELÉCTRICAS, HIDRAULICAS, SANITARIAS, CANCELERIA Y EQUIPAMIENTO  EN VARIAS LOCALIDADES DEL MUNICIPIO DE BENITO JUAREZ, SONORA."},null,"(Nombre o razón social del licitante)",null,null,null,"(Nombre y firma del apoderado Legal)"]
[]
[]
[" ",null,null,"CANTIDADES DE OBRA, PRECIOS UNITARIOS E IMPORTES"]
["CLAVE","DESCRIPCIÓN","UNIDAD","CANTIDAD","P. UNIT. CON NUMERO","PRECIO UNIT. CON LETRA","IMPORTE",null,1]
[]
["PRELIMINARES",null,null,"PESOS 00/100 M.N.**"]
[{"$f":"+'b)Estandar (E)'!C14","v":"PRE-01"},{"$f":"+'b)Estandar (E)'!D14","v":"TRAZO Y NIVELACIÓN EN PLATAFORMA, PARA LA UBICACIÓN DE EJES, Y PERÍMETROS  DE LA LOSA DE CIMENTACIÓN, TRAZO DE DESPLANTE DE MUROS Y LOCALIZACIÓN DE CASTILLO INCLUYE MATERIALES, MANO DE OBRA Y TODO LO NECESARIO PARA SU CORRECTA EJECUCIÓN."},{"$f":"+'b)Estandar (E)'!E14","v":"M2"},{"$f":"+K14","v":55.44},{"$f":"+'b)Estandar (E)'!G14","v":3.88},null,{"$f":"D14*E14","v":215.11},null,{"$f":"+'b)Estandar (E)'!F14","v":55.44},44.56,{"$f":"+I14*$I$11","v":55.44}]
[{"$f":"+'b)Estandar (E)'!C15","v":"PRE-02"},{"$f":"+'b)Estandar (E)'!D15","v":"EXCAVACIÓN CON PALA DERECHA A MANO EN PLATAFORMA MEJORADA, INCLUYE AFINE DE TALUDES Y FONDO, PARA ALOJAR CIMENTACIÓN PROFUNDA DE 0.00 A 2.00 M INCLUYE LIMPIEZA Y ACARREOS DENTRO,  FUERA DE LA OBRA."},{"$f":"+'b)Estandar (E)'!E15","v":"M3"},{"$f":"+K15","v":1.89},{"$f":"+'b)Estandar (E)'!G15","v":111},null,209.79,null,{"$f":"+'b)Estandar (E)'!F15","v":1.89},9.8800000000000008,{"$f":"+I15*$I$11","v":1.89}]
[null,null,null,{"$f":"+A13","v":"PRELIMINARES"},null,null,{"$f":"+SUM(G14:H15)","v":424.9}]
[]
[]
[{"$f":"+'b)Estandar (E)'!D19","v":"ESTRUCTURAS"}]
[{"$f":"+'b)Estandar (E)'!C20","v":"EST-01"},{"$f":"+'b)Estandar (E)'!D20","v":"LOSA DE CIMENTACIÓN DE CONCRETO ARMADO DE 12 CM. DE ESPESOR, A BASE DE CONCRETO F'C=200 KG/CM2  CON AGREGADO MÁXIMO DE 38 MM HECHO EN OBRA O PREMEZCLADO, REFORZADO CON MALLA DE ACERO ELECTROSOLDADA CORRUGADA 6-6/8-8  Y CADENAS CON ARMEX 12x20 CM REFORZADAS CON  UN TRASLAPE MÍNIMO DE 10 CMS. EN LA MALLA Y 20 CMS EN EL ARMEX, CON BASTONES DE  VARILLAS DE 3/8\"  SEPARADAS SEGÚN PROYECTO E INCLUYE ARREGLO EN CHAROLA PARA BAÑO (PREPARACIÓN PARA RECIBIR LA INSTALACIÓN HIDROSANITARIA) HABILITADO, TRASLAPES, CIMBRA, DESCIMBRA, COLADO, VIBRADO POR MEDIOS MECANICOS, ACABADO LISO PULIDO, CURADO POR ASPERSIÓN, COLOCACIÓN DE POLIETILENO CAL. 600 EN TODA LA SUPERFICIE QUE ABARQUE EL ARMADO DE ACERO, PRUEBAS DE LABORATORIO, INCLUYE MATERIALES, MANO DE OBRA, LIMPIEZA, CARGA Y ACARREOS DENTRO Y FUERA DE LA OBRA, Y TODO LO NECESARIO PARA SU CORRECTA EJECUCIÓN Y CONSTRUCCIÓN."},{"$f":"+'b)Estandar (E)'!E20","v":"M2"},{"$f":"+K20","v":45.01},{"$f":"+'b)Estandar (E)'!G20","v":425.55},null,{"$f":"D20*E20","v":19154.009999999998},null,{"$f":"+'b)Estandar (E)'!F20","v":45.01},79.680000000000007,{"$f":"+I20*$I$11","v":45.01}]
[{"$f":"+'b)Estandar (E)'!C21","v":"EST-02"},{"$f":"+'b)Estandar (E)'!D21","v":"IMPERMEABILIZACIÓN EN LA LOSA DE CIMENTACIÓN ENTRE EL DESPLANTE DE LOS MUROS, CON EMULSIÓN ASFÁLTICA EMULCOAT O SIMILAR REBAJADA AL 50% CON  UNA CAPA DE 5MM DE ESPESOR, INCLUYE MATERIALES, MANO DE OBRA, ACARREOS Y TODO LO NECESARIO PARA SU CORRECTA INSTALACIÓN."},{"$f":"+'b)Estandar (E)'!E21","v":"ML"},36.270000000000003,{"$f":"+'b)Estandar (E)'!G21","v":25.35},null,919.44,null,{"$f":"+'b)Estandar (E)'!F21","v":36.270000000000003},79.680000000000007,36.270000000000003]
[{"$f":"+'b)Estandar (E)'!C22","v":"EST-03."},{"$f":"+'b)Estandar (E)'!D22","v":"MURO    A  PLOMO  HASTA  UNA  ALTURA  DE  2.55  MT,  DE  BLOCK  NORMAL DE CONCRETO CON RESISTENCIA MÍNIMA DE 50 KG/CM2 CON DIMENSIONES 12x20x40, ASENTADO CON MORTERO CEMENTO-ARENA 1:5, CON ACABADO APARENTE AMBAS CARAS CON JUNTA VACÍA O BOLEADA, INCLUYE LECHO SUPERIOR DE VANOS DE PUERTAS INTERIORES Y EXTERIORES, ASÍ COMO VENTANAS, SOSTENIDOS CON CADENAS INTERMEDIAS, CARGA Y ACARREO DE MATERIAL DENTRO Y FUERA DE LA OBRA, PRUEBAS DE LABORATORIO AL BLOCK Y MORTERO, MANO DE OBRA Y TODO LO NECESARIO PARA SU CORRECTA EJECUCIÓN Y CONSTRUCCIÓN.ARA SU CORRECTA EJECUCIÓN Y CONSTRUCCIÓN."},{"$f":"+'b)Estandar (E)'!E22","v":"M2"},89.49,{"$f":"+'b)Estandar (E)'!G22","v":189.71},null,16977.150000000001,null,{"$f":"+'b)Estandar (E)'!F22","v":89.49},79.680000000000007,89.49]
[{"$f":"+'b)Estandar (E)'!C23","v":"EST-04"},{"$f":"+'b)Estandar (E)'!D23","v":"CASTILLO CON SECCIÓN 12 X 12 CM DE CONCRETO CON RESISTENCIA F'C 150 KG/CM2 AGREGADO MÁXIMO 19 MM EL CONCRETO SERÁ HECHO EN OBRA O PREMEZCLADO REFORZADO CON ARMEX 08x08-4 , UNICAMENTE HASTA LA LOSA MACIZA DEL ENTREPISO CON RECUBRIMIENTO MÍNIMO DE 1 CM PROMEDIO, EL ANCLAJE DE LOS CASTILLOS DEBERÁ SER DE 30CM HACIA LA CIMENTACIÓN Y HACIA LA LOSA DE AZOTEA, ACABADO APARENTE,  INCLUYE HABILITADO, TRASLAPES DE ACERO, COLADO, VIBRADO, MATERIAL , MANO DE OBRA, LIMPIEZA CARGA Y ACARREO DENTRO Y FUERA DE LA OBRA Y TODO LO NECESARIO PARA SU CORRECTA EJECUCIÓN Y CONSTRUCCIÓN."},{"$f":"+'b)Estandar (E)'!E23","v":"ML"},59.85,{"$f":"+'b)Estandar (E)'!G23","v":90.91},null,5440.96,null,{"$f":"+'b)Estandar (E)'!F23","v":59.85},79.680000000000007,59.85]
[{"$f":"+'b)Estandar (E)'!C24","v":"EST-05"},{"$f":"+'b)Estandar (E)'!D24","v":"DALA DE CERRAMIENTO DE CONCRETO HECHO EN OBRA FC=150 KG/CM2, Y ARMADURA PREFABRICADA DE ARMEX 08*16/4,  INCLUYE: MATERIAL, HERRAMIENTA,MANO DE OBRA Y TODO LO NECESARIO PARA SU CORRECTA EJECUCION."},{"$f":"+'b)Estandar (E)'!E24","v":"ML"},42.48,{"$f":"+'b)Estandar (E)'!G24","v":97.14},null,4126.51,null,{"$f":"+'b)Estandar (E)'!F24","v":42.48},79.680000000000007,42.48]
[{"$f":"+'b)Estandar (E)'!C25","v":"EST-06"},{"$f":"+'b)Estandar (E)'!D25","v":"LOSA DE AZOTEA A BASE DE VIGUETA 12-3 Y CASETON DE POLIESTIRENO, CON UNA CAPA DE COMPRESION  CON CONCRETO F'c=200 KG/CM2 DE 4 CM2 DE ESPESOR Y ACERO DE REFUERZO CON MALLA ELECTROSOLDADA 6*6-10/10;  INCLUYE CIMBRA COMUN,   INC. ARMADO, COLADO, DESCIMBRADO, HERRAMIENTA Y MANO DE OBRA."},{"$f":"+'b)Estandar (E)'!E25","v":"M2"},47.8,{"$f":"+'b)Estandar (E)'!G25","v":396.14},null,18935.490000000002,null,{"$f":"+'b)Estandar (E)'!F25","v":47.8},79.680000000000007,47.8]
[null,null,null,{"$f":"+A19","v":"ESTRUCTURAS"},null,null,{"$f":"+SUM(G20:H25)","v":65553.56}]
[]
[]
[{"$f":"+'b)Estandar (E)'!D29","v":"ALBAÑILERÍA"}]
[{"$f":"+'b)Estandar (E)'!C30","v":"ALB-01."},{"$f":"+'b)Estandar (E)'!D30","v":"PRETIL DE 20 CM DE ALTURA A PLOMO Y NIVEL, DE BLOCK NORMAL DE CONCRETO O SIMILAR CON RESISTENCIA MÍNIMA DE 50 K/CM2 CON DIMENSIONES 12 20 40, ACABADO COMÚN, CON APLANADO FINO MÍNIMO DE 1CM DE ESPESOR EN LAS TRES CARAS, ASENTADO CON MORTERO CEMENTO-ARENA 1:5 INCLUYE MATERIALES, MANO DE OBRA, LIMPIEZA, CARGA Y  ACARREO DENTRO Y FUERA DE LA OBRA Y TODO LO NECESARIO PARA SU CORRECTA EJECUCIÓN Y CONSTRUCCIÓN."},{"$f":"+'b)Estandar (E)'!E30","v":"ML"},{"$f":"+K30","v":7.3},{"$f":"+'b)Estandar (E)'!G30","v":67.650000000000006},null,{"$f":"D30*E30","v":493.85},null,{"$f":"+'b)Estandar (E)'!F30","v":7.3},46.07,{"$f":"+I30*$I$11","v":7.3}]
[{"$f":"+'b)Estandar (E)'!C31","v":"ALB-02."},{"$f":"+'b)Estandar (E)'!D31","v":"BASE PARA TINACO A PLOMO Y NIVEL EN FORMA DE CRUZ A UNA ALTURA DE 1.50 MT TERMINADA DEL NIVEL DE LA CEBOLLA DE LA REGADERA, CON MURETES DE BLOCK NORMAL DE CONCRETO O SIMILAR CON RESISTENCIA MÍNIMA DE 50 K/CM2 CON DIMENSIONES 12 20 40 CM DE ESPESOR, ASENTADO CON MORTERO-ARENA 1:5 INCLUYE UN  CASTILLO DE REFUERZO AHOGADO EN EL EJE CENTRAL DEL ELEMENTO, EL DIÁMETRO DE LA LOSA ES DE 1.0M DE FORMA CIRCULAR CON 8CM DE ESPESOR REFORZADA CON MALLA ELECTROSOLDADA 6x6 10/10 CORRUGADA CON CONCRETO ARMADO F´C 200 KG/CM2 AGREGADO MÁXIMO 19 MM HECHO EN OBRA O PREMEZCLADO, EL ACABADO DE LA BASE ES FINO A BASE DE MORTERO CEMENTO-ARENA 1:6 Y APARENTE PARA LA LOSA, INCLUYE MATERIALES, HABILITADO DE ACERO, TRASLAPES, CIMBRA, DESCIMBRA, COLADO, VIBRADO, CURADO POR ASPERSIÓN, MANO DE OBRA, LIMPIEZA, CARGA Y ACARREO DENTRO Y FUERA DE LA OBRA Y TODO LO NECESARIO PARA SU CORRECTA EJECUCIÓN Y CONSTRUCCIÓN."},{"$f":"+'b)Estandar (E)'!E31","v":"PZA"},1,{"$f":"+'b)Estandar (E)'!G31","v":916.6},null,916.6,null,{"$f":"+'b)Estandar (E)'!F31","v":1},46.07,1]
[{"$f":"+'b)Estandar (E)'!C32","v":"ALB-03"},{"$f":"+'b)Estandar (E)'!D32","v":"CHAFLÁN DE 7x7 CM. DE MORTERO-ARENA 1:5 COLOCADO EN TODO EL PERÍMETRO DEL PRETIL Y DE LA BASE PARA EL TINACO Y/O DOMO EN CASO DE EXISTIR, INCLUYE MATERIAL, CARGA, ACARREO DENTRO Y FUERA DE LA OBRA, LIMPIEZA, MANO DE OBRA Y TODO LO NECESARIO PARA SU CORRECTA EJECUCIÓN Y CONSTRUCCIÓN."},{"$f":"+'b)Estandar (E)'!E32","v":"ML"},20.04,{"$f":"+'b)Estandar (E)'!G32","v":9.98},null,200,null,{"$f":"+'b)Estandar (E)'!F32","v":20.04},46.07,20.04]
[{"$f":"+'b)Estandar (E)'!C33","v":"ALB-04"},{"$f":"+'b)Estandar (E)'!D33","v":"SUMINISTRO Y APLICACIÓN DE IMPERMEABILIZACIÓN EN LOSA DE AZOTEA A BASE DE UNA CAPA DE PRIMARIO Y APLICACIÓN DE 2 CAPAS DE BITUFLEX O ACRÍLICO ELASTOMERICO (ACRITÓN) PARA TRES AÑOS O SIMILAR CON LA COLOCACION DE IMPERMEABILIZANTE PREFABRICADO SOLDABLE EN LA JUNTA CONSTRUCTIVA A TODO LO LARGO Y UNA VUELTA DE 5CM EN LOS EXTREMOS, CON REFUERZO DE UNA CAPA DE MEMBRANA TRASLAPADA 10 CM, SE SELLARAN TODAS LAS FISURAS EN LA LOSA Y JUNTAS CONSTRUCTIVAS CON RESINA EPOXICA O SIMILAR PREVIO A LA COLOCACIÓN DEL PRIMARIO, COMO TERMINADO SE APLICARA UNA CAPA DE COLOR TERRACOTA Ò SI SE APLICA MATERIAL ACRÍLICO COLOR BLANCO PREFERENTEMENTE, INCLUYE MATERIAL, ACARREOS, MANO DE OBRA Y TODO LO NECESARIO PARA SU CORRECTA EJECUCIÓN."},{"$f":"+'b)Estandar (E)'!E33","v":"M2"},55.1,{"$f":"+'b)Estandar (E)'!G33","v":54.89},null,3024.44,null,{"$f":"+'b)Estandar (E)'!F33","v":55.1},46.07,55.1]
[{"$f":"+'b)Estandar (E)'!C34","v":"ALB-05"},{"$f":"+'b)Estandar (E)'!D34","v":"REGISTRO SANITARIO A PLOMO Y NIVEL CON MEDIDAS INTERIORES 40x60 CM CON LA PROFUNDIDAD QUE INDIQUE EL PROYECTO DE DESCARGA SANITARIA, ELABORADO A BASE  DE BLOCK NORMAL DE CONCRETO O SIMILAR CON RESISTENCIA MINIMA DE 50 KG/CM2 CON DIMENSIONES 12x20x40cm DE ESPESOR JUNTEADO CON MORTERO CEMENTO-ARENA 1:5 INCLUYE EXCAVACIÓN, NIVELACIÓN, PLANTILLA DE 3CM DE ESPESOR A BASE DE MORTERO CEMENTO ARENA 1:6, RECIBIR INSTALACIONES,  FORMACIÓN DE MEDIA CAÑA CON CONCRETO AL FONDO DEL MISMO, TAPA PARA REGISTRO CON MEDIDAS DE 48X68 CMS, DE 5.00 CMS. DE ESPESOR CON CONCRETO F'c=150 KG/CM2, R.N., AGREGADO MÁXIMO DE 3/4\", CON MARCO Y CONTRAMARCO METÁLICO DE SOLERA DE 1 1/2\"X1/8\", ARMADO CON ALAMBRÓN No2 (1/4\"), OREJA, ACABADO INTERIOR PULIDO, MANO DE OBRA, LIMPIEZA, CARGA Y ACARREO DENTRO Y FUERA DE LA OBRA Y TODO LO NECESARIO PARA SU CORRECTA EJECUCIÓN Y CONSTRUCCIÓN."},{"$f":"+'b)Estandar (E)'!E34","v":"PZA"},1,{"$f":"+'b)Estandar (E)'!G34","v":746.49},null,746.49,null,{"$f":"+'b)Estandar (E)'!F34","v":1},46.07,1]
[{"$f":"+'b)Estandar (E)'!C35","v":"ALB-06"},{"$f":"+'b)Estandar (E)'!D35","v":"COLOCACION DE HUELLA DE ACCESO A BASE DE CONCRETO CON RESISTENCIA F'C 100 KG/CM2 AGREGADO MÁXIMO 19 MM EL CONCRETO SERÁ HECHO EN OBRA O PREMEZCLADO DE 8 CM DE ESPESOR Y MEDIDAS 1.0 X 1.0 M, LEVE PENDIENTE DE 5MM HACIA AFUERA, INCLUYE CIMBRA, DESCIMBRA, ESCOBILLADO EN SENTIDO PERPENDICULAR A LA PUERTA Y RODAPIE EN LAS ORILLAS, MATERIALES, MANO DE OBRA, LIMPIEZA, CARGA Y ACARREO DE MATERIAL DENTRO Y FUERA DE OBRA Y TODO LO NECESARIO PARA SU CORRECTA EJECUCIÓN."},{"$f":"+'b)Estandar (E)'!E35","v":"PZA."},1,{"$f":"+'b)Estandar (E)'!G35","v":165.46},null,165.46,null,{"$f":"+'b)Estandar (E)'!F35","v":1},46.07,1]
[null,null,null,{"$f":"+A29","v":"ALBAÑILERÍA"},null,null,{"$f":"SUM(G30:H35)","v":5546.84}]
[]
[]
[{"$f":"+'b)Estandar (E)'!D39","v":"ACABADOS"}]
[{"$f":"+'b)Estandar (E)'!C40","v":"ACA-01"},{"$f":"+'b)Estandar (E)'!D40","v":"APLANADO FINO EN FACHADA PRINCIPAL CON 1.5 CM DE ESPESOR PROMEDIO CON MORTERO CEMENTO-ARENA 1:5 INCLUYE REPELLADO GRUESO (DEJANDO EL TIEMPO NECESARIO DE FRAGUADO NECESARIO PARA EVITAR LA CONTRACCIÓN DEL MATERIAL), INCLUYE: PERFILADO DE ARISTAS Y BOQUILLAS EN PUERTAS Y/O VENTANAS, RETIRO DE REBABA FINA Y PICADO EN ELEMENTOS ESTRUCTURALES ANTES DE SU APLICACIÓN, MATERIAL, MANO DE OBRA Y TODO LO NECESARIO PARA SU CORRECTA EJECUCIÓN."},{"$f":"+'b)Estandar (E)'!E40","v":"M2"},{"$f":"+K40","v":19.02},{"$f":"+'b)Estandar (E)'!G40","v":86.91},null,{"$f":"D40*E40","v":1653.03},null,{"$f":"+'b)Estandar (E)'!F40","v":19.02},null,{"$f":"+I40*$I$11","v":19.02}]
[{"$f":"+'b)Estandar (E)'!C41","v":"ACA-02"},{"$f":"+'b)Estandar (E)'!D41","v":"APLANADO ZARPEADO EN MUROS EXTERIORES ( MURO TRASERO ) A UNA ALTURA DE 2.60 MT, Y REGLA CON 1.0 CM DE ESPESOR PROMEDIO CON MORTERO-ARENA 1:5  INCLUYE  INCLUYE, MATERIALES, MANO DE OBRA, LIMPIEZA, CARGA Y ACARREO DE MATERIAL DENTRO Y FUERA DE OBRA Y TODO LO NECESARIO PARA SU CORRECTA EJECUCIÓN."},{"$f":"+'b)Estandar (E)'!E41","v":"M2"},19.809999999999999,{"$f":"+'b)Estandar (E)'!G41","v":58.32},null,1155.32,null,{"$f":"+'b)Estandar (E)'!F41","v":19.809999999999999},null,19.809999999999999]
[{"$f":"+'b)Estandar (E)'!C42","v":"ACA-03"},{"$f":"+'b)Estandar (E)'!D42","v":"APLANADO ZARPEADO EN MUROS EXTERIORES ( MUROS LATERALES ) A UNA ALTURA DE 2.80 MT, Y REGLA CON 1.0 CM DE ESPESOR PROMEDIO CON MORTERO-ARENA 1:5  INCLUYE  INCLUYE, MATERIALES, MANO DE OBRA, LIMPIEZA, CARGA Y ACARREO DE MATERIAL DENTRO Y FUERA DE OBRA Y TODO LO NECESARIO PARA SU CORRECTA EJECUCIÓN."},{"$f":"+'b)Estandar (E)'!E42","v":"M2"},35.67,{"$f":"+'b)Estandar (E)'!G42","v":58.32},null,2080.27,null,{"$f":"+'b)Estandar (E)'!F42","v":35.67},null,35.67]
[{"$f":"+'b)Estandar (E)'!C43","v":"ACA-04"},{"$f":"+'b)Estandar (E)'!D43","v":"EMBOQUILLADO EN PUERTAS Y VENTANAS CON MORTERO CEMENTO-ARENA 1:5, DE 1 CM. DE ESPESOR PROMEDIO, PERFILADO DEL VANO DEL ELEMENTO, INCLUYE EMBOQUILLADO DE ARISTAS EN JUNTA CONSTRUCTIVA PARA POSTERIORMENTE COLOCAR TAPAJUNTAS DE PVC DE 2\" Y 10CM DE ANCHO O UNA JUNTA CONSTRUCTIVA A BASE DE NIEVE SECA (POLIESTIRENO) DE 2\" DE ESPESOR EN FACHADA FRONTAL Y TRASERA, INCLUYE MATERIALES, MANO DE OBRA, LIMPIEZA, CARGA Y ACARREOS DENTRO Y FUERA DE LA OBRA Y TODO LO NECESARIO PARA SU CORRECTA EJECUCIÓN."},{"$f":"+'b)Estandar (E)'!E43","v":"ML"},46.8,{"$f":"+'b)Estandar (E)'!G43","v":28.08},null,1314.14,null,{"$f":"+'b)Estandar (E)'!F43","v":46.8},null,46.8]
[{"$f":"+'b)Estandar (E)'!C44","v":"ACA-05"},{"$f":"+'b)Estandar (E)'!D44","v":"APLANADO ZARPEADO EN MUROS INTERIORES A UNA ALTURA DE 2.50 MT, Y REGLA CON 1.0 CM DE ESPESOR PROMEDIO CON MORTERO-ARENA 1:5  INCLUYE  INCLUYE, MATERIALES, MANO DE OBRA, LIMPIEZA, CARGA Y ACARREO DE MATERIAL DENTRO Y FUERA DE OBRA Y TODO LO NECESARIO PARA SU CORRECTA EJECUCIÓN."},{"$f":"+'b)Estandar (E)'!E44","v":"M2"},113.23,{"$f":"+'b)Estandar (E)'!G44","v":58.32},null,6603.57,null,{"$f":"+'b)Estandar (E)'!F44","v":113.23},null,113.23]
[{"$f":"+'b)Estandar (E)'!C45","v":"ACA-06."},{"$f":"+'b)Estandar (E)'!D45","v":"SUMINISTRO Y APLICACIÓN DE PINTURA VINÍLICA EN FACHADA PRINCIPAL A DOS MANOS, INCLUYE 1 MANO DE SELLADOR 5x1, 2 MANOS DE PINTURA,  LIMPIEZA DE REBABAS, SE SELLARAN TODAS LAS FISURAS EN LOS APLANADOS Y JUNTAS CONSTRUCTIVAS CON RESINA EPOXICA O SIMILAR PREVIO A LA COLOCACIÓN DEL SELLADOR, CARGA Y ACARREOS DENTRO Y FUERA DE LA OBRA, LIMPIEZA DEL ÁREA DE TRABAJO INCLUYENDO PUERTAS Y VENTANAS Y TODO LO NECESARIO PARA SU CORRECTA EJECUCIÓN."},{"$f":"+'b)Estandar (E)'!E45","v":"M2"},19.02,{"$f":"+'b)Estandar (E)'!G45","v":36},null,684.72,null,{"$f":"+'b)Estandar (E)'!F45","v":19.02},null,19.02]
[{"$f":"+'b)Estandar (E)'!C46","v":"ACA-07"},{"$f":"+'b)Estandar (E)'!D46","v":"SUMINISTRO Y APLICACIÓN DE PINTURA VINÍLICA EN MUROS  INTERIORES (LA HABITACION PEQUEÑA SERA DE COLOR ROSA) Y PLAFON (TOTAL DE LA VIVIENDA) A DOS MANOS, INCLUYE 1 MANO DE SELLADOR 5x1, 2 MANOS DE PINTURA, LIMPIEZA DE REBABAS, SE SELLARAN TODAS LAS FISURAS EN LOS APLANADOS Y JUNTAS CONSTRUCTIVAS CON RESINA EPOXICA O SIMILAR PREVIO A LA COLOCACIÓN DEL SELLADOR, CARGA Y ACARREOS DENTRO Y FUERA DE LA OBRA, LIMPIEZA DEL ÁREA DE TRABAJO INCLUYENDO PUERTAS Y VENTANAS Y TODO LO NECESARIO PARA SU CORRECTA EJECUCIÓN."},{"$f":"+'b)Estandar (E)'!E46","v":"M2"},158.24,{"$f":"+'b)Estandar (E)'!G46","v":36},null,5696.64,null,{"$f":"+'b)Estandar (E)'!F46","v":158.24},null,158.24]
[{"$f":"+'b)Estandar (E)'!C47","v":"ACA-08"},{"$f":"+'b)Estandar (E)'!D47","v":"SUMINISTRO Y APLICACIÓN DE PINTURA VINÍLICA EN EXTERIORES ( EN FACHADA POSTERIOR Y LATERALES ) A DOS MANOS, INCLUYE 1 MANO DE SELLADOR 5x1, 2 MANOS DE PINTURA, LIMPIEZA DE REBABAS, SE SELLARAN TODAS LAS FISURAS EN LOS APLANADOS Y JUNTAS CONSTRUCTIVAS CON RESINA EPOXICA O SIMILAR PREVIO A LA COLOCACIÓN DEL SELLADOR, CARGA Y ACARREOS DENTRO Y FUERA DE LA OBRA, LIMPIEZA DEL ÁREA DE TRABAJO INCLUYENDO PUERTAS Y VENTANAS Y TODO LO NECESARIO PARA SU CORRECTA EJECUCIÓN."},{"$f":"+'b)Estandar (E)'!E47","v":"M2"},55.48,{"$f":"+'b)Estandar (E)'!G47","v":36},null,1997.28,null,{"$f":"+'b)Estandar (E)'!F47","v":55.48},null,55.48]
[{"$f":"+'b)Estandar (E)'!C48","v":"ACA-09"},{"$f":"+'b)Estandar (E)'!D48","v":"APLANADO DE PLAFOND A UNA CAPA CON MORTERO CG:C:P EN PROPORCION 1:18:9 DE 0.50 CM. DE ESPESOR PROMEDIO A PLOMO Y REGLA : INCLUYE ANDAMIOS, PERFILACIONES, MANO DE OBRA Y QUIPO."},{"$f":"+'b)Estandar (E)'!E48","v":"M2"},45.01,{"$f":"+'b)Estandar (E)'!G48","v":42},null,1890.42,null,{"$f":"+'b)Estandar (E)'!F48","v":45.01},null,45.01]
[null,null,null,{"$f":"+A39","v":"ACABADOS"},null,null,{"$f":"+SUM(G40:H48)","v":23075.39}]
[]
[]
[{"$f":"+'b)Estandar (E)'!D52","v":"INSTALACIÓN HIDRO-SANITARIA"}]
[{"$f":"+'b)Estandar (E)'!C53","v":"INS-01"},{"$f":"+'b)Estandar (E)'!D53","v":"SALIDA HIDRÁULICA SEGÚN PROYECTO POR MUEBLE (2-REGADERA, 1-W.C., 1-LAVABO, 1-TARJA, 1-LAVADERO, 1-TINACO, ) A BASE DE POLIPROPILENO LÍNEA ECOPLUS, TUBO-PLUS, CPVC Y/O SIMILAR COLOCACIÓN DE JARRO DE AIRE EN LA SALIDA DEL TINACO, INCLUYE, LIMPIEZA, CARGA Y ACARREO DENTRO Y FUERA DE LA OBRA, MANO DE OBRA, RANURADO, RESANES DE ALBAÑILERÍA, PRUEBA HIDROSTÁTICA, Y TODO LO NECESARIO PARA EL CORRECTO FUNCIONAMIENTO DEL MUEBLE."},{"$f":"+'b)Estandar (E)'!E53","v":"SAL"},{"$f":"+K53","v":6},{"$f":"+'b)Estandar (E)'!G53","v":197.92},null,{"$f":"D53*E53","v":1187.52},null,{"$f":"+'b)Estandar (E)'!F53","v":6},1,{"$f":"+I53*$I$11","v":6}]
[{"$f":"+'b)Estandar (E)'!C54","v":"INS-02"},{"$f":"+'b)Estandar (E)'!D54","v":"SALIDA  SANITARIA DE PVC CON DIÁMETRO SEGÚN EL MUEBLE QUE INDIQUE EL PROYECTO (REGADERA, W.C., LAVABO, TARJA, LAVADERO) INCLUYE LIMPIEZA, CARGA Y ACARREO DENTRO Y FUERA DE LA OBRA DE MATERIALES, MANO DE OBRA, RANURADO, RESANES DE ALBAÑILERÍA, PRUEBA SANITARIA, TODO LO NECESARIO PARA EL CORRECTO FUNCIONAMIENTO DEL MUEBLE."},{"$f":"+'b)Estandar (E)'!E54","v":"SAL"},{"$f":"+K54","v":5},{"$f":"+'b)Estandar (E)'!G54","v":303.82},null,1519.1,null,{"$f":"+'b)Estandar (E)'!F54","v":5},1,5]
[{"$f":"+'b)Estandar (E)'!C55","v":"INS-03"},{"$f":"+'b)Estandar (E)'!D55","v":"SUMINISTRO Y COLOCACIÓN DE TUBO DE PVC SANITARIO CON CAMPANA DE 100 MM (4\") O LO QUE INDIQUE EL PROYECTO PARA CONEXIÓN DE REGISTRO DE DESCARGA DOMICILIARIA, JUNTEADO DICHA CONEXIÓN AL REGISTRO CON MORTERO PARA EVITAR FILTRACIONES INCLUYE EXCAVACIÓN, CAMA DE ARENA, TENDIDO, ACOSTILLADO, RELLENO COMPACTADO Y NIVELACIÓN, CARGA Y ACARREO DENTRO Y FUERA DE LA OBRA, MATERIALES, MANO DE OBRA, PRUEBA SANITARIA Y TODO LO NECESARIO PARA EL CORRECTO FUNCIONAMIENTO DE LA DESCARGA."},{"$f":"+'b)Estandar (E)'!E55","v":"ML"},10.5,{"$f":"+'b)Estandar (E)'!G55","v":53.63},null,563.12,null,{"$f":"+'b)Estandar (E)'!F55","v":10.5},1,10.5]
[{"$f":"+'b)Estandar (E)'!C56","v":"INS-04"},{"$f":"+'b)Estandar (E)'!D56","v":"SUMINISTRO, COLOCACIÓN Y CONEXIÓN DEL DISPARO DEL CUADRO DE MEDICIÓN HASTA LA CONEXIÓN AL TINACO, CON POLIDUCTO RD DE POLIPROPILENO LÍNEA ECOPLUS, TUBO-PLUS, CPVC Y/O SIMILAR Y TUBERÍA RÍGIDA DE 19 MM INCLUYE EXCAVACIÓN, TENDIDO, RELLENO, COMPACTACIÓN Y NIVELACIÓN, MATERIALES, MANO DE OBRA Y TODO LO NECESARIO PARA SU CORRECTO FUNCIONAMIENTO."},{"$f":"+'b)Estandar (E)'!E56","v":"ML"},15,{"$f":"+'b)Estandar (E)'!G56","v":52.49},null,787.35,null,{"$f":"+'b)Estandar (E)'!F56","v":15},1,15]
[{"$f":"+'b)Estandar (E)'!C57","v":"INS-05"},{"$f":"+'b)Estandar (E)'!D57","v":"SUMINISTRO Y COLOCACIÓN DE WC LÍNEA ECONÓMICA COLOR BLANCO DE GRADO ECOLOGICO MAXIMO 5 LTS., INCLUYE HERRAJES DE CONEXIÓN Y FUNCIONAMIENTO, JUNTAS SILICÓN, PRUEBA SANITARIA, SELLO DE CEMENTO GRIS EN SU BASE, LIMPIEZA, CARGA Y ACARREO DENTRO Y FUERA DE LA OBRA Y TODO LO NECESARIO PARA SU CORRECTA COLOCACIÓN Y FUNCIONAMIENTO."},{"$f":"+'b)Estandar (E)'!E57","v":"PZA"},1,{"$f":"+'b)Estandar (E)'!G57","v":755.36},null,755.36,null,{"$f":"+'b)Estandar (E)'!F57","v":1},1,1]
[{"$f":"+'b)Estandar (E)'!C58","v":"INS-06"},{"$f":"+'b)Estandar (E)'!D58","v":"SUMINISTRO Y COLOCACIÓN DE LAVABO LÍNEA ECONÓMICA COLOR BLANCO, INCLUYE LLAVE MEZCLADORA METÁLICA CROMADA CON DISPOSITIVO AHORRADOR DE AGUA, CESPOL DE PLÁSTICO RÍGIDO, CONTRAREJILLA, SOPORTES, SELLO ENTRE EL CONTACTO DEL LAVABO CON EL MURO A BASE DE SILICÓN TRANSPARENTE, LIMPIEZA, PRUEBA HIDROSANITARIA, CARGA Y ACARREO DE MATERIAL DENTRO Y FUERA DE LA OBRA Y TODO LO NECESARIO PARA SU CORRECTO FUNCIONAMIENTO."},{"$f":"+'b)Estandar (E)'!E58","v":"PZA"},1,{"$f":"+'b)Estandar (E)'!G58","v":682.81},null,682.81,null,{"$f":"+'b)Estandar (E)'!F58","v":1},1,1]
[{"$f":"+'b)Estandar (E)'!C59","v":"INS-07"},{"$f":"+'b)Estandar (E)'!D59","v":"SUMINISTRO Y COLOCACIÓN DE REGADERA CON DISPOSITIVO AHORRADOR DE AGUA INTEGRADO, LLAVES COLOCADAS HOSIZONTALMENTE, MANERALES Y CHAPETONES LÍNEA ECONÓMICA, METÁLICOS CROMADOS, INCLUYE, LIMPIEZA, CARGA, ACARREO DE MATERIALES DENTRO Y FUERA DE LA OBRA, PRUEBA HIDRÁULICA Y TODO LO NECESARIO PARA SU CORRECTO FUNCIONAMIENTO."},{"$f":"+'b)Estandar (E)'!E59","v":"PZA"},1,{"$f":"+'b)Estandar (E)'!G59","v":255.36},null,255.36,null,{"$f":"+'b)Estandar (E)'!F59","v":1},1,1]
[{"$f":"+'b)Estandar (E)'!C60","v":"INS-08"},{"$f":"+'b)Estandar (E)'!D60","v":"SUMINISTRO Y COLOCACIÓN DE LAVADERO CON TINA Y TALLADOR, AMACIZADO CON MORTERO-ARENA 1:5 INCLUYE ANCLAS, SOPORTE A BASE DE BLOCK NORMAL CON MEDIDAS DE 12*20*40, DE 80CM DE ALTURA, LLAVE DE NARIZ, PRUEBA HIDROSANITARIA, LIMPIEZA, CARGA Y ACARREO DENTRO Y FUERA DE LA OBRA Y TODO LO NECESARIO PARA SU CORRECTO FUNCIONAMIENTO."},{"$f":"+'b)Estandar (E)'!E60","v":"PZA"},1,{"$f":"+'b)Estandar (E)'!G60","v":420.42},null,420.42,null,{"$f":"+'b)Estandar (E)'!F60","v":1},1,1]
[{"$f":"+'b)Estandar (E)'!C61","v":"INS-09"},{"$f":"+'b)Estandar (E)'!D61","v":"SUMINISTRO Y COLOCACIÓN DE BOTE CESPOL CON COLADERA CROMADA DE 4\" PARA REGADERA DEL BAÑO FIJÁNDOLA CON MORTERO CEMENTO-ARENA 1:4, INCLUYE LIMPIEZA, CARGA, ACARREO DE MATERIAL DENTRO Y FUERA DE OBRA Y TODO LO NECESARIO PARA SU CORRECTO FUNCIONAMIENTO."},{"$f":"+'b)Estandar (E)'!E61","v":"PZA"},1,{"$f":"+'b)Estandar (E)'!G61","v":54.16},null,54.16,null,{"$f":"+'b)Estandar (E)'!F61","v":1},1,1]
[{"$f":"+'b)Estandar (E)'!C62","v":"INS-10"},{"$f":"+'b)Estandar (E)'!D62","v":"SUMINISTRO Y COLOCACIÓN DE TINACO DE POLIETILENO DE 450 LTS COLOR NEGRO MARCA ROTOPLAS O SIMILAR, INCLUYE, TAPA ROSCADA, VÁLVULA DE GLOBO ROSCADA (DE PASO), VARILLA FLOTADOR, LIMPIEZA, CARGA Y ACARREO DENTRO Y FUERA DE LA OBRA Y TODO LO NECESARIO PARA SU CORRECTA COLOCACIÓN Y FUNCIONAMIENTO."},{"$f":"+'b)Estandar (E)'!E62","v":"PZA"},1,{"$f":"+'b)Estandar (E)'!G62","v":1431.92},null,1431.92,null,{"$f":"+'b)Estandar (E)'!F62","v":1},1,1]
[{"$f":"+'b)Estandar (E)'!C63","v":"INS-11"},{"$f":"+'b)Estandar (E)'!D63","v":"SUMINISTRO Y COLOCACIÓN DE TARJA CON TINA, INCLUYE, SUMINISTRO Y COLOCACION, LIMPIEZA, CARGA Y ACARREO DENTRO Y FUERA DE LA OBRA Y TODO LO NECESARIO PARA SU CORRECTA COLOCACIÓN Y FUNCIONAMIENTO."},{"$f":"+'b)Estandar (E)'!E63","v":"PZA"},1,{"$f":"+'b)Estandar (E)'!G63","v":735.28},null,735.28,null,{"$f":"+'b)Estandar (E)'!F63","v":1},1,1]
[{"$f":"+'b)Estandar (E)'!C64","v":"INS-12"},{"$f":"+'b)Estandar (E)'!D64","v":"SUMINISTRO Y COLOCACION DE SISTEMA DE CAPTACION DE AGUA PLUVIAL CONECTADA A CISTERNA, INCLUYE: TUBERIA DE PVC 4 PULG CANALETA DE PVC, VALVULA CHECK, BOMBA DE 5 HP PRUEBAS DE BOMBEO DE CISTERNA A TINACO, MATERIAL, MANO DE OBRA, HERRAMIENTA, EQUIPO Y TODO LO NECESARIO PARA SU CORRECTO FUNCIONAMENTO."},{"$f":"+'b)Estandar (E)'!E64","v":"PZA"},1,{"$f":"+'b)Estandar (E)'!G64","v":2455.6799999999998},null,2455.6799999999998,null,{"$f":"+'b)Estandar (E)'!F64","v":1},1,1]
[{"$f":"+'b)Estandar (E)'!C65","v":"INS-13"},{"$f":"+'b)Estandar (E)'!D65","v":"SUMINISTRO Y COLOCACION DE CISTERNA  PREFABRICADA PARA CAPTACION DE AGUA PLUVIAL  1200 LTS. 1*4* 1.4  MTS,  INCLUYE: TAPA ROSCADA, LIMPIEZA, CARGA Y ACARREO DENTRO Y FUERA DE LA OBRA Y TODO LO NECESARIO PARA SU CORRECTA EJECUCION Y FUNCIONAMENTO."},{"$f":"+'b)Estandar (E)'!E65","v":"PZA"},1,{"$f":"+'b)Estandar (E)'!G65","v":4823.83},null,4823.83,null,{"$f":"+'b)Estandar (E)'!F65","v":1},1,1]
[null,null,null,{"$f":"+A52","v":"INSTALACIÓN HIDRO-SANITARIA"},null,null,{"$f":"+SUM(G53:H65)","v":15671.91}]
[{"$f":"+'b)Estandar (E)'!D70","v":"INSTALACIÓN ELÉCTRICA"},{"$f":"+Hoja4!D28","v":"      INSTALACIONES ELECTRICAS"},{"$f":"+Hoja4!E28","v":0},{"$f":"+K67","v":0},null,null,0,null,{"$f":"+Hoja4!F28","v":0},1,0]
[{"$f":"+'b)Estandar (E)'!C71","v":"ELEC-01"},{"$f":"+'b)Estandar (E)'!D71","v":"SALIDA PARA ACOMETIDA ELÉCTRICA ADOSADA EN EL EXTERIOR DEL MURO DEL EDIFICIO CON COLOCACIÓN DE CENTRO DE CARGA QO-2, CON INTERRUPTOR TERMOMAGNÉTICO DE 15 AMP, INCLUYE MATERIALES, ACARREOS, MANO DE OBRA, LIMPIEZA Y TODOS LOS ACCESORIOS Y MATERIALES NECESARIOS PARA SU CORRECTA COLOCACIÓN."},{"$f":"+'b)Estandar (E)'!E71","v":"PZA"},1,{"$f":"+'b)Estandar (E)'!G71","v":1217.1199999999999},null,1217.1199999999999,null,{"$f":"+'b)Estandar (E)'!F71","v":1},3,1]
[{"$f":"+'b)Estandar (E)'!C72","v":"ELEC-02"},{"$f":"+'b)Estandar (E)'!D72","v":"SUMINISTRO E INSTALACIÓN DE SALIDA DE CENTRO Y/O ARBOTANTE DONDE INDIQUE EL PROYECTO, DEJANDO UNA PREPARACION PARA FUTUROS CRECIMIENTOS EN VOLADIZO DE LOSA DE COCINA, INCLUYE POLIDUCTO NARANJA REFORZADO, CAJA GALVANIZADA, CABLE No.14, SOQUET DE PLÁSTICO O DE PORCELANA, RANURADO, RESANE DE ALBAÑILERÍA, PRUEBA ELÉCTRICA, LIMPIEZA, MANO DE OBRA, Y TODO LO NECESARIO PARA SU CORRECTA INSTALACIÓN Y FUNCIONAMIENTO."},{"$f":"+'b)Estandar (E)'!E72","v":"SAL"},9,{"$f":"+'b)Estandar (E)'!G72","v":278.63},null,2507.67,null,{"$f":"+'b)Estandar (E)'!F72","v":9},3,9]
[{"$f":"+'b)Estandar (E)'!C73","v":"ELEC-03"},{"$f":"+'b)Estandar (E)'!D73","v":"SUMINISTRO E INSTALACIÓN DE SALIDA DE APAGADOR DONDE INDIQUE EL PROYECTO, INCLUYE POLIDUCTO NARANJA REFORZADO, CAJA GALVANIZADA, CABLE No.14, PLACA DE PLÁSTICO MARCA QUINZIÑO O SIMILAR, RANURADO, RESANE DE ALBAÑILERÍA, PRUEBA ELÉCTRICA, LIMPIEZA, MANO DE OBRA, Y TODO LO NECESARIO PARA SU CORRECTA INSTALACIÓN Y FUNCIONAMIENTO."},{"$f":"+'b)Estandar (E)'!E73","v":"SAL"},9,{"$f":"+'b)Estandar (E)'!G73","v":223.85},null,2014.65,null,{"$f":"+'b)Estandar (E)'!F73","v":9},3,9]
[{"$f":"+'b)Estandar (E)'!C74","v":"ELEC-04"},{"$f":"+'b)Estandar (E)'!D74","v":"SUMINISTRO E INSTALACIÓN DE SALIDA DE CONTACTO DONDE INDIQUE EL PROYECTO, INCLUYE POLIDUCTO NARANJA REFORZADO, CAJA GALVANIZADA, CABLE No.12, PLACA DE PLÁSTICO MARCA QUINZIÑO O SIMILAR, RANURADO, RESANE DE ALBAÑILERÍA, PRUEBA ELÉCTRICA, LIMPIEZA, MANO DE OBRA, Y TODO LO NECESARIO PARA SU CORRECTA INSTALACIÓN Y FUNCIONAMIENTO."},{"$f":"+'b)Estandar (E)'!E74","v":"SAL"},8,{"$f":"+'b)Estandar (E)'!G74","v":235.9},null,1887.2,null,{"$f":"+'b)Estandar (E)'!F74","v":8},3,8]
[{"$f":"+'b)Estandar (E)'!C75","v":"ELEC-05"},{"$f":"+'b)Estandar (E)'!D75","v":"SUMINISTRO Y COLOCACION DE FOCOS AHORRADORES DE 13 WATTS, INCLUYE CARGA, COLOCACION Y ACARREO DENTRO Y FUERA DE LA OBRA"},{"$f":"+'b)Estandar (E)'!E75","v":"PZA"},9,{"$f":"+'b)Estandar (E)'!G75","v":57.99},null,521.91,null,{"$f":"+'b)Estandar (E)'!F75","v":9},3,9]
[null,null,null,{"$f":"+A67","v":"INSTALACIÓN ELÉCTRICA"},null,null,{"$f":"SUM(G68:H72)","v":8148.55},null,null,null,0]
[{"$f":"+'b)Estandar (E)'!D80","v":"CANCELERIA"},{"$f":"+Hoja4!D35","v":0},{"$f":"+Hoja4!E35","v":0},{"$f":"+K74","v":0},null,null,{"$f":"D74*E74","v":0},null,{"$f":"+Hoja4!F35","v":0},1,0]
[{"$f":"+'b)Estandar (E)'!C81","v":"CAN-01"},{"$f":"+'b)Estandar (E)'!D81","v":"SUMINISTRO Y COLOCACIÓN DE PUERTA DE ACCESO A LA VIVIENDA, PREFABRICADA MULTIPANEL MIXTA ESTAMPADA (6 TABLEROS) PARA EXTERIORES, DE 0.90 X 2.10 MTS O LA COTA FINAL QUE INDIQUE LA DIRECCIÓN DE LA OBRA, LINEA VALSA O SIMILAR, COLOR BLANCO OSTIÓN, INCLUYE, MARCO METÁLICO DE MEDIO CAJÓN CON PROTECCIÓN DE PRAIMER Y ACABADO A DOS MANOS DE ESMAPZA EN COLOR BLANCO, CHAPA METÁLICA CON CERRADURA, 3 BISAGRAS LATONADAS, SELLADO CON ACRILASTIC EN AMBAS CARAS, LIMPIEZA, CARGA Y DESCARGA DE MATERIAL DENTRO Y FUERA DE LA OBRA Y TODO LO NECESARIO PARA SU CORRECTA COLOCACIÓN Y FUNCIONAMIENTO."},{"$f":"+'b)Estandar (E)'!E81","v":"PZA"},1,{"$f":"+'b)Estandar (E)'!G81","v":1604.61},null,1604.61,null,{"$f":"+'b)Estandar (E)'!F81","v":1},3,1]
[{"$f":"+'b)Estandar (E)'!C82","v":"CAN-02"},{"$f":"+'b)Estandar (E)'!D82","v":"SUMINISTRO Y COLOCACIÓN DE PUERTA TRASERA A LA VIVIENDA PREFABRICADA MULTIPANEL LISA PARA EXTERIORES, DE 0.90 x 2.10M O LA COTA FINAL QUE INDIQUE LA DIRECCION DE LA OBRA, LINEA VALSA O SIMILAR, COLOR BLANCO OSTIÓN, INCLUYE, MARCO METÁLICO DE MEDIO CAJÓN CON PROTECCIÓN DE PRAIMER Y ACABADO A DOS MANOS DE ESMAPZA EN COLOR BLANCO, CHAPA METÁLICA CON CERRADURA, 3 BISAGRAS LATONADAS, SELLADO CON ACRILASTIC EN AMBAS CARAS, LIMPIEZA, CARGA Y DESCARGA DE MATERIAL DENTRO Y FUERA DE LA OBRA Y TODO LO NECESARIO PARA SU CORRECTA COLOCACIÓN Y FUNCIONAMIENTO."},{"$f":"+'b)Estandar (E)'!E82","v":"PZA"},1,{"$f":"+'b)Estandar (E)'!G82","v":1226.92},null,1226.92,null,{"$f":"+'b)Estandar (E)'!F82","v":1},3,1]
[{"$f":"+'b)Estandar (E)'!C83","v":"CAN-03"},{"$f":"+'b)Estandar (E)'!D83","v":"SUMINISTRO Y COLOCACIÓN DE PUERTA DE RECAMARA DE MADERA DE TAMBOR DE 0.80 X 2.10 MTS. BASTIDOR DE MADERA, ACABADO EN COLOR BLANCO OSTION LÍNEA RETIVALSA O SIMILAR, INCLUYE MARCO METÁLICO DE MEDIO CAJÓN CON PROTECCIÓN DE PRAIMER Y ACABADO A DOS MANOS DE ESMAPZA EN COLOR BLANCO, CHAPA METÁLICA ACABADO COLOR SATINADO O LATON CON CERRADURA, 3 BISAGRAS DE LIBRO LATONADAS, SELLADO CON ACRILASTIC EN AMBAS CARAS, LIMPIEZA, CARGA, ACARREO DE MATERIAL DENTRO Y FUERA DE LA OBRA Y TODO LO NECESARIO PARA SU CORRECTO FUNCIONAMIENTO."},{"$f":"+'b)Estandar (E)'!E83","v":"PZA"},2,{"$f":"+'b)Estandar (E)'!G83","v":1359.47},null,2718.94,null,{"$f":"+'b)Estandar (E)'!F83","v":2},3,2]
[{"$f":"+'b)Estandar (E)'!C84","v":"CAN-04"},{"$f":"+'b)Estandar (E)'!D84","v":"SUMINISTRO Y COLOCACIÓN DE PUERTA DE BAÑO PREFABRICADA MULTIPANEL METALICA LISA DE 0.70 X 2.10 MTS. O LA COTA FINAL QUE INDIQUE LA DIRECCION DE LA OBRA  LINEA VALSA O SIMILAR, COLOR BLANCO OSTIÓN, INCLUYE MARCO METÁLICO DE MEDIO CAJÓN CON PROTECCIÓN DE PRAIMER Y ACABADO A DOS MANOS DE ESMAPZA EN COLOR BLANCO, CHAPA METÁLICA ACABADO COLOR SATINADO O LATON CON SEGURO, 3 BISAGRAS DE LIBRO LATONADAS, SELLADO CON ACRILASTIC EN AMBAS CARAS, LIMPIEZA, CARGA, ACARREO DE MATERIAL DENTRO Y FUERA DE LA OBRA Y TODO LO NECESARIO PARA SU CORRECTO FUNCIONAMIENTO."},{"$f":"+'b)Estandar (E)'!E84","v":"PZA"},1,{"$f":"+'b)Estandar (E)'!G84","v":924.7},null,924.7,null,{"$f":"+'b)Estandar (E)'!F84","v":1},3,1]
[{"$f":"+'b)Estandar (E)'!C85","v":"CAN-05"},{"$f":"+'b)Estandar (E)'!D85","v":"SUMINISTRO Y COLOCACIÓN DE VENTANA PARA SALA, RECAMARA Y USOS MÚLTIPLES, DE 1.20 x 1.20 M. CON CELOSIA INTEGRADA DE ALUMINIO LÍNEA 1-1/2\" ANODIZADO NATURAL, CON VIDRIO CLARO DE 3MM, JALADERA, CARRETILLAS, APLICACIÓN DE SELLO CON ACRILASTIC EN AMBAS CARAS, LIMPIEZA, CARGA Y ACARREO DE MATERIAL DENTRO Y FUERA DE OBRA Y TODO LO NECESARIO PARA SU CORRECTO FUNCIONAMIENTO."},{"$f":"+'b)Estandar (E)'!E85","v":"PZA"},4,{"$f":"+'b)Estandar (E)'!G85","v":732.5},null,2930,null,{"$f":"+'b)Estandar (E)'!F85","v":4},3,4]
[{"$f":"+'b)Estandar (E)'!C86","v":"CAN-06"},{"$f":"+'b)Estandar (E)'!D86","v":"SUMINISTRO Y COLOCACIÓN DE VENTANA PARA SALA, RECAMARA Y USOS MÚLTIPLES, DE 0.40 x 0.60 M. CON CELOSIA INTEGRADA DE ALUMINIO LÍNEA 1-1/2\" ANODIZADO NATURAL, CON VIDRIO CLARO DE 3MM, JALADERA, CARRETILLAS, APLICACIÓN DE SELLO CON ACRILASTIC EN AMBAS CARAS, LIMPIEZA, CARGA Y ACARREO DE MATERIAL DENTRO Y FUERA DE OBRA Y TODO LO NECESARIO PARA SU CORRECTO FUNCIONAMIENTO."},{"$f":"+'b)Estandar (E)'!E86","v":"PZA"},1,{"$f":"+'b)Estandar (E)'!G86","v":566.03},null,566.03,null,{"$f":"+'b)Estandar (E)'!F86","v":1},3,1]
[null,null,null,{"$f":"+A74","v":"CANCELERIA"},null,null,{"$f":"SUM(G75:H80)","v":9971.2000000000007},null,null,null,0]
[{"$f":"+'b)Estandar (E)'!D90","v":"EQUIPAMENTO"},{"$f":"+Hoja4!D43","v":0},{"$f":"+Hoja4!E43","v":0},{"$f":"+K82","v":0},null,null,{"$f":"D82*E82","v":0},null,{"$f":"+Hoja4!F43","v":0},1,0]
[{"$f":"+'b)Estandar (E)'!C91","v":"EQUI-01"},{"$f":"+'b)Estandar (E)'!D91","v":"SUMINISTRO Y COLOCACIÓN DE BIODIGESTOR DE POLIETILENO  COLOR NEGRO MARCA ROTOPLAS O SIMILAR, INCLUYE, TAPA ROSCADA, REGISTRO DE LODOS COLOR NEGRO, EXCAVACION. LIMPIEZA, CARGA Y ACARREO DENTRO Y FUERA DE LA OBRA Y TODO LO NECESARIO PARA SU CORRECTA COLOCACIÓN Y FUNCIONAMIENTO."},{"$f":"+'b)Estandar (E)'!E91","v":"PZA"},1,{"$f":"+'b)Estandar (E)'!G91","v":8125.15},null,8125.15,null,{"$f":"+'b)Estandar (E)'!F91","v":1},3,1]
[{"$f":"+'b)Estandar (E)'!C92","v":"EQUI-02"},{"$f":"+'b)Estandar (E)'!D92","v":"SUMINISTRO Y COLOCACION DE ESTUFA ECOLOGICA PATSARI MCA. GIRA, HECHA EN OBRA A BASE DE TABIQUE, BARRO, MORTERO Y ARENA, INCLUYE JUEGO DE TUBO DE CHIMENEA, JUEGO DE COMALES, GORROS, PROTECCION Y PARRILLA DE CAMARAS DE  COMBUSTION, BASE HECHA EN OBRA CON LOSA ARMADA DE CONCRETO 10 CMS Fc=150 KG/CM2 Y MALLA ELECTROSOLDADA 6-6/10*10 Y BLOCK DE 12*20*40CMS A UNA ALTURA DE 50 CMS, INCLUYE: MATERIAL, MANO DE OBRA, HERRAMIENTA, EQUIPO Y TODO LO NECESARIO PARA SU CORRECTO FUNCIONAMIENTO."},{"$f":"+'b)Estandar (E)'!E92","v":"PZA."},1,{"$f":"+'b)Estandar (E)'!G92","v":2946.4},null,2946.4,null,{"$f":"+'b)Estandar (E)'!F92","v":1},3,1]
[null,null,null,{"$f":"+A82","v":"EQUIPAMENTO"},null,null,{"$f":"SUM(G83:H84)","v":11071.55},null,null,null,0]
[{"$f":"+'b)Estandar (E)'!D96","v":"LIMPIEZA"},{"$f":"+Hoja4!D47","v":0},{"$f":"+Hoja4!E47","v":0},{"$f":"+K86","v":0},null,null,{"$f":"D86*E86","v":0},null,{"$f":"+Hoja4!F47","v":0},1,0]
[{"$f":"+'b)Estandar (E)'!C97","v":"LIM-01"},{"$f":"+'b)Estandar (E)'!D97","v":"LIMPIEZA FINAL, INCLUYE CARGA,  ACARREO DENTRO Y FUERA DE LA OBRA, DURANTE EL PROCESO LO REQUIERA EN VARIAS ETAPAS."},{"$f":"+'b)Estandar (E)'!E97","v":"M2"},55.44,{"$f":"+'b)Estandar (E)'!G97","v":9.67},null,536.1,null,{"$f":"+'b)Estandar (E)'!F97","v":55.44},3,55.44]
[null,null,null,{"$f":"+A86","v":"LIMPIEZA"},null,null,{"$f":"+G87","v":536.1},null,null,null,0]
[]
[]
["TOTAL DE PRESUPUESTO **                                             ",null,null,"TOTAL DE PRESUPUESTO",null,null,{"$f":"+G16+G26+G36+G49+G66+G73+G81+G85+G88","v":140000}]

{"sheet":"F-22 CATAL (3)","index":2,"n_rows":91,"n_cols":11,"rows_kept":91,"cut":false,"hidden":true,"merged":[[0,6,0,7],[2,2,3,7],[4,6,4,7],[6,0,7,1],[6,2,7,5],[6,6,7,7],[14,6,14,7],[15,3,15,5],[15,6,15,7],[18,0,18,2],[18,3,18,7],[19,6,19,7],[9,0,9,2],[9,3,9,7],[10,6,10,7],[12,0,12,2],[12,3,12,7],[13,6,13,7],[26,3,26,7],[28,0,28,2],[28,3,28,7],[29,6,29,7],[30,6,30,7],[31,6,31,7],[20,6,20,7],[21,6,21,7],[22,6,22,7],[23,6,23,7],[24,6,24,7],[25,3,25,5],[25,6,25,7],[38,0,38,2],[38,3,38,7],[39,6,39,7],[40,6,40,7],[41,6,41,7],[42,6,42,7],[32,6,32,7],[33,6,33,7],[34,6,34,7],[35,3,35,5],[35,6,35,7],[36,3,36,7],[49,3,49,7],[51,0,51,2],[51,3,51,7],[52,6,52,7],[53,6,53,7],[54,6,54,7],[43,6,43,7],[44,6,44,7],[45,6,45,7],[46,6,46,7],[47,6,47,7],[48,3,48,5],[48,6,48,7],[61,6,61,7],[62,6,62,7],[63,6,63,7],[64,6,64,7],[65,3,65,5],[65,6,65,7],[55,6,55,7],[56,6,56,7],[57,6,57,7],[58,6,58,7],[59,6,59,7],[60,6,60,7],[71,6,71,7],[72,3,72,5],[72,6,72,7],[73,0,73,2],[73,3,73,7],[74,6,74,7],[66,0,66,2],[66,3,66,7],[67,6,67,7],[68,6,68,7],[69,6,69,7],[70,6,70,7],[81,0,81,2],[81,3,81,7],[82,6,82,7],[83,6,83,7],[84,3,84,5],[84,6,84,7],[75,6,75,7],[76,6,76,7],[77,6,77,7],[78,6,78,7],[79,6,79,7],[80,3,80,5],[80,6,80,7],[91,3,91,7],[85,0,85,2],[85,3,85,7],[86,6,86,7],[87,3,87,5],[87,6,87,7],[90,0,90,2],[90,3,90,5],[90,6,90,7]]}
[null,null,null,null,null,null,"FORMATO N0. 22"]
[]
[null,"COMISION DE VIVIENDA ","CATÁLOGO DE CONCEPTOS, CANTIDADES DE OBRA, PRECIOS UNITARIOS, IMPORTES PARCIALES Y TOTALES DE LA PROPUESTA"]
[null,"DEL ESTADO DE SONORA"]
[null,null,"FECHA DE PRESENTACIÓN DE LA PROPUESTA: ",null,null,null,{"$f":"IF(+datos!B10=\"\",\"\",+datos!B10)","v":""}]
[{"$f":"CONCATENATE(\"LICITACIÓN No.: \",+datos!B1)","v":"LICITACIÓN No.: "},null,"F. INICIO",{"$f":"IF(+datos!B6=\"\",\"\",+datos!B6)","v":""},"F. TERMINO",{"$f":"IF(+datos!B7=\"\",\"\",+datos!B7)","v":""},"PLAZO:",{"$f":"CONCATENATE(+datos!B8, \" DIAS NATURALES.\")","v":"150 DIAS NATURALES."}]
[{"$f":"+datos!B9","v":"TERMINACION DE CONSTRUCCIÓN DE 10(DIEZ ) UNIDAD BASICA DE VIVIENDA INDIGENA  DE 45 M2 EN AREA URBANA Y SEMIURBANA  A BASE DE LOSA DE CIMENTACIÓN, MUROS DE BLOCK, TECHO DE VIGUETA, INSTALACIONES ELÉCTRICAS, HIDRAULICAS, SANITARIAS, CANCELERIA Y EQUIPAMIENTO  EN VARIAS LOCALIDADES DEL MUNICIPIO DE BENITO JUAREZ, SONORA."},null,"(Nombre o razón social del licitante)",null,null,null,"(Nombre y firma del apoderado Legal)"]
[]
[]
[" ",null,null,"CANTIDADES DE OBRA, PRECIOS UNITARIOS E IMPORTES"]
["CLAVE","DESCRIPCIÓN","UNIDAD","CANTIDAD","P. UNIT. CON NUMERO","PRECIO UNIT. CON LETRA","IMPORTE",null,1]
[]
["PRELIMINARES",null,null,"PESOS 00/100 M.N.**"]
[{"$f":"+'b)Estandar (E)'!C14","v":"PRE-01"},{"$f":"+'b)Estandar (E)'!D14","v":"TRAZO Y NIVELACIÓN EN PLATAFORMA, PARA LA UBICACIÓN DE EJES, Y PERÍMETROS  DE LA LOSA DE CIMENTACIÓN, TRAZO DE DESPLANTE DE MUROS Y LOCALIZACIÓN DE CASTILLO INCLUYE MATERIALES, MANO DE OBRA Y TODO LO NECESARIO PARA SU CORRECTA EJECUCIÓN."},{"$f":"+'b)Estandar (E)'!E14","v":"M2"},{"$f":"+K14","v":55.44},{"$f":"+'b)Estandar (E)'!G14","v":3.88},null,{"$f":"D14*E14","v":215.11},null,{"$f":"+'b)Estandar (E)'!F14","v":55.44},44.56,{"$f":"+I14*$I$11","v":55.44}]
[{"$f":"+'b)Estandar (E)'!C15","v":"PRE-02"},{"$f":"+'b)Estandar (E)'!D15","v":"EXCAVACIÓN CON PALA DERECHA A MANO EN PLATAFORMA MEJORADA, INCLUYE AFINE DE TALUDES Y FONDO, PARA ALOJAR CIMENTACIÓN PROFUNDA DE 0.00 A 2.00 M INCLUYE LIMPIEZA Y ACARREOS DENTRO,  FUERA DE LA OBRA."},{"$f":"+'b)Estandar (E)'!E15","v":"M3"},{"$f":"+K15","v":1.89},{"$f":"+'b)Estandar (E)'!G15","v":111},null,209.79,null,{"$f":"+'b)Estandar (E)'!F15","v":1.89},9.8800000000000008,{"$f":"+I15*$I$11","v":1.89}]
[null,null,null,{"$f":"+A13","v":"PRELIMINARES"},null,null,{"$f":"+SUM(G14:H15)","v":424.9}]
[]
[]
[{"$f":"+'b)Estandar (E)'!D19","v":"ESTRUCTURAS"}]
[{"$f":"+'b)Estandar (E)'!C20","v":"EST-01"},{"$f":"+'b)Estandar (E)'!D20","v":"LOSA DE CIMENTACIÓN DE CONCRETO ARMADO DE 12 CM. DE ESPESOR, A BASE DE CONCRETO F'C=200 KG/CM2  CON AGREGADO MÁXIMO DE 38 MM HECHO EN OBRA O PREMEZCLADO, REFORZADO CON MALLA DE ACERO ELECTROSOLDADA CORRUGADA 6-6/8-8  Y CADENAS CON ARMEX 12x20 CM REFORZADAS CON  UN TRASLAPE MÍNIMO DE 10 CMS. EN LA MALLA Y 20 CMS EN EL ARMEX, CON BASTONES DE  VARILLAS DE 3/8\"  SEPARADAS SEGÚN PROYECTO E INCLUYE ARREGLO EN CHAROLA PARA BAÑO (PREPARACIÓN PARA RECIBIR LA INSTALACIÓN HIDROSANITARIA) HABILITADO, TRASLAPES, CIMBRA, DESCIMBRA, COLADO, VIBRADO POR MEDIOS MECANICOS, ACABADO LISO PULIDO, CURADO POR ASPERSIÓN, COLOCACIÓN DE POLIETILENO CAL. 600 EN TODA LA SUPERFICIE QUE ABARQUE EL ARMADO DE ACERO, PRUEBAS DE LABORATORIO, INCLUYE MATERIALES, MANO DE OBRA, LIMPIEZA, CARGA Y ACARREOS DENTRO Y FUERA DE LA OBRA, Y TODO LO NECESARIO PARA SU CORRECTA EJECUCIÓN Y CONSTRUCCIÓN."},{"$f":"+'b)Estandar (E)'!E20","v":"M2"},{"$f":"+K20","v":45.01},{"$f":"+'b)Estandar (E)'!G20","v":425.55},null,{"$f":"D20*E20","v":19154.009999999998},null,{"$f":"+'b)Estandar (E)'!F20","v":45.01},79.680000000000007,{"$f":"+I20*$I$11","v":45.01}]
[{"$f":"+'b)Estandar (E)'!C21","v":"EST-02"},{"$f":"+'b)Estandar (E)'!D21","v":"IMPERMEABILIZACIÓN EN LA LOSA DE CIMENTACIÓN ENTRE EL DESPLANTE DE LOS MUROS, CON EMULSIÓN ASFÁLTICA EMULCOAT O SIMILAR REBAJADA AL 50% CON  UNA CAPA DE 5MM DE ESPESOR, INCLUYE MATERIALES, MANO DE OBRA, ACARREOS Y TODO LO NECESARIO PARA SU CORRECTA INSTALACIÓN."},{"$f":"+'b)Estandar (E)'!E21","v":"ML"},36.270000000000003,{"$f":"+'b)Estandar (E)'!G21","v":25.35},null,919.44,null,{"$f":"+'b)Estandar (E)'!F21","v":36.270000000000003},79.680000000000007,36.270000000000003]
[{"$f":"+'b)Estandar (E)'!C22","v":"EST-03."},{"$f":"+'b)Estandar (E)'!D22","v":"MURO    A  PLOMO  HASTA  UNA  ALTURA  DE  2.55  MT,  DE  BLOCK  NORMAL DE CONCRETO CON RESISTENCIA MÍNIMA DE 50 KG/CM2 CON DIMENSIONES 12x20x40, ASENTADO CON MORTERO CEMENTO-ARENA 1:5, CON ACABADO APARENTE AMBAS CARAS CON JUNTA VACÍA O BOLEADA, INCLUYE LECHO SUPERIOR DE VANOS DE PUERTAS INTERIORES Y EXTERIORES, ASÍ COMO VENTANAS, SOSTENIDOS CON CADENAS INTERMEDIAS, CARGA Y ACARREO DE MATERIAL DENTRO Y FUERA DE LA OBRA, PRUEBAS DE LABORATORIO AL BLOCK Y MORTERO, MANO DE OBRA Y TODO LO NECESARIO PARA SU CORRECTA EJECUCIÓN Y CONSTRUCCIÓN.ARA SU CORRECTA EJECUCIÓN Y CONSTRUCCIÓN."},{"$f":"+'b)Estandar (E)'!E22","v":"M2"},89.49,{"$f":"+'b)Estandar (E)'!G22","v":189.71},null,16977.150000000001,null,{"$f":"+'b)Estandar (E)'!F22","v":89.49},79.680000000000007,89.49]
[{"$f":"+'b)Estandar (E)'!C23","v":"EST-04"},{"$f":"+'b)Estandar (E)'!D23","v":"CASTILLO CON SECCIÓN 12 X 12 CM DE CONCRETO CON RESISTENCIA F'C 150 KG/CM2 AGREGADO MÁXIMO 19 MM EL CONCRETO SERÁ HECHO EN OBRA O PREMEZCLADO REFORZADO CON ARMEX 08x08-4 , UNICAMENTE HASTA LA LOSA MACIZA DEL ENTREPISO CON RECUBRIMIENTO MÍNIMO DE 1 CM PROMEDIO, EL ANCLAJE DE LOS CASTILLOS DEBERÁ SER DE 30CM HACIA LA CIMENTACIÓN Y HACIA LA LOSA DE AZOTEA, ACABADO APARENTE,  INCLUYE HABILITADO, TRASLAPES DE ACERO, COLADO, VIBRADO, MATERIAL , MANO DE OBRA, LIMPIEZA CARGA Y ACARREO DENTRO Y FUERA DE LA OBRA Y TODO LO NECESARIO PARA SU CORRECTA EJECUCIÓN Y CONSTRUCCIÓN."},{"$f":"+'b)Estandar (E)'!E23","v":"ML"},59.85,{"$f":"+'b)Estandar (E)'!G23","v":90.91},null,5440.96,null,{"$f":"+'b)Estandar (E)'!F23","v":59.85},79.680000000000007,59.85]
[{"$f":"+'b)Estandar (E)'!C24","v":"EST-05"},{"$f":"+'b)Estandar (E)'!D24","v":"DALA DE CERRAMIENTO DE CONCRETO HECHO EN OBRA FC=150 KG/CM2, Y ARMADURA PREFABRICADA DE ARMEX 08*16/4,  INCLUYE: MATERIAL, HERRAMIENTA,MANO DE OBRA Y TODO LO NECESARIO PARA SU CORRECTA EJECUCION."},{"$f":"+'b)Estandar (E)'!E24","v":"ML"},42.48,{"$f":"+'b)Estandar (E)'!G24","v":97.14},null,4126.51,null,{"$f":"+'b)Estandar (E)'!F24","v":42.48},79.680000000000007,42.48]
[{"$f":"+'b)Estandar (E)'!C25","v":"EST-06"},{"$f":"+'b)Estandar (E)'!D25","v":"LOSA DE AZOTEA A BASE DE VIGUETA 12-3 Y CASETON DE POLIESTIRENO, CON UNA CAPA DE COMPRESION  CON CONCRETO F'c=200 KG/CM2 DE 4 CM2 DE ESPESOR Y ACERO DE REFUERZO CON MALLA ELECTROSOLDADA 6*6-10/10;  INCLUYE CIMBRA COMUN,   INC. ARMADO, COLADO, DESCIMBRADO, HERRAMIENTA Y MANO DE OBRA."},{"$f":"+'b)Estandar (E)'!E25","v":"M2"},47.8,{"$f":"+'b)Estandar (E)'!G25","v":396.14},null,18935.490000000002,null,{"$f":"+'b)Estandar (E)'!F25","v":47.8},79.680000000000007,47.8]
[null,null,null,{"$f":"+A19","v":"ESTRUCTURAS"},null,null,{"$f":"+SUM(G20:H25)","v":65553.56}]
[]
[]
[{"$f":"+'b)Estandar (E)'!D29","v":"ALBAÑILERÍA"}]
[{"$f":"+'b)Estandar (E)'!C30","v":"ALB-01."},{"$f":"+'b)Estandar (E)'!D30","v":"PRETIL DE 20 CM DE ALTURA A PLOMO Y NIVEL, DE BLOCK NORMAL DE CONCRETO O SIMILAR CON RESISTENCIA MÍNIMA DE 50 K/CM2 CON DIMENSIONES 12 20 40, ACABADO COMÚN, CON APLANADO FINO MÍNIMO DE 1CM DE ESPESOR EN LAS TRES CARAS, ASENTADO CON MORTERO CEMENTO-ARENA 1:5 INCLUYE MATERIALES, MANO DE OBRA, LIMPIEZA, CARGA Y  ACARREO DENTRO Y FUERA DE LA OBRA Y TODO LO NECESARIO PARA SU CORRECTA EJECUCIÓN Y CONSTRUCCIÓN."},{"$f":"+'b)Estandar (E)'!E30","v":"ML"},{"$f":"+K30","v":7.3},{"$f":"+'b)Estandar (E)'!G30","v":67.650000000000006},null,{"$f":"D30*E30","v":493.85},null,{"$f":"+'b)Estandar (E)'!F30","v":7.3},46.07,{"$f":"+I30*$I$11","v":7.3}]
[{"$f":"+'b)Estandar (E)'!C31","v":"ALB-02."},{"$f":"+'b)Estandar (E)'!D31","v":"BASE PARA TINACO A PLOMO Y NIVEL EN FORMA DE CRUZ A UNA ALTURA DE 1.50 MT TERMINADA DEL NIVEL DE LA CEBOLLA DE LA REGADERA, CON MURETES DE BLOCK NORMAL DE CONCRETO O SIMILAR CON RESISTENCIA MÍNIMA DE 50 K/CM2 CON DIMENSIONES 12 20 40 CM DE ESPESOR, ASENTADO CON MORTERO-ARENA 1:5 INCLUYE UN  CASTILLO DE REFUERZO AHOGADO EN EL EJE CENTRAL DEL ELEMENTO, EL DIÁMETRO DE LA LOSA ES DE 1.0M DE FORMA CIRCULAR CON 8CM DE ESPESOR REFORZADA CON MALLA ELECTROSOLDADA 6x6 10/10 CORRUGADA CON CONCRETO ARMADO F´C 200 KG/CM2 AGREGADO MÁXIMO 19 MM HECHO EN OBRA O PREMEZCLADO, EL ACABADO DE LA BASE ES FINO A BASE DE MORTERO CEMENTO-ARENA 1:6 Y APARENTE PARA LA LOSA, INCLUYE MATERIALES, HABILITADO DE ACERO, TRASLAPES, CIMBRA, DESCIMBRA, COLADO, VIBRADO, CURADO POR ASPERSIÓN, MANO DE OBRA, LIMPIEZA, CARGA Y ACARREO DENTRO Y FUERA DE LA OBRA Y TODO LO NECESARIO PARA SU CORRECTA EJECUCIÓN Y CONSTRUCCIÓN."},{"$f":"+'b)Estandar (E)'!E31","v":"PZA"},1,{"$f":"+'b)Estandar (E)'!G31","v":916.6},null,916.6,null,{"$f":"+'b)Estandar (E)'!F31","v":1},46.07,1]
[{"$f":"+'b)Estandar (E)'!C32","v":"ALB-03"},{"$f":"+'b)Estandar (E)'!D32","v":"CHAFLÁN DE 7x7 CM. DE MORTERO-ARENA 1:5 COLOCADO EN TODO EL PERÍMETRO DEL PRETIL Y DE LA BASE PARA EL TINACO Y/O DOMO EN CASO DE EXISTIR, INCLUYE MATERIAL, CARGA, ACARREO DENTRO Y FUERA DE LA OBRA, LIMPIEZA, MANO DE OBRA Y TODO LO NECESARIO PARA SU CORRECTA EJECUCIÓN Y CONSTRUCCIÓN."},{"$f":"+'b)Estandar (E)'!E32","v":"ML"},20.04,{"$f":"+'b)Estandar (E)'!G32","v":9.98},null,200,null,{"$f":"+'b)Estandar (E)'!F32","v":20.04},46.07,20.04]
[{"$f":"+'b)Estandar (E)'!C33","v":"ALB-04"},{"$f":"+'b)Estandar (E)'!D33","v":"SUMINISTRO Y APLICACIÓN DE IMPERMEABILIZACIÓN EN LOSA DE AZOTEA A BASE DE UNA CAPA DE PRIMARIO Y APLICACIÓN DE 2 CAPAS DE BITUFLEX O ACRÍLICO ELASTOMERICO (ACRITÓN) PARA TRES AÑOS O SIMILAR CON LA COLOCACION DE IMPERMEABILIZANTE PREFABRICADO SOLDABLE EN LA JUNTA CONSTRUCTIVA A TODO LO LARGO Y UNA VUELTA DE 5CM EN LOS EXTREMOS, CON REFUERZO DE UNA CAPA DE MEMBRANA TRASLAPADA 10 CM, SE SELLARAN TODAS LAS FISURAS EN LA LOSA Y JUNTAS CONSTRUCTIVAS CON RESINA EPOXICA O SIMILAR PREVIO A LA COLOCACIÓN DEL PRIMARIO, COMO TERMINADO SE APLICARA UNA CAPA DE COLOR TERRACOTA Ò SI SE APLICA MATERIAL ACRÍLICO COLOR BLANCO PREFERENTEMENTE, INCLUYE MATERIAL, ACARREOS, MANO DE OBRA Y TODO LO NECESARIO PARA SU CORRECTA EJECUCIÓN."},{"$f":"+'b)Estandar (E)'!E33","v":"M2"},55.1,{"$f":"+'b)Estandar (E)'!G33","v":54.89},null,3024.44,null,{"$f":"+'b)Estandar (E)'!F33","v":55.1},46.07,55.1]
[{"$f":"+'b)Estandar (E)'!C34","v":"ALB-05"},{"$f":"+'b)Estandar (E)'!D34","v":"REGISTRO SANITARIO A PLOMO Y NIVEL CON MEDIDAS INTERIORES 40x60 CM CON LA PROFUNDIDAD QUE INDIQUE EL PROYECTO DE DESCARGA SANITARIA, ELABORADO A BASE  DE BLOCK NORMAL DE CONCRETO O SIMILAR CON RESISTENCIA MINIMA DE 50 KG/CM2 CON DIMENSIONES 12x20x40cm DE ESPESOR JUNTEADO CON MORTERO CEMENTO-ARENA 1:5 INCLUYE EXCAVACIÓN, NIVELACIÓN, PLANTILLA DE 3CM DE ESPESOR A BASE DE MORTERO CEMENTO ARENA 1:6, RECIBIR INSTALACIONES,  FORMACIÓN DE MEDIA CAÑA CON CONCRETO AL FONDO DEL MISMO, TAPA PARA REGISTRO CON MEDIDAS DE 48X68 CMS, DE 5.00 CMS. DE ESPESOR CON CONCRETO F'c=150 KG/CM2, R.N., AGREGADO MÁXIMO DE 3/4\", CON MARCO Y CONTRAMARCO METÁLICO DE SOLERA DE 1 1/2\"X1/8\", ARMADO CON ALAMBRÓN No2 (1/4\"), OREJA, ACABADO INTERIOR PULIDO, MANO DE OBRA, LIMPIEZA, CARGA Y ACARREO DENTRO Y FUERA DE LA OBRA Y TODO LO NECESARIO PARA SU CORRECTA EJECUCIÓN Y CONSTRUCCIÓN."},{"$f":"+'b)Estandar (E)'!E34","v":"PZA"},1,{"$f":"+'b)Estandar (E)'!G34","v":746.49},null,746.49,null,{"$f":"+'b)Estandar (E)'!F34","v":1},46.07,1]
[{"$f":"+'b)Estandar (E)'!C35","v":"ALB-06"},{"$f":"+'b)Estandar (E)'!D35","v":"COLOCACION DE HUELLA DE ACCESO A BASE DE CONCRETO CON RESISTENCIA F'C 100 KG/CM2 AGREGADO MÁXIMO 19 MM EL CONCRETO SERÁ HECHO EN OBRA O PREMEZCLADO DE 8 CM DE ESPESOR Y MEDIDAS 1.0 X 1.0 M, LEVE PENDIENTE DE 5MM HACIA AFUERA, INCLUYE CIMBRA, DESCIMBRA, ESCOBILLADO EN SENTIDO PERPENDICULAR A LA PUERTA Y RODAPIE EN LAS ORILLAS, MATERIALES, MANO DE OBRA, LIMPIEZA, CARGA Y ACARREO DE MATERIAL DENTRO Y FUERA DE OBRA Y TODO LO NECESARIO PARA SU CORRECTA EJECUCIÓN."},{"$f":"+'b)Estandar (E)'!E35","v":"PZA."},1,{"$f":"+'b)Estandar (E)'!G35","v":165.46},null,165.46,null,{"$f":"+'b)Estandar (E)'!F35","v":1},46.07,1]
[null,null,null,{"$f":"+A29","v":"ALBAÑILERÍA"},null,null,{"$f":"SUM(G30:H35)","v":5546.84}]
[]
[]
[{"$f":"+'b)Estandar (E)'!D39","v":"ACABADOS"}]
[{"$f":"+'b)Estandar (E)'!C40","v":"ACA-01"},{"$f":"+'b)Estandar (E)'!D40","v":"APLANADO FINO EN FACHADA PRINCIPAL CON 1.5 CM DE ESPESOR PROMEDIO CON MORTERO CEMENTO-ARENA 1:5 INCLUYE REPELLADO GRUESO (DEJANDO EL TIEMPO NECESARIO DE FRAGUADO NECESARIO PARA EVITAR LA CONTRACCIÓN DEL MATERIAL), INCLUYE: PERFILADO DE ARISTAS Y BOQUILLAS EN PUERTAS Y/O VENTANAS, RETIRO DE REBABA FINA Y PICADO EN ELEMENTOS ESTRUCTURALES ANTES DE SU APLICACIÓN, MATERIAL, MANO DE OBRA Y TODO LO NECESARIO PARA SU CORRECTA EJECUCIÓN."},{"$f":"+'b)Estandar (E)'!E40","v":"M2"},{"$f":"+K40","v":19.02},{"$f":"+'b)Estandar (E)'!G40","v":86.91},null,{"$f":"D40*E40","v":1653.03},null,{"$f":"+'b)Estandar (E)'!F40","v":19.02},null,{"$f":"+I40*$I$11","v":19.02}]
[{"$f":"+'b)Estandar (E)'!C41","v":"ACA-02"},{"$f":"+'b)Estandar (E)'!D41","v":"APLANADO ZARPEADO EN MUROS EXTERIORES ( MURO TRASERO ) A UNA ALTURA DE 2.60 MT, Y REGLA CON 1.0 CM DE ESPESOR PROMEDIO CON MORTERO-ARENA 1:5  INCLUYE  INCLUYE, MATERIALES, MANO DE OBRA, LIMPIEZA, CARGA Y ACARREO DE MATERIAL DENTRO Y FUERA DE OBRA Y TODO LO NECESARIO PARA SU CORRECTA EJECUCIÓN."},{"$f":"+'b)Estandar (E)'!E41","v":"M2"},19.809999999999999,{"$f":"+'b)Estandar (E)'!G41","v":58.32},null,1155.32,null,{"$f":"+'b)Estandar (E)'!F41","v":19.809999999999999},null,19.809999999999999]
[{"$f":"+'b)Estandar (E)'!C42","v":"ACA-03"},{"$f":"+'b)Estandar (E)'!D42","v":"APLANADO ZARPEADO EN MUROS EXTERIORES ( MUROS LATERALES ) A UNA ALTURA DE 2.80 MT, Y REGLA CON 1.0 CM DE ESPESOR PROMEDIO CON MORTERO-ARENA 1:5  INCLUYE  INCLUYE, MATERIALES, MANO DE OBRA, LIMPIEZA, CARGA Y ACARREO DE MATERIAL DENTRO Y FUERA DE OBRA Y TODO LO NECESARIO PARA SU CORRECTA EJECUCIÓN."},{"$f":"+'b)Estandar (E)'!E42","v":"M2"},35.67,{"$f":"+'b)Estandar (E)'!G42","v":58.32},null,2080.27,null,{"$f":"+'b)Estandar (E)'!F42","v":35.67},null,35.67]
[{"$f":"+'b)Estandar (E)'!C43","v":"ACA-04"},{"$f":"+'b)Estandar (E)'!D43","v":"EMBOQUILLADO EN PUERTAS Y VENTANAS CON MORTERO CEMENTO-ARENA 1:5, DE 1 CM. DE ESPESOR PROMEDIO, PERFILADO DEL VANO DEL ELEMENTO, INCLUYE EMBOQUILLADO DE ARISTAS EN JUNTA CONSTRUCTIVA PARA POSTERIORMENTE COLOCAR TAPAJUNTAS DE PVC DE 2\" Y 10CM DE ANCHO O UNA JUNTA CONSTRUCTIVA A BASE DE NIEVE SECA (POLIESTIRENO) DE 2\" DE ESPESOR EN FACHADA FRONTAL Y TRASERA, INCLUYE MATERIALES, MANO DE OBRA, LIMPIEZA, CARGA Y ACARREOS DENTRO Y FUERA DE LA OBRA Y TODO LO NECESARIO PARA SU CORRECTA EJECUCIÓN."},{"$f":"+'b)Estandar (E)'!E43","v":"ML"},46.8,{"$f":"+'b)Estandar (E)'!G43","v":28.08},null,1314.14,null,{"$f":"+'b)Estandar (E)'!F43","v":46.8},null,46.8]
[{"$f":"+'b)Estandar (E)'!C44","v":"ACA-05"},{"$f":"+'b)Estandar (E)'!D44","v":"APLANADO ZARPEADO EN MUROS INTERIORES A UNA ALTURA DE 2.50 MT, Y REGLA CON 1.0 CM DE ESPESOR PROMEDIO CON MORTERO-ARENA 1:5  INCLUYE  INCLUYE, MATERIALES, MANO DE OBRA, LIMPIEZA, CARGA Y ACARREO DE MATERIAL DENTRO Y FUERA DE OBRA Y TODO LO NECESARIO PARA SU CORRECTA EJECUCIÓN."},{"$f":"+'b)Estandar (E)'!E44","v":"M2"},113.23,{"$f":"+'b)Estandar (E)'!G44","v":58.32},null,6603.57,null,{"$f":"+'b)Estandar (E)'!F44","v":113.23},null,113.23]
[{"$f":"+'b)Estandar (E)'!C45","v":"ACA-06."},{"$f":"+'b)Estandar (E)'!D45","v":"SUMINISTRO Y APLICACIÓN DE PINTURA VINÍLICA EN FACHADA PRINCIPAL A DOS MANOS, INCLUYE 1 MANO DE SELLADOR 5x1, 2 MANOS DE PINTURA,  LIMPIEZA DE REBABAS, SE SELLARAN TODAS LAS FISURAS EN LOS APLANADOS Y JUNTAS CONSTRUCTIVAS CON RESINA EPOXICA O SIMILAR PREVIO A LA COLOCACIÓN DEL SELLADOR, CARGA Y ACARREOS DENTRO Y FUERA DE LA OBRA, LIMPIEZA DEL ÁREA DE TRABAJO INCLUYENDO PUERTAS Y VENTANAS Y TODO LO NECESARIO PARA SU CORRECTA EJECUCIÓN."},{"$f":"+'b)Estandar (E)'!E45","v":"M2"},19.02,{"$f":"+'b)Estandar (E)'!G45","v":36},null,684.72,null,{"$f":"+'b)Estandar (E)'!F45","v":19.02},null,19.02]
[{"$f":"+'b)Estandar (E)'!C46","v":"ACA-07"},{"$f":"+'b)Estandar (E)'!D46","v":"SUMINISTRO Y APLICACIÓN DE PINTURA VINÍLICA EN MUROS  INTERIORES (LA HABITACION PEQUEÑA SERA DE COLOR ROSA) Y PLAFON (TOTAL DE LA VIVIENDA) A DOS MANOS, INCLUYE 1 MANO DE SELLADOR 5x1, 2 MANOS DE PINTURA, LIMPIEZA DE REBABAS, SE SELLARAN TODAS LAS FISURAS EN LOS APLANADOS Y JUNTAS CONSTRUCTIVAS CON RESINA EPOXICA O SIMILAR PREVIO A LA COLOCACIÓN DEL SELLADOR, CARGA Y ACARREOS DENTRO Y FUERA DE LA OBRA, LIMPIEZA DEL ÁREA DE TRABAJO INCLUYENDO PUERTAS Y VENTANAS Y TODO LO NECESARIO PARA SU CORRECTA EJECUCIÓN."},{"$f":"+'b)Estandar (E)'!E46","v":"M2"},158.24,{"$f":"+'b)Estandar (E)'!G46","v":36},null,5696.64,null,{"$f":"+'b)Estandar (E)'!F46","v":158.24},null,158.24]
[{"$f":"+'b)Estandar (E)'!C47","v":"ACA-08"},{"$f":"+'b)Estandar (E)'!D47","v":"SUMINISTRO Y APLICACIÓN DE PINTURA VINÍLICA EN EXTERIORES ( EN FACHADA POSTERIOR Y LATERALES ) A DOS MANOS, INCLUYE 1 MANO DE SELLADOR 5x1, 2 MANOS DE PINTURA, LIMPIEZA DE REBABAS, SE SELLARAN TODAS LAS FISURAS EN LOS APLANADOS Y JUNTAS CONSTRUCTIVAS CON RESINA EPOXICA O SIMILAR PREVIO A LA COLOCACIÓN DEL SELLADOR, CARGA Y ACARREOS DENTRO Y FUERA DE LA OBRA, LIMPIEZA DEL ÁREA DE TRABAJO INCLUYENDO PUERTAS Y VENTANAS Y TODO LO NECESARIO PARA SU CORRECTA EJECUCIÓN."},{"$f":"+'b)Estandar (E)'!E47","v":"M2"},55.48,{"$f":"+'b)Estandar (E)'!G47","v":36},null,1997.28,null,{"$f":"+'b)Estandar (E)'!F47","v":55.48},null,55.48]
[{"$f":"+'b)Estandar (E)'!C48","v":"ACA-09"},{"$f":"+'b)Estandar (E)'!D48","v":"APLANADO DE PLAFOND A UNA CAPA CON MORTERO CG:C:P EN PROPORCION 1:18:9 DE 0.50 CM. DE ESPESOR PROMEDIO A PLOMO Y REGLA : INCLUYE ANDAMIOS, PERFILACIONES, MANO DE OBRA Y QUIPO."},{"$f":"+'b)Estandar (E)'!E48","v":"M2"},45.01,{"$f":"+'b)Estandar (E)'!G48","v":42},null,1890.42,null,{"$f":"+'b)Estandar (E)'!F48","v":45.01},null,45.01]
[null,null,null,{"$f":"+A39","v":"ACABADOS"},null,null,{"$f":"+SUM(G40:H48)","v":23075.39}]
[]
[]
[{"$f":"+'b)Estandar (E)'!D52","v":"INSTALACIÓN HIDRO-SANITARIA"}]
[{"$f":"+'b)Estandar (E)'!C53","v":"INS-01"},{"$f":"+'b)Estandar (E)'!D53","v":"SALIDA HIDRÁULICA SEGÚN PROYECTO POR MUEBLE (2-REGADERA, 1-W.C., 1-LAVABO, 1-TARJA, 1-LAVADERO, 1-TINACO, ) A BASE DE POLIPROPILENO LÍNEA ECOPLUS, TUBO-PLUS, CPVC Y/O SIMILAR COLOCACIÓN DE JARRO DE AIRE EN LA SALIDA DEL TINACO, INCLUYE, LIMPIEZA, CARGA Y ACARREO DENTRO Y FUERA DE LA OBRA, MANO DE OBRA, RANURADO, RESANES DE ALBAÑILERÍA, PRUEBA HIDROSTÁTICA, Y TODO LO NECESARIO PARA EL CORRECTO FUNCIONAMIENTO DEL MUEBLE."},{"$f":"+'b)Estandar (E)'!E53","v":"SAL"},{"$f":"+K53","v":6},{"$f":"+'b)Estandar (E)'!G53","v":197.92},null,{"$f":"D53*E53","v":1187.52},null,{"$f":"+'b)Estandar (E)'!F53","v":6},1,{"$f":"+I53*$I$11","v":6}]
[{"$f":"+'b)Estandar (E)'!C54","v":"INS-02"},{"$f":"+'b)Estandar (E)'!D54","v":"SALIDA  SANITARIA DE PVC CON DIÁMETRO SEGÚN EL MUEBLE QUE INDIQUE EL PROYECTO (REGADERA, W.C., LAVABO, TARJA, LAVADERO) INCLUYE LIMPIEZA, CARGA Y ACARREO DENTRO Y FUERA DE LA OBRA DE MATERIALES, MANO DE OBRA, RANURADO, RESANES DE ALBAÑILERÍA, PRUEBA SANITARIA, TODO LO NECESARIO PARA EL CORRECTO FUNCIONAMIENTO DEL MUEBLE."},{"$f":"+'b)Estandar (E)'!E54","v":"SAL"},{"$f":"+K54","v":5},{"$f":"+'b)Estandar (E)'!G54","v":303.82},null,1519.1,null,{"$f":"+'b)Estandar (E)'!F54","v":5},1,5]
[{"$f":"+'b)Estandar (E)'!C55","v":"INS-03"},{"$f":"+'b)Estandar (E)'!D55","v":"SUMINISTRO Y COLOCACIÓN DE TUBO DE PVC SANITARIO CON CAMPANA DE 100 MM (4\") O LO QUE INDIQUE EL PROYECTO PARA CONEXIÓN DE REGISTRO DE DESCARGA DOMICILIARIA, JUNTEADO DICHA CONEXIÓN AL REGISTRO CON MORTERO PARA EVITAR FILTRACIONES INCLUYE EXCAVACIÓN, CAMA DE ARENA, TENDIDO, ACOSTILLADO, RELLENO COMPACTADO Y NIVELACIÓN, CARGA Y ACARREO DENTRO Y FUERA DE LA OBRA, MATERIALES, MANO DE OBRA, PRUEBA SANITARIA Y TODO LO NECESARIO PARA EL CORRECTO FUNCIONAMIENTO DE LA DESCARGA."},{"$f":"+'b)Estandar (E)'!E55","v":"ML"},10.5,{"$f":"+'b)Estandar (E)'!G55","v":53.63},null,563.12,null,{"$f":"+'b)Estandar (E)'!F55","v":10.5},1,10.5]
[{"$f":"+'b)Estandar (E)'!C56","v":"INS-04"},{"$f":"+'b)Estandar (E)'!D56","v":"SUMINISTRO, COLOCACIÓN Y CONEXIÓN DEL DISPARO DEL CUADRO DE MEDICIÓN HASTA LA CONEXIÓN AL TINACO, CON POLIDUCTO RD DE POLIPROPILENO LÍNEA ECOPLUS, TUBO-PLUS, CPVC Y/O SIMILAR Y TUBERÍA RÍGIDA DE 19 MM INCLUYE EXCAVACIÓN, TENDIDO, RELLENO, COMPACTACIÓN Y NIVELACIÓN, MATERIALES, MANO DE OBRA Y TODO LO NECESARIO PARA SU CORRECTO FUNCIONAMIENTO."},{"$f":"+'b)Estandar (E)'!E56","v":"ML"},15,{"$f":"+'b)Estandar (E)'!G56","v":52.49},null,787.35,null,{"$f":"+'b)Estandar (E)'!F56","v":15},1,15]
[{"$f":"+'b)Estandar (E)'!C57","v":"INS-05"},{"$f":"+'b)Estandar (E)'!D57","v":"SUMINISTRO Y COLOCACIÓN DE WC LÍNEA ECONÓMICA COLOR BLANCO DE GRADO ECOLOGICO MAXIMO 5 LTS., INCLUYE HERRAJES DE CONEXIÓN Y FUNCIONAMIENTO, JUNTAS SILICÓN, PRUEBA SANITARIA, SELLO DE CEMENTO GRIS EN SU BASE, LIMPIEZA, CARGA Y ACARREO DENTRO Y FUERA DE LA OBRA Y TODO LO NECESARIO PARA SU CORRECTA COLOCACIÓN Y FUNCIONAMIENTO."},{"$f":"+'b)Estandar (E)'!E57","v":"PZA"},1,{"$f":"+'b)Estandar (E)'!G57","v":755.36},null,755.36,null,{"$f":"+'b)Estandar (E)'!F57","v":1},1,1]
[{"$f":"+'b)Estandar (E)'!C58","v":"INS-06"},{"$f":"+'b)Estandar (E)'!D58","v":"SUMINISTRO Y COLOCACIÓN DE LAVABO LÍNEA ECONÓMICA COLOR BLANCO, INCLUYE LLAVE MEZCLADORA METÁLICA CROMADA CON DISPOSITIVO AHORRADOR DE AGUA, CESPOL DE PLÁSTICO RÍGIDO, CONTRAREJILLA, SOPORTES, SELLO ENTRE EL CONTACTO DEL LAVABO CON EL MURO A BASE DE SILICÓN TRANSPARENTE, LIMPIEZA, PRUEBA HIDROSANITARIA, CARGA Y ACARREO DE MATERIAL DENTRO Y FUERA DE LA OBRA Y TODO LO NECESARIO PARA SU CORRECTO FUNCIONAMIENTO."},{"$f":"+'b)Estandar (E)'!E58","v":"PZA"},1,{"$f":"+'b)Estandar (E)'!G58","v":682.81},null,682.81,null,{"$f":"+'b)Estandar (E)'!F58","v":1},1,1]
[{"$f":"+'b)Estandar (E)'!C59","v":"INS-07"},{"$f":"+'b)Estandar (E)'!D59","v":"SUMINISTRO Y COLOCACIÓN DE REGADERA CON DISPOSITIVO AHORRADOR DE AGUA INTEGRADO, LLAVES COLOCADAS HOSIZONTALMENTE, MANERALES Y CHAPETONES LÍNEA ECONÓMICA, METÁLICOS CROMADOS, INCLUYE, LIMPIEZA, CARGA, ACARREO DE MATERIALES DENTRO Y FUERA DE LA OBRA, PRUEBA HIDRÁULICA Y TODO LO NECESARIO PARA SU CORRECTO FUNCIONAMIENTO."},{"$f":"+'b)Estandar (E)'!E59","v":"PZA"},1,{"$f":"+'b)Estandar (E)'!G59","v":255.36},null,255.36,null,{"$f":"+'b)Estandar (E)'!F59","v":1},1,1]
[{"$f":"+'b)Estandar (E)'!C60","v":"INS-08"},{"$f":"+'b)Estandar (E)'!D60","v":"SUMINISTRO Y COLOCACIÓN DE LAVADERO CON TINA Y TALLADOR, AMACIZADO CON MORTERO-ARENA 1:5 INCLUYE ANCLAS, SOPORTE A BASE DE BLOCK NORMAL CON MEDIDAS DE 12*20*40, DE 80CM DE ALTURA, LLAVE DE NARIZ, PRUEBA HIDROSANITARIA, LIMPIEZA, CARGA Y ACARREO DENTRO Y FUERA DE LA OBRA Y TODO LO NECESARIO PARA SU CORRECTO FUNCIONAMIENTO."},{"$f":"+'b)Estandar (E)'!E60","v":"PZA"},1,{"$f":"+'b)Estandar (E)'!G60","v":420.42},null,420.42,null,{"$f":"+'b)Estandar (E)'!F60","v":1},1,1]
[{"$f":"+'b)Estandar (E)'!C61","v":"INS-09"},{"$f":"+'b)Estandar (E)'!D61","v":"SUMINISTRO Y COLOCACIÓN DE BOTE CESPOL CON COLADERA CROMADA DE 4\" PARA REGADERA DEL BAÑO FIJÁNDOLA CON MORTERO CEMENTO-ARENA 1:4, INCLUYE LIMPIEZA, CARGA, ACARREO DE MATERIAL DENTRO Y FUERA DE OBRA Y TODO LO NECESARIO PARA SU CORRECTO FUNCIONAMIENTO."},{"$f":"+'b)Estandar (E)'!E61","v":"PZA"},1,{"$f":"+'b)Estandar (E)'!G61","v":54.16},null,54.16,null,{"$f":"+'b)Estandar (E)'!F61","v":1},1,1]
[{"$f":"+'b)Estandar (E)'!C62","v":"INS-10"},{"$f":"+'b)Estandar (E)'!D62","v":"SUMINISTRO Y COLOCACIÓN DE TINACO DE POLIETILENO DE 450 LTS COLOR NEGRO MARCA ROTOPLAS O SIMILAR, INCLUYE, TAPA ROSCADA, VÁLVULA DE GLOBO ROSCADA (DE PASO), VARILLA FLOTADOR, LIMPIEZA, CARGA Y ACARREO DENTRO Y FUERA DE LA OBRA Y TODO LO NECESARIO PARA SU CORRECTA COLOCACIÓN Y FUNCIONAMIENTO."},{"$f":"+'b)Estandar (E)'!E62","v":"PZA"},1,{"$f":"+'b)Estandar (E)'!G62","v":1431.92},null,1431.92,null,{"$f":"+'b)Estandar (E)'!F62","v":1},1,1]
[{"$f":"+'b)Estandar (E)'!C63","v":"INS-11"},{"$f":"+'b)Estandar (E)'!D63","v":"SUMINISTRO Y COLOCACIÓN DE TARJA CON TINA, INCLUYE, SUMINISTRO Y COLOCACION, LIMPIEZA, CARGA Y ACARREO DENTRO Y FUERA DE LA OBRA Y TODO LO NECESARIO PARA SU CORRECTA COLOCACIÓN Y FUNCIONAMIENTO."},{"$f":"+'b)Estandar (E)'!E63","v":"PZA"},1,{"$f":"+'b)Estandar (E)'!G63","v":735.28},null,735.28,null,{"$f":"+'b)Estandar (E)'!F63","v":1},1,1]
[{"$f":"+'b)Estandar (E)'!C64","v":"INS-12"},{"$f":"+'b)Estandar (E)'!D64","v":"SUMINISTRO Y COLOCACION DE SISTEMA DE CAPTACION DE AGUA PLUVIAL CONECTADA A CISTERNA, INCLUYE: TUBERIA DE PVC 4 PULG CANALETA DE PVC, VALVULA CHECK, BOMBA DE 5 HP PRUEBAS DE BOMBEO DE CISTERNA A TINACO, MATERIAL, MANO DE OBRA, HERRAMIENTA, EQUIPO Y TODO LO NECESARIO PARA SU CORRECTO FUNCIONAMENTO."},{"$f":"+'b)Estandar (E)'!E64","v":"PZA"},1,{"$f":"+'b)Estandar (E)'!G64","v":2455.6799999999998},null,2455.6799999999998,null,{"$f":"+'b)Estandar (E)'!F64","v":1},1,1]
[{"$f":"+'b)Estandar (E)'!C65","v":"INS-13"},{"$f":"+'b)Estandar (E)'!D65","v":"SUMINISTRO Y COLOCACION DE CISTERNA  PREFABRICADA PARA CAPTACION DE AGUA PLUVIAL  1200 LTS. 1*4* 1.4  MTS,  INCLUYE: TAPA ROSCADA, LIMPIEZA, CARGA Y ACARREO DENTRO Y FUERA DE LA OBRA Y TODO LO NECESARIO PARA SU CORRECTA EJECUCION Y FUNCIONAMENTO."},{"$f":"+'b)Estandar (E)'!E65","v":"PZA"},1,{"$f":"+'b)Estandar (E)'!G65","v":4823.83},null,4823.83,null,{"$f":"+'b)Estandar (E)'!F65","v":1},1,1]
[null,null,null,{"$f":"+A52","v":"INSTALACIÓN HIDRO-SANITARIA"},null,null,{"$f":"+SUM(G53:H65)","v":15671.91}]
[{"$f":"+'b)Estandar (E)'!D70","v":"INSTALACIÓN ELÉCTRICA"},{"$f":"+Hoja4!D28","v":"      INSTALACIONES ELECTRICAS"},{"$f":"+Hoja4!E28","v":0},{"$f":"+K67","v":0},null,null,0,null,{"$f":"+Hoja4!F28","v":0},1,0]
[{"$f":"+'b)Estandar (E)'!C71","v":"ELEC-01"},{"$f":"+'b)Estandar (E)'!D71","v":"SALIDA PARA ACOMETIDA ELÉCTRICA ADOSADA EN EL EXTERIOR DEL MURO DEL EDIFICIO CON COLOCACIÓN DE CENTRO DE CARGA QO-2, CON INTERRUPTOR TERMOMAGNÉTICO DE 15 AMP, INCLUYE MATERIALES, ACARREOS, MANO DE OBRA, LIMPIEZA Y TODOS LOS ACCESORIOS Y MATERIALES NECESARIOS PARA SU CORRECTA COLOCACIÓN."},{"$f":"+'b)Estandar (E)'!E71","v":"PZA"},1,{"$f":"+'b)Estandar (E)'!G71","v":1217.1199999999999},null,1217.1199999999999,null,{"$f":"+'b)Estandar (E)'!F71","v":1},3,1]
[{"$f":"+'b)Estandar (E)'!C72","v":"ELEC-02"},{"$f":"+'b)Estandar (E)'!D72","v":"SUMINISTRO E INSTALACIÓN DE SALIDA DE CENTRO Y/O ARBOTANTE DONDE INDIQUE EL PROYECTO, DEJANDO UNA PREPARACION PARA FUTUROS CRECIMIENTOS EN VOLADIZO DE LOSA DE COCINA, INCLUYE POLIDUCTO NARANJA REFORZADO, CAJA GALVANIZADA, CABLE No.14, SOQUET DE PLÁSTICO O DE PORCELANA, RANURADO, RESANE DE ALBAÑILERÍA, PRUEBA ELÉCTRICA, LIMPIEZA, MANO DE OBRA, Y TODO LO NECESARIO PARA SU CORRECTA INSTALACIÓN Y FUNCIONAMIENTO."},{"$f":"+'b)Estandar (E)'!E72","v":"SAL"},9,{"$f":"+'b)Estandar (E)'!G72","v":278.63},null,2507.67,null,{"$f":"+'b)Estandar (E)'!F72","v":9},3,9]
[{"$f":"+'b)Estandar (E)'!C73","v":"ELEC-03"},{"$f":"+'b)Estandar (E)'!D73","v":"SUMINISTRO E INSTALACIÓN DE SALIDA DE APAGADOR DONDE INDIQUE EL PROYECTO, INCLUYE POLIDUCTO NARANJA REFORZADO, CAJA GALVANIZADA, CABLE No.14, PLACA DE PLÁSTICO MARCA QUINZIÑO O SIMILAR, RANURADO, RESANE DE ALBAÑILERÍA, PRUEBA ELÉCTRICA, LIMPIEZA, MANO DE OBRA, Y TODO LO NECESARIO PARA SU CORRECTA INSTALACIÓN Y FUNCIONAMIENTO."},{"$f":"+'b)Estandar (E)'!E73","v":"SAL"},9,{"$f":"+'b)Estandar (E)'!G73","v":223.85},null,2014.65,null,{"$f":"+'b)Estandar (E)'!F73","v":9},3,9]
[{"$f":"+'b)Estandar (E)'!C74","v":"ELEC-04"},{"$f":"+'b)Estandar (E)'!D74","v":"SUMINISTRO E INSTALACIÓN DE SALIDA DE CONTACTO DONDE INDIQUE EL PROYECTO, INCLUYE POLIDUCTO NARANJA REFORZADO, CAJA GALVANIZADA, CABLE No.12, PLACA DE PLÁSTICO MARCA QUINZIÑO O SIMILAR, RANURADO, RESANE DE ALBAÑILERÍA, PRUEBA ELÉCTRICA, LIMPIEZA, MANO DE OBRA, Y TODO LO NECESARIO PARA SU CORRECTA INSTALACIÓN Y FUNCIONAMIENTO."},{"$f":"+'b)Estandar (E)'!E74","v":"SAL"},8,{"$f":"+'b)Estandar (E)'!G74","v":235.9},null,1887.2,null,{"$f":"+'b)Estandar (E)'!F74","v":8},3,8]
[{"$f":"+'b)Estandar (E)'!C75","v":"ELEC-05"},{"$f":"+'b)Estandar (E)'!D75","v":"SUMINISTRO Y COLOCACION DE FOCOS AHORRADORES DE 13 WATTS, INCLUYE CARGA, COLOCACION Y ACARREO DENTRO Y FUERA DE LA OBRA"},{"$f":"+'b)Estandar (E)'!E75","v":"PZA"},9,{"$f":"+'b)Estandar (E)'!G75","v":57.99},null,521.91,null,{"$f":"+'b)Estandar (E)'!F75","v":9},3,9]
[null,null,null,{"$f":"+A67","v":"INSTALACIÓN ELÉCTRICA"},null,null,{"$f":"SUM(G68:H72)","v":8148.55},null,null,null,0]
[{"$f":"+'b)Estandar (E)'!D80","v":"CANCELERIA"},{"$f":"+Hoja4!D35","v":0},{"$f":"+Hoja4!E35","v":0},{"$f":"+K74","v":0},null,null,{"$f":"D74*E74","v":0},null,{"$f":"+Hoja4!F35","v":0},1,0]
[{"$f":"+'b)Estandar (E)'!C81","v":"CAN-01"},{"$f":"+'b)Estandar (E)'!D81","v":"SUMINISTRO Y COLOCACIÓN DE PUERTA DE ACCESO A LA VIVIENDA, PREFABRICADA MULTIPANEL MIXTA ESTAMPADA (6 TABLEROS) PARA EXTERIORES, DE 0.90 X 2.10 MTS O LA COTA FINAL QUE INDIQUE LA DIRECCIÓN DE LA OBRA, LINEA VALSA O SIMILAR, COLOR BLANCO OSTIÓN, INCLUYE, MARCO METÁLICO DE MEDIO CAJÓN CON PROTECCIÓN DE PRAIMER Y ACABADO A DOS MANOS DE ESMAPZA EN COLOR BLANCO, CHAPA METÁLICA CON CERRADURA, 3 BISAGRAS LATONADAS, SELLADO CON ACRILASTIC EN AMBAS CARAS, LIMPIEZA, CARGA Y DESCARGA DE MATERIAL DENTRO Y FUERA DE LA OBRA Y TODO LO NECESARIO PARA SU CORRECTA COLOCACIÓN Y FUNCIONAMIENTO."},{"$f":"+'b)Estandar (E)'!E81","v":"PZA"},1,{"$f":"+'b)Estandar (E)'!G81","v":1604.61},null,1604.61,null,{"$f":"+'b)Estandar (E)'!F81","v":1},3,1]
[{"$f":"+'b)Estandar (E)'!C82","v":"CAN-02"},{"$f":"+'b)Estandar (E)'!D82","v":"SUMINISTRO Y COLOCACIÓN DE PUERTA TRASERA A LA VIVIENDA PREFABRICADA MULTIPANEL LISA PARA EXTERIORES, DE 0.90 x 2.10M O LA COTA FINAL QUE INDIQUE LA DIRECCION DE LA OBRA, LINEA VALSA O SIMILAR, COLOR BLANCO OSTIÓN, INCLUYE, MARCO METÁLICO DE MEDIO CAJÓN CON PROTECCIÓN DE PRAIMER Y ACABADO A DOS MANOS DE ESMAPZA EN COLOR BLANCO, CHAPA METÁLICA CON CERRADURA, 3 BISAGRAS LATONADAS, SELLADO CON ACRILASTIC EN AMBAS CARAS, LIMPIEZA, CARGA Y DESCARGA DE MATERIAL DENTRO Y FUERA DE LA OBRA Y TODO LO NECESARIO PARA SU CORRECTA COLOCACIÓN Y FUNCIONAMIENTO."},{"$f":"+'b)Estandar (E)'!E82","v":"PZA"},1,{"$f":"+'b)Estandar (E)'!G82","v":1226.92},null,1226.92,null,{"$f":"+'b)Estandar (E)'!F82","v":1},3,1]
[{"$f":"+'b)Estandar (E)'!C83","v":"CAN-03"},{"$f":"+'b)Estandar (E)'!D83","v":"SUMINISTRO Y COLOCACIÓN DE PUERTA DE RECAMARA DE MADERA DE TAMBOR DE 0.80 X 2.10 MTS. BASTIDOR DE MADERA, ACABADO EN COLOR BLANCO OSTION LÍNEA RETIVALSA O SIMILAR, INCLUYE MARCO METÁLICO DE MEDIO CAJÓN CON PROTECCIÓN DE PRAIMER Y ACABADO A DOS MANOS DE ESMAPZA EN COLOR BLANCO, CHAPA METÁLICA ACABADO COLOR SATINADO O LATON CON CERRADURA, 3 BISAGRAS DE LIBRO LATONADAS, SELLADO CON ACRILASTIC EN AMBAS CARAS, LIMPIEZA, CARGA, ACARREO DE MATERIAL DENTRO Y FUERA DE LA OBRA Y TODO LO NECESARIO PARA SU CORRECTO FUNCIONAMIENTO."},{"$f":"+'b)Estandar (E)'!E83","v":"PZA"},2,{"$f":"+'b)Estandar (E)'!G83","v":1359.47},null,2718.94,null,{"$f":"+'b)Estandar (E)'!F83","v":2},3,2]
[{"$f":"+'b)Estandar (E)'!C84","v":"CAN-04"},{"$f":"+'b)Estandar (E)'!D84","v":"SUMINISTRO Y COLOCACIÓN DE PUERTA DE BAÑO PREFABRICADA MULTIPANEL METALICA LISA DE 0.70 X 2.10 MTS. O LA COTA FINAL QUE INDIQUE LA DIRECCION DE LA OBRA  LINEA VALSA O SIMILAR, COLOR BLANCO OSTIÓN, INCLUYE MARCO METÁLICO DE MEDIO CAJÓN CON PROTECCIÓN DE PRAIMER Y ACABADO A DOS MANOS DE ESMAPZA EN COLOR BLANCO, CHAPA METÁLICA ACABADO COLOR SATINADO O LATON CON SEGURO, 3 BISAGRAS DE LIBRO LATONADAS, SELLADO CON ACRILASTIC EN AMBAS CARAS, LIMPIEZA, CARGA, ACARREO DE MATERIAL DENTRO Y FUERA DE LA OBRA Y TODO LO NECESARIO PARA SU CORRECTO FUNCIONAMIENTO."},{"$f":"+'b)Estandar (E)'!E84","v":"PZA"},1,{"$f":"+'b)Estandar (E)'!G84","v":924.7},null,924.7,null,{"$f":"+'b)Estandar (E)'!F84","v":1},3,1]
[{"$f":"+'b)Estandar (E)'!C85","v":"CAN-05"},{"$f":"+'b)Estandar (E)'!D85","v":"SUMINISTRO Y COLOCACIÓN DE VENTANA PARA SALA, RECAMARA Y USOS MÚLTIPLES, DE 1.20 x 1.20 M. CON CELOSIA INTEGRADA DE ALUMINIO LÍNEA 1-1/2\" ANODIZADO NATURAL, CON VIDRIO CLARO DE 3MM, JALADERA, CARRETILLAS, APLICACIÓN DE SELLO CON ACRILASTIC EN AMBAS CARAS, LIMPIEZA, CARGA Y ACARREO DE MATERIAL DENTRO Y FUERA DE OBRA Y TODO LO NECESARIO PARA SU CORRECTO FUNCIONAMIENTO."},{"$f":"+'b)Estandar (E)'!E85","v":"PZA"},4,{"$f":"+'b)Estandar (E)'!G85","v":732.5},null,2930,null,{"$f":"+'b)Estandar (E)'!F85","v":4},3,4]
[{"$f":"+'b)Estandar (E)'!C86","v":"CAN-06"},{"$f":"+'b)Estandar (E)'!D86","v":"SUMINISTRO Y COLOCACIÓN DE VENTANA PARA SALA, RECAMARA Y USOS MÚLTIPLES, DE 0.40 x 0.60 M. CON CELOSIA INTEGRADA DE ALUMINIO LÍNEA 1-1/2\" ANODIZADO NATURAL, CON VIDRIO CLARO DE 3MM, JALADERA, CARRETILLAS, APLICACIÓN DE SELLO CON ACRILASTIC EN AMBAS CARAS, LIMPIEZA, CARGA Y ACARREO DE MATERIAL DENTRO Y FUERA DE OBRA Y TODO LO NECESARIO PARA SU CORRECTO FUNCIONAMIENTO."},{"$f":"+'b)Estandar (E)'!E86","v":"PZA"},1,{"$f":"+'b)Estandar (E)'!G86","v":566.03},null,566.03,null,{"$f":"+'b)Estandar (E)'!F86","v":1},3,1]
[null,null,null,{"$f":"+A74","v":"CANCELERIA"},null,null,{"$f":"SUM(G75:H80)","v":9971.2000000000007},null,null,null,0]
[{"$f":"+'b)Estandar (E)'!D90","v":"EQUIPAMENTO"},{"$f":"+Hoja4!D43","v":0},{"$f":"+Hoja4!E43","v":0},{"$f":"+K82","v":0},null,null,{"$f":"D82*E82","v":0},null,{"$f":"+Hoja4!F43","v":0},1,0]
[{"$f":"+'b)Estandar (E)'!C91","v":"EQUI-01"},{"$f":"+'b)Estandar (E)'!D91","v":"SUMINISTRO Y COLOCACIÓN DE BIODIGESTOR DE POLIETILENO  COLOR NEGRO MARCA ROTOPLAS O SIMILAR, INCLUYE, TAPA ROSCADA, REGISTRO DE LODOS COLOR NEGRO, EXCAVACION. LIMPIEZA, CARGA Y ACARREO DENTRO Y FUERA DE LA OBRA Y TODO LO NECESARIO PARA SU CORRECTA COLOCACIÓN Y FUNCIONAMIENTO."},{"$f":"+'b)Estandar (E)'!E91","v":"PZA"},1,{"$f":"+'b)Estandar (E)'!G91","v":8125.15},null,8125.15,null,{"$f":"+'b)Estandar (E)'!F91","v":1},3,1]
[{"$f":"+'b)Estandar (E)'!C92","v":"EQUI-02"},{"$f":"+'b)Estandar (E)'!D92","v":"SUMINISTRO Y COLOCACION DE ESTUFA ECOLOGICA PATSARI MCA. GIRA, HECHA EN OBRA A BASE DE TABIQUE, BARRO, MORTERO Y ARENA, INCLUYE JUEGO DE TUBO DE CHIMENEA, JUEGO DE COMALES, GORROS, PROTECCION Y PARRILLA DE CAMARAS DE  COMBUSTION, BASE HECHA EN OBRA CON LOSA ARMADA DE CONCRETO 10 CMS Fc=150 KG/CM2 Y MALLA ELECTROSOLDADA 6-6/10*10 Y BLOCK DE 12*20*40CMS A UNA ALTURA DE 50 CMS, INCLUYE: MATERIAL, MANO DE OBRA, HERRAMIENTA, EQUIPO Y TODO LO NECESARIO PARA SU CORRECTO FUNCIONAMIENTO."},{"$f":"+'b)Estandar (E)'!E92","v":"PZA."},1,{"$f":"+'b)Estandar (E)'!G92","v":2946.4},null,2946.4,null,{"$f":"+'b)Estandar (E)'!F92","v":1},3,1]
[null,null,null,{"$f":"+A82","v":"EQUIPAMENTO"},null,null,{"$f":"SUM(G83:H84)","v":11071.55},null,null,null,0]
[{"$f":"+'b)Estandar (E)'!D96","v":"LIMPIEZA"},{"$f":"+Hoja4!D47","v":0},{"$f":"+Hoja4!E47","v":0},{"$f":"+K86","v":0},null,null,{"$f":"D86*E86","v":0},null,{"$f":"+Hoja4!F47","v":0},1,0]
[{"$f":"+'b)Estandar (E)'!C97","v":"LIM-01"},{"$f":"+'b)Estandar (E)'!D97","v":"LIMPIEZA FINAL, INCLUYE CARGA,  ACARREO DENTRO Y FUERA DE LA OBRA, DURANTE EL PROCESO LO REQUIERA EN VARIAS ETAPAS."},{"$f":"+'b)Estandar (E)'!E97","v":"M2"},55.44,{"$f":"+'b)Estandar (E)'!G97","v":9.67},null,536.1,null,{"$f":"+'b)Estandar (E)'!F97","v":55.44},3,55.44]
[null,null,null,{"$f":"+A86","v":"LIMPIEZA"},null,null,{"$f":"+G87","v":536.1},null,null,null,0]
[]
[]
["TOTAL DE PRESUPUESTO **                                             ",null,null,"TOTAL DE PRESUPUESTO",null,null,{"$f":"+G16+G26+G36+G49+G66+G73+G81+G85+G88","v":140000}]

{"sheet":"b)Estandar (E)","index":3,"n_rows":123,"n_cols":11,"rows_kept":123,"cut":false,"hidden":true,"merged":[[108,4,108,6],[2,2,2,7],[9,2,9,7],[106,4,106,6],[106,7,106,8],[107,4,107,6],[115,4,115,6],[116,4,116,6],[116,7,116,8],[120,2,120,7],[109,4,109,6],[110,4,110,6],[111,4,111,6],[112,4,112,6],[113,4,113,6],[114,4,114,6]]}
[]
[]
[]
[null,null,"Obra:","CONSTRUCCION DE VIVIENDAS DE 45.00 M2"]
[null,null,"Frente:","SONORA"]
[null,null,"Municipio:","SONORA"]
[null,null,"Estado:","SONORA"]
[null,null,"Fecha:"]
[]
[null,null,"PRESUPUESTO DE OBRA"]
[null,null,"Código","Concepto","Unidad","Cantidad","P. Unitario","Importe"]
[]
[null,null,"1","PRELIMINARES"]
[null,null,"PRE-01","TRAZO Y NIVELACIÓN EN PLATAFORMA, PARA LA UBICACIÓN DE EJES, Y PERÍMETROS  DE LA LOSA DE CIMENTACIÓN, TRAZO DE DESPLANTE DE MUROS Y LOCALIZACIÓN DE CASTILLO INCLUYE MATERIALES, MANO DE OBRA Y TODO LO NECESARIO PARA SU CORRECTA EJECUCIÓN.","M2",55.44,3.88,{"$f":"(G14*F14)","v":215.11}]
[null,null,"PRE-02","EXCAVACIÓN CON PALA DERECHA A MANO EN PLATAFORMA MEJORADA, INCLUYE AFINE DE TALUDES Y FONDO, PARA ALOJAR CIMENTACIÓN PROFUNDA DE 0.00 A 2.00 M INCLUYE LIMPIEZA Y ACARREOS DENTRO,  FUERA DE LA OBRA.","M3",1.89,111,{"$f":"(G15*F15)","v":209.79}]
[]
[null,null,"1","TOTAL . PRELIMINARES",null,null,null,{"$f":"SUM(H14:H16)","v":424.9}]
[]
[null,null,"2","ESTRUCTURAS"]
[null,null,"EST-01","LOSA DE CIMENTACIÓN DE CONCRETO ARMADO DE 12 CM. DE ESPESOR, A BASE DE CONCRETO F'C=200 KG/CM2  CON AGREGADO MÁXIMO DE 38 MM HECHO EN OBRA O PREMEZCLADO, REFORZADO CON MALLA DE ACERO ELECTROSOLDADA CORRUGADA 6-6/8-8  Y CADENAS CON ARMEX 12x20 CM REFORZADAS CON  UN TRASLAPE MÍNIMO DE 10 CMS. EN LA MALLA Y 20 CMS EN EL ARMEX, CON BASTONES DE  VARILLAS DE 3/8\"  SEPARADAS SEGÚN PROYECTO E INCLUYE ARREGLO EN CHAROLA PARA BAÑO (PREPARACIÓN PARA RECIBIR LA INSTALACIÓN HIDROSANITARIA) HABILITADO, TRASLAPES, CIMBRA, DESCIMBRA, COLADO, VIBRADO POR MEDIOS MECANICOS, ACABADO LISO PULIDO, CURADO POR ASPERSIÓN, COLOCACIÓN DE POLIETILENO CAL. 600 EN TODA LA SUPERFICIE QUE ABARQUE EL ARMADO DE ACERO, PRUEBAS DE LABORATORIO, INCLUYE MATERIALES, MANO DE OBRA, LIMPIEZA, CARGA Y ACARREOS DENTRO Y FUERA DE LA OBRA, Y TODO LO NECESARIO PARA SU CORRECTA EJECUCIÓN Y CONSTRUCCIÓN.","M2",45.01,425.55,{"$f":"(G20*F20)","v":19154.009999999998}]
[null,null,"EST-02","IMPERMEABILIZACIÓN EN LA LOSA DE CIMENTACIÓN ENTRE EL DESPLANTE DE LOS MUROS, CON EMULSIÓN ASFÁLTICA EMULCOAT O SIMILAR REBAJADA AL 50% CON  UNA CAPA DE 5MM DE ESPESOR, INCLUYE MATERIALES, MANO DE OBRA, ACARREOS Y TODO LO NECESARIO PARA SU CORRECTA INSTALACIÓN.","ML",36.270000000000003,25.35,919.44]
[null,null,"EST-03.","MURO    A  PLOMO  HASTA  UNA  ALTURA  DE  2.55  MT,  DE  BLOCK  NORMAL DE CONCRETO CON RESISTENCIA MÍNIMA DE 50 KG/CM2 CON DIMENSIONES 12x20x40, ASENTADO CON MORTERO CEMENTO-ARENA 1:5, CON ACABADO APARENTE AMBAS CARAS CON JUNTA VACÍA O BOLEADA, INCLUYE LECHO SUPERIOR DE VANOS DE PUERTAS INTERIORES Y EXTERIORES, ASÍ COMO VENTANAS, SOSTENIDOS CON CADENAS INTERMEDIAS, CARGA Y ACARREO DE MATERIAL DENTRO Y FUERA DE LA OBRA, PRUEBAS DE LABORATORIO AL BLOCK Y MORTERO, MANO DE OBRA Y TODO LO NECESARIO PARA SU CORRECTA EJECUCIÓN Y CONSTRUCCIÓN.ARA SU CORRECTA EJECUCIÓN Y CONSTRUCCIÓN.","M2",89.49,189.71,16977.150000000001]
[null,null,"EST-04","CASTILLO CON SECCIÓN 12 X 12 CM DE CONCRETO CON RESISTENCIA F'C 150 KG/CM2 AGREGADO MÁXIMO 19 MM EL CONCRETO SERÁ HECHO EN OBRA O PREMEZCLADO REFORZADO CON ARMEX 08x08-4 , UNICAMENTE HASTA LA LOSA MACIZA DEL ENTREPISO CON RECUBRIMIENTO MÍNIMO DE 1 CM PROMEDIO, EL ANCLAJE DE LOS CASTILLOS DEBERÁ SER DE 30CM HACIA LA CIMENTACIÓN Y HACIA LA LOSA DE AZOTEA, ACABADO APARENTE,  INCLUYE HABILITADO, TRASLAPES DE ACERO, COLADO, VIBRADO, MATERIAL , MANO DE OBRA, LIMPIEZA CARGA Y ACARREO DENTRO Y FUERA DE LA OBRA Y TODO LO NECESARIO PARA SU CORRECTA EJECUCIÓN Y CONSTRUCCIÓN.","ML",59.85,90.91,5440.96]
[null,null,"EST-05","DALA DE CERRAMIENTO DE CONCRETO HECHO EN OBRA FC=150 KG/CM2, Y ARMADURA PREFABRICADA DE ARMEX 08*16/4,  INCLUYE: MATERIAL, HERRAMIENTA,MANO DE OBRA Y TODO LO NECESARIO PARA SU CORRECTA EJECUCION.","ML",42.48,97.14,4126.51]
[null,null,"EST-06","LOSA DE AZOTEA A BASE DE VIGUETA 12-3 Y CASETON DE POLIESTIRENO, CON UNA CAPA DE COMPRESION  CON CONCRETO F'c=200 KG/CM2 DE 4 CM2 DE ESPESOR Y ACERO DE REFUERZO CON MALLA ELECTROSOLDADA 6*6-10/10;  INCLUYE CIMBRA COMUN,   INC. ARMADO, COLADO, DESCIMBRADO, HERRAMIENTA Y MANO DE OBRA.","M2",47.8,396.14,18935.490000000002]
[]
[null,null,"2","TOTAL . ESTRUCTURAS",null,null,null,{"$f":"SUM(H20:H26)","v":65553.56}]
[]
[null,null,"3","ALBAÑILERÍA"]
[null,null,"ALB-01.","PRETIL DE 20 CM DE ALTURA A PLOMO Y NIVEL, DE BLOCK NORMAL DE CONCRETO O SIMILAR CON RESISTENCIA MÍNIMA DE 50 K/CM2 CON DIMENSIONES 12 20 40, ACABADO COMÚN, CON APLANADO FINO MÍNIMO DE 1CM DE ESPESOR EN LAS TRES CARAS, ASENTADO CON MORTERO CEMENTO-ARENA 1:5 INCLUYE MATERIALES, MANO DE OBRA, LIMPIEZA, CARGA Y  ACARREO DENTRO Y FUERA DE LA OBRA Y TODO LO NECESARIO PARA SU CORRECTA EJECUCIÓN Y CONSTRUCCIÓN.","ML",7.3,67.650000000000006,{"$f":"(G30*F30)","v":493.85}]
[null,null,"ALB-02.","BASE PARA TINACO A PLOMO Y NIVEL EN FORMA DE CRUZ A UNA ALTURA DE 1.50 MT TERMINADA DEL NIVEL DE LA CEBOLLA DE LA REGADERA, CON MURETES DE BLOCK NORMAL DE CONCRETO O SIMILAR CON RESISTENCIA MÍNIMA DE 50 K/CM2 CON DIMENSIONES 12 20 40 CM DE ESPESOR, ASENTADO CON MORTERO-ARENA 1:5 INCLUYE UN  CASTILLO DE REFUERZO AHOGADO EN EL EJE CENTRAL DEL ELEMENTO, EL DIÁMETRO DE LA LOSA ES DE 1.0M DE FORMA CIRCULAR CON 8CM DE ESPESOR REFORZADA CON MALLA ELECTROSOLDADA 6x6 10/10 CORRUGADA CON CONCRETO ARMADO F´C 200 KG/CM2 AGREGADO MÁXIMO 19 MM HECHO EN OBRA O PREMEZCLADO, EL ACABADO DE LA BASE ES FINO A BASE DE MORTERO CEMENTO-ARENA 1:6 Y APARENTE PARA LA LOSA, INCLUYE MATERIALES, HABILITADO DE ACERO, TRASLAPES, CIMBRA, DESCIMBRA, COLADO, VIBRADO, CURADO POR ASPERSIÓN, MANO DE OBRA, LIMPIEZA, CARGA Y ACARREO DENTRO Y FUERA DE LA OBRA Y TODO LO NECESARIO PARA SU CORRECTA EJECUCIÓN Y CONSTRUCCIÓN.","PZA",1,916.6,916.6]
[null,null,"ALB-03","CHAFLÁN DE 7x7 CM. DE MORTERO-ARENA 1:5 COLOCADO EN TODO EL PERÍMETRO DEL PRETIL Y DE LA BASE PARA EL TINACO Y/O DOMO EN CASO DE EXISTIR, INCLUYE MATERIAL, CARGA, ACARREO DENTRO Y FUERA DE LA OBRA, LIMPIEZA, MANO DE OBRA Y TODO LO NECESARIO PARA SU CORRECTA EJECUCIÓN Y CONSTRUCCIÓN.","ML",20.04,9.98,200]
[null,null,"ALB-04","SUMINISTRO Y APLICACIÓN DE IMPERMEABILIZACIÓN EN LOSA DE AZOTEA A BASE DE UNA CAPA DE PRIMARIO Y APLICACIÓN DE 2 CAPAS DE BITUFLEX O ACRÍLICO ELASTOMERICO (ACRITÓN) PARA TRES AÑOS O SIMILAR CON LA COLOCACION DE IMPERMEABILIZANTE PREFABRICADO SOLDABLE EN LA JUNTA CONSTRUCTIVA A TODO LO LARGO Y UNA VUELTA DE 5CM EN LOS EXTREMOS, CON REFUERZO DE UNA CAPA DE MEMBRANA TRASLAPADA 10 CM, SE SELLARAN TODAS LAS FISURAS EN LA LOSA Y JUNTAS CONSTRUCTIVAS CON RESINA EPOXICA O SIMILAR PREVIO A LA COLOCACIÓN DEL PRIMARIO, COMO TERMINADO SE APLICARA UNA CAPA DE COLOR TERRACOTA Ò SI SE APLICA MATERIAL ACRÍLICO COLOR BLANCO PREFERENTEMENTE, INCLUYE MATERIAL, ACARREOS, MANO DE OBRA Y TODO LO NECESARIO PARA SU CORRECTA EJECUCIÓN.","M2",55.1,54.89,3024.44]
[null,null,"ALB-05","REGISTRO SANITARIO A PLOMO Y NIVEL CON MEDIDAS INTERIORES 40x60 CM CON LA PROFUNDIDAD QUE INDIQUE EL PROYECTO DE DESCARGA SANITARIA, ELABORADO A BASE  DE BLOCK NORMAL DE CONCRETO O SIMILAR CON RESISTENCIA MINIMA DE 50 KG/CM2 CON DIMENSIONES 12x20x40cm DE ESPESOR JUNTEADO CON MORTERO CEMENTO-ARENA 1:5 INCLUYE EXCAVACIÓN, NIVELACIÓN, PLANTILLA DE 3CM DE ESPESOR A BASE DE MORTERO CEMENTO ARENA 1:6, RECIBIR INSTALACIONES,  FORMACIÓN DE MEDIA CAÑA CON CONCRETO AL FONDO DEL MISMO, TAPA PARA REGISTRO CON MEDIDAS DE 48X68 CMS, DE 5.00 CMS. DE ESPESOR CON CONCRETO F'c=150 KG/CM2, R.N., AGREGADO MÁXIMO DE 3/4\", CON MARCO Y CONTRAMARCO METÁLICO DE SOLERA DE 1 1/2\"X1/8\", ARMADO CON ALAMBRÓN No2 (1/4\"), OREJA, ACABADO INTERIOR PULIDO, MANO DE OBRA, LIMPIEZA, CARGA Y ACARREO DENTRO Y FUERA DE LA OBRA Y TODO LO NECESARIO PARA SU CORRECTA EJECUCIÓN Y CONSTRUCCIÓN.","PZA",1,746.49,746.49]
[null,null,"ALB-06","COLOCACION DE HUELLA DE ACCESO A BASE DE CONCRETO CON RESISTENCIA F'C 100 KG/CM2 AGREGADO MÁXIMO 19 MM EL CONCRETO SERÁ HECHO EN OBRA O PREMEZCLADO DE 8 CM DE ESPESOR Y MEDIDAS 1.0 X 1.0 M, LEVE PENDIENTE DE 5MM HACIA AFUERA, INCLUYE CIMBRA, DESCIMBRA, ESCOBILLADO EN SENTIDO PERPENDICULAR A LA PUERTA Y RODAPIE EN LAS ORILLAS, MATERIALES, MANO DE OBRA, LIMPIEZA, CARGA Y ACARREO DE MATERIAL DENTRO Y FUERA DE OBRA Y TODO LO NECESARIO PARA SU CORRECTA EJECUCIÓN.","PZA.",1,165.46,165.46]
[]
[null,null,"3","TOTAL . ALBAÑILERÍA",null,null,null,{"$f":"SUM(H30:H35)","v":5546.84}]
[]
[null,null,"4","ACABADOS"]
[null,null,"ACA-01","APLANADO FINO EN FACHADA PRINCIPAL CON 1.5 CM DE ESPESOR PROMEDIO CON MORTERO CEMENTO-ARENA 1:5 INCLUYE REPELLADO GRUESO (DEJANDO EL TIEMPO NECESARIO DE FRAGUADO NECESARIO PARA EVITAR LA CONTRACCIÓN DEL MATERIAL), INCLUYE: PERFILADO DE ARISTAS Y BOQUILLAS EN PUERTAS Y/O VENTANAS, RETIRO DE REBABA FINA Y PICADO EN ELEMENTOS ESTRUCTURALES ANTES DE SU APLICACIÓN, MATERIAL, MANO DE OBRA Y TODO LO NECESARIO PARA SU CORRECTA EJECUCIÓN.","M2",19.02,86.91,{"$f":"(G40*F40)","v":1653.03}]
[null,null,"ACA-02","APLANADO ZARPEADO EN MUROS EXTERIORES ( MURO TRASERO ) A UNA ALTURA DE 2.60 MT, Y REGLA CON 1.0 CM DE ESPESOR PROMEDIO CON MORTERO-ARENA 1:5  INCLUYE  INCLUYE, MATERIALES, MANO DE OBRA, LIMPIEZA, CARGA Y ACARREO DE MATERIAL DENTRO Y FUERA DE OBRA Y TODO LO NECESARIO PARA SU CORRECTA EJECUCIÓN.","M2",19.809999999999999,58.32,1155.32]
[null,null,"ACA-03","APLANADO ZARPEADO EN MUROS EXTERIORES ( MUROS LATERALES ) A UNA ALTURA DE 2.80 MT, Y REGLA CON 1.0 CM DE ESPESOR PROMEDIO CON MORTERO-ARENA 1:5  INCLUYE  INCLUYE, MATERIALES, MANO DE OBRA, LIMPIEZA, CARGA Y ACARREO DE MATERIAL DENTRO Y FUERA DE OBRA Y TODO LO NECESARIO PARA SU CORRECTA EJECUCIÓN.","M2",35.67,58.32,2080.27]
[null,null,"ACA-04","EMBOQUILLADO EN PUERTAS Y VENTANAS CON MORTERO CEMENTO-ARENA 1:5, DE 1 CM. DE ESPESOR PROMEDIO, PERFILADO DEL VANO DEL ELEMENTO, INCLUYE EMBOQUILLADO DE ARISTAS EN JUNTA CONSTRUCTIVA PARA POSTERIORMENTE COLOCAR TAPAJUNTAS DE PVC DE 2\" Y 10CM DE ANCHO O UNA JUNTA CONSTRUCTIVA A BASE DE NIEVE SECA (POLIESTIRENO) DE 2\" DE ESPESOR EN FACHADA FRONTAL Y TRASERA, INCLUYE MATERIALES, MANO DE OBRA, LIMPIEZA, CARGA Y ACARREOS DENTRO Y FUERA DE LA OBRA Y TODO LO NECESARIO PARA SU CORRECTA EJECUCIÓN.","ML",46.8,28.08,1314.14]
[null,null,"ACA-05","APLANADO ZARPEADO EN MUROS INTERIORES A UNA ALTURA DE 2.50 MT, Y REGLA CON 1.0 CM DE ESPESOR PROMEDIO CON MORTERO-ARENA 1:5  INCLUYE  INCLUYE, MATERIALES, MANO DE OBRA, LIMPIEZA, CARGA Y ACARREO DE MATERIAL DENTRO Y FUERA DE OBRA Y TODO LO NECESARIO PARA SU CORRECTA EJECUCIÓN.","M2",113.23,58.32,6603.57]
[null,null,"ACA-06.","SUMINISTRO Y APLICACIÓN DE PINTURA VINÍLICA EN FACHADA PRINCIPAL A DOS MANOS, INCLUYE 1 MANO DE SELLADOR 5x1, 2 MANOS DE PINTURA,  LIMPIEZA DE REBABAS, SE SELLARAN TODAS LAS FISURAS EN LOS APLANADOS Y JUNTAS CONSTRUCTIVAS CON RESINA EPOXICA O SIMILAR PREVIO A LA COLOCACIÓN DEL SELLADOR, CARGA Y ACARREOS DENTRO Y FUERA DE LA OBRA, LIMPIEZA DEL ÁREA DE TRABAJO INCLUYENDO PUERTAS Y VENTANAS Y TODO LO NECESARIO PARA SU CORRECTA EJECUCIÓN.","M2",19.02,36,684.72]
[null,null,"ACA-07","SUMINISTRO Y APLICACIÓN DE PINTURA VINÍLICA EN MUROS  INTERIORES (LA HABITACION PEQUEÑA SERA DE COLOR ROSA) Y PLAFON (TOTAL DE LA VIVIENDA) A DOS MANOS, INCLUYE 1 MANO DE SELLADOR 5x1, 2 MANOS DE PINTURA, LIMPIEZA DE REBABAS, SE SELLARAN TODAS LAS FISURAS EN LOS APLANADOS Y JUNTAS CONSTRUCTIVAS CON RESINA EPOXICA O SIMILAR PREVIO A LA COLOCACIÓN DEL SELLADOR, CARGA Y ACARREOS DENTRO Y FUERA DE LA OBRA, LIMPIEZA DEL ÁREA DE TRABAJO INCLUYENDO PUERTAS Y VENTANAS Y TODO LO NECESARIO PARA SU CORRECTA EJECUCIÓN.","M2",158.24,36,5696.64]
[null,null,"ACA-08","SUMINISTRO Y APLICACIÓN DE PINTURA VINÍLICA EN EXTERIORES ( EN FACHADA POSTERIOR Y LATERALES ) A DOS MANOS, INCLUYE 1 MANO DE SELLADOR 5x1, 2 MANOS DE PINTURA, LIMPIEZA DE REBABAS, SE SELLARAN TODAS LAS FISURAS EN LOS APLANADOS Y JUNTAS CONSTRUCTIVAS CON RESINA EPOXICA O SIMILAR PREVIO A LA COLOCACIÓN DEL SELLADOR, CARGA Y ACARREOS DENTRO Y FUERA DE LA OBRA, LIMPIEZA DEL ÁREA DE TRABAJO INCLUYENDO PUERTAS Y VENTANAS Y TODO LO NECESARIO PARA SU CORRECTA EJECUCIÓN.","M2",55.48,36,1997.28]
[null,null,"ACA-09","APLANADO DE PLAFOND A UNA CAPA CON MORTERO CG:C:P EN PROPORCION 1:18:9 DE 0.50 CM. DE ESPESOR PROMEDIO A PLOMO Y REGLA : INCLUYE ANDAMIOS, PERFILACIONES, MANO DE OBRA Y QUIPO.","M2",45.01,42,1890.42]
[]
[null,null,"4","TOTAL . ACABADOS",null,null,null,{"$f":"SUM(H40:H48)","v":23075.39}]
[]
[null,null,"5","INSTALACIÓN HIDRO-SANITARIA"]
[null,null,"INS-01","SALIDA HIDRÁULICA SEGÚN PROYECTO POR MUEBLE (2-REGADERA, 1-W.C., 1-LAVABO, 1-TARJA, 1-LAVADERO, 1-TINACO, ) A BASE DE POLIPROPILENO LÍNEA ECOPLUS, TUBO-PLUS, CPVC Y/O SIMILAR COLOCACIÓN DE JARRO DE AIRE EN LA SALIDA DEL TINACO, INCLUYE, LIMPIEZA, CARGA Y ACARREO DENTRO Y FUERA DE LA OBRA, MANO DE OBRA, RANURADO, RESANES DE ALBAÑILERÍA, PRUEBA HIDROSTÁTICA, Y TODO LO NECESARIO PARA EL CORRECTO FUNCIONAMIENTO DEL MUEBLE.","SAL",6,197.92,{"$f":"(G53*F53)","v":1187.52}]
[null,null,"INS-02","SALIDA  SANITARIA DE PVC CON DIÁMETRO SEGÚN EL MUEBLE QUE INDIQUE EL PROYECTO (REGADERA, W.C., LAVABO, TARJA, LAVADERO) INCLUYE LIMPIEZA, CARGA Y ACARREO DENTRO Y FUERA DE LA OBRA DE MATERIALES, MANO DE OBRA, RANURADO, RESANES DE ALBAÑILERÍA, PRUEBA SANITARIA, TODO LO NECESARIO PARA EL CORRECTO FUNCIONAMIENTO DEL MUEBLE.","SAL",5,303.82,1519.1]
[null,null,"INS-03","SUMINISTRO Y COLOCACIÓN DE TUBO DE PVC SANITARIO CON CAMPANA DE 100 MM (4\") O LO QUE INDIQUE EL PROYECTO PARA CONEXIÓN DE REGISTRO DE DESCARGA DOMICILIARIA, JUNTEADO DICHA CONEXIÓN AL REGISTRO CON MORTERO PARA EVITAR FILTRACIONES INCLUYE EXCAVACIÓN, CAMA DE ARENA, TENDIDO, ACOSTILLADO, RELLENO COMPACTADO Y NIVELACIÓN, CARGA Y ACARREO DENTRO Y FUERA DE LA OBRA, MATERIALES, MANO DE OBRA, PRUEBA SANITARIA Y TODO LO NECESARIO PARA EL CORRECTO FUNCIONAMIENTO DE LA DESCARGA.","ML",10.5,53.63,563.12]
[null,null,"INS-04","SUMINISTRO, COLOCACIÓN Y CONEXIÓN DEL DISPARO DEL CUADRO DE MEDICIÓN HASTA LA CONEXIÓN AL TINACO, CON POLIDUCTO RD DE POLIPROPILENO LÍNEA ECOPLUS, TUBO-PLUS, CPVC Y/O SIMILAR Y TUBERÍA RÍGIDA DE 19 MM INCLUYE EXCAVACIÓN, TENDIDO, RELLENO, COMPACTACIÓN Y NIVELACIÓN, MATERIALES, MANO DE OBRA Y TODO LO NECESARIO PARA SU CORRECTO FUNCIONAMIENTO.","ML",15,52.49,787.35]
[null,null,"INS-05","SUMINISTRO Y COLOCACIÓN DE WC LÍNEA ECONÓMICA COLOR BLANCO DE GRADO ECOLOGICO MAXIMO 5 LTS., INCLUYE HERRAJES DE CONEXIÓN Y FUNCIONAMIENTO, JUNTAS SILICÓN, PRUEBA SANITARIA, SELLO DE CEMENTO GRIS EN SU BASE, LIMPIEZA, CARGA Y ACARREO DENTRO Y FUERA DE LA OBRA Y TODO LO NECESARIO PARA SU CORRECTA COLOCACIÓN Y FUNCIONAMIENTO.","PZA",1,755.36,755.36]
[null,null,"INS-06","SUMINISTRO Y COLOCACIÓN DE LAVABO LÍNEA ECONÓMICA COLOR BLANCO, INCLUYE LLAVE MEZCLADORA METÁLICA CROMADA CON DISPOSITIVO AHORRADOR DE AGUA, CESPOL DE PLÁSTICO RÍGIDO, CONTRAREJILLA, SOPORTES, SELLO ENTRE EL CONTACTO DEL LAVABO CON EL MURO A BASE DE SILICÓN TRANSPARENTE, LIMPIEZA, PRUEBA HIDROSANITARIA, CARGA Y ACARREO DE MATERIAL DENTRO Y FUERA DE LA OBRA Y TODO LO NECESARIO PARA SU CORRECTO FUNCIONAMIENTO.","PZA",1,682.81,682.81]
[null,null,"INS-07","SUMINISTRO Y COLOCACIÓN DE REGADERA CON DISPOSITIVO AHORRADOR DE AGUA INTEGRADO, LLAVES COLOCADAS HOSIZONTALMENTE, MANERALES Y CHAPETONES LÍNEA ECONÓMICA, METÁLICOS CROMADOS, INCLUYE, LIMPIEZA, CARGA, ACARREO DE MATERIALES DENTRO Y FUERA DE LA OBRA, PRUEBA HIDRÁULICA Y TODO LO NECESARIO PARA SU CORRECTO FUNCIONAMIENTO.","PZA",1,255.36,255.36]
[null,null,"INS-08","SUMINISTRO Y COLOCACIÓN DE LAVADERO CON TINA Y TALLADOR, AMACIZADO CON MORTERO-ARENA 1:5 INCLUYE ANCLAS, SOPORTE A BASE DE BLOCK NORMAL CON MEDIDAS DE 12*20*40, DE 80CM DE ALTURA, LLAVE DE NARIZ, PRUEBA HIDROSANITARIA, LIMPIEZA, CARGA Y ACARREO DENTRO Y FUERA DE LA OBRA Y TODO LO NECESARIO PARA SU CORRECTO FUNCIONAMIENTO.","PZA",1,420.42,420.42]
[null,null,"INS-09","SUMINISTRO Y COLOCACIÓN DE BOTE CESPOL CON COLADERA CROMADA DE 4\" PARA REGADERA DEL BAÑO FIJÁNDOLA CON MORTERO CEMENTO-ARENA 1:4, INCLUYE LIMPIEZA, CARGA, ACARREO DE MATERIAL DENTRO Y FUERA DE OBRA Y TODO LO NECESARIO PARA SU CORRECTO FUNCIONAMIENTO.","PZA",1,54.16,54.16]
[null,null,"INS-10","SUMINISTRO Y COLOCACIÓN DE TINACO DE POLIETILENO DE 450 LTS COLOR NEGRO MARCA ROTOPLAS O SIMILAR, INCLUYE, TAPA ROSCADA, VÁLVULA DE GLOBO ROSCADA (DE PASO), VARILLA FLOTADOR, LIMPIEZA, CARGA Y ACARREO DENTRO Y FUERA DE LA OBRA Y TODO LO NECESARIO PARA SU CORRECTA COLOCACIÓN Y FUNCIONAMIENTO.","PZA",1,1431.92,1431.92]
[null,null,"INS-11","SUMINISTRO Y COLOCACIÓN DE TARJA CON TINA, INCLUYE, SUMINISTRO Y COLOCACION, LIMPIEZA, CARGA Y ACARREO DENTRO Y FUERA DE LA OBRA Y TODO LO NECESARIO PARA SU CORRECTA COLOCACIÓN Y FUNCIONAMIENTO.","PZA",1,735.28,735.28]
[null,null,"INS-12","SUMINISTRO Y COLOCACION DE SISTEMA DE CAPTACION DE AGUA PLUVIAL CONECTADA A CISTERNA, INCLUYE: TUBERIA DE PVC 4 PULG CANALETA DE PVC, VALVULA CHECK, BOMBA DE 5 HP PRUEBAS DE BOMBEO DE CISTERNA A TINACO, MATERIAL, MANO DE OBRA, HERRAMIENTA, EQUIPO Y TODO LO NECESARIO PARA SU CORRECTO FUNCIONAMENTO.","PZA",1,2455.6799999999998,2455.6799999999998]
[null,null,"INS-13","SUMINISTRO Y COLOCACION DE CISTERNA  PREFABRICADA PARA CAPTACION DE AGUA PLUVIAL  1200 LTS. 1*4* 1.4  MTS,  INCLUYE: TAPA ROSCADA, LIMPIEZA, CARGA Y ACARREO DENTRO Y FUERA DE LA OBRA Y TODO LO NECESARIO PARA SU CORRECTA EJECUCION Y FUNCIONAMENTO.","PZA",1,4823.83,4823.83]
[]
[null,null,"5","TOTAL . INSTALACIÓN HIDRO-SANITARIA",null,null,null,{"$f":"SUM(H53:H66)","v":15671.91}]
[]
[]
[null,null,"6","INSTALACIÓN ELÉCTRICA"]
[null,null,"ELEC-01","SALIDA PARA ACOMETIDA ELÉCTRICA ADOSADA EN EL EXTERIOR DEL MURO DEL EDIFICIO CON COLOCACIÓN DE CENTRO DE CARGA QO-2, CON INTERRUPTOR TERMOMAGNÉTICO DE 15 AMP, INCLUYE MATERIALES, ACARREOS, MANO DE OBRA, LIMPIEZA Y TODOS LOS ACCESORIOS Y MATERIALES NECESARIOS PARA SU CORRECTA COLOCACIÓN.","PZA",1,1217.1199999999999,{"$f":"(G71*F71)","v":1217.1199999999999}]
[null,null,"ELEC-02","SUMINISTRO E INSTALACIÓN DE SALIDA DE CENTRO Y/O ARBOTANTE DONDE INDIQUE EL PROYECTO, DEJANDO UNA PREPARACION PARA FUTUROS CRECIMIENTOS EN VOLADIZO DE LOSA DE COCINA, INCLUYE POLIDUCTO NARANJA REFORZADO, CAJA GALVANIZADA, CABLE No.14, SOQUET DE PLÁSTICO O DE PORCELANA, RANURADO, RESANE DE ALBAÑILERÍA, PRUEBA ELÉCTRICA, LIMPIEZA, MANO DE OBRA, Y TODO LO NECESARIO PARA SU CORRECTA INSTALACIÓN Y FUNCIONAMIENTO.","SAL",9,278.63,{"$f":"(G72*F72)","v":2507.67}]
[null,null,"ELEC-03","SUMINISTRO E INSTALACIÓN DE SALIDA DE APAGADOR DONDE INDIQUE EL PROYECTO, INCLUYE POLIDUCTO NARANJA REFORZADO, CAJA GALVANIZADA, CABLE No.14, PLACA DE PLÁSTICO MARCA QUINZIÑO O SIMILAR, RANURADO, RESANE DE ALBAÑILERÍA, PRUEBA ELÉCTRICA, LIMPIEZA, MANO DE OBRA, Y TODO LO NECESARIO PARA SU CORRECTA INSTALACIÓN Y FUNCIONAMIENTO.","SAL",9,223.85,{"$f":"(G73*F73)","v":2014.65}]
[null,null,"ELEC-04","SUMINISTRO E INSTALACIÓN DE SALIDA DE CONTACTO DONDE INDIQUE EL PROYECTO, INCLUYE POLIDUCTO NARANJA REFORZADO, CAJA GALVANIZADA, CABLE No.12, PLACA DE PLÁSTICO MARCA QUINZIÑO O SIMILAR, RANURADO, RESANE DE ALBAÑILERÍA, PRUEBA ELÉCTRICA, LIMPIEZA, MANO DE OBRA, Y TODO LO NECESARIO PARA SU CORRECTA INSTALACIÓN Y FUNCIONAMIENTO.","SAL",8,235.9,{"$f":"(G74*F74)","v":1887.2}]
[null,null,"ELEC-05","SUMINISTRO Y COLOCACION DE FOCOS AHORRADORES DE 13 WATTS, INCLUYE CARGA, COLOCACION Y ACARREO DENTRO Y FUERA DE LA OBRA","PZA",9,57.99,{"$f":"(G75*F75)","v":521.91}]
[]
[null,null,"6","TOTAL . INSTALACIÓN ELÉCTRICA",null,null,null,{"$f":"SUM(H71:H76)","v":8148.55}]
[]
[]
[null,null,"7","CANCELERIA"]
[null,null,"CAN-01","SUMINISTRO Y COLOCACIÓN DE PUERTA DE ACCESO A LA VIVIENDA, PREFABRICADA MULTIPANEL MIXTA ESTAMPADA (6 TABLEROS) PARA EXTERIORES, DE 0.90 X 2.10 MTS O LA COTA FINAL QUE INDIQUE LA DIRECCIÓN DE LA OBRA, LINEA VALSA O SIMILAR, COLOR BLANCO OSTIÓN, INCLUYE, MARCO METÁLICO DE MEDIO CAJÓN CON PROTECCIÓN DE PRAIMER Y ACABADO A DOS MANOS DE ESMAPZA EN COLOR BLANCO, CHAPA METÁLICA CON CERRADURA, 3 BISAGRAS LATONADAS, SELLADO CON ACRILASTIC EN AMBAS CARAS, LIMPIEZA, CARGA Y DESCARGA DE MATERIAL DENTRO Y FUERA DE LA OBRA Y TODO LO NECESARIO PARA SU CORRECTA COLOCACIÓN Y FUNCIONAMIENTO.","PZA",1,1604.61,{"$f":"(G81*F81)","v":1604.61}]
[null,null,"CAN-02","SUMINISTRO Y COLOCACIÓN DE PUERTA TRASERA A LA VIVIENDA PREFABRICADA MULTIPANEL LISA PARA EXTERIORES, DE 0.90 x 2.10M O LA COTA FINAL QUE INDIQUE LA DIRECCION DE LA OBRA, LINEA VALSA O SIMILAR, COLOR BLANCO OSTIÓN, INCLUYE, MARCO METÁLICO DE MEDIO CAJÓN CON PROTECCIÓN DE PRAIMER Y ACABADO A DOS MANOS DE ESMAPZA EN COLOR BLANCO, CHAPA METÁLICA CON CERRADURA, 3 BISAGRAS LATONADAS, SELLADO CON ACRILASTIC EN AMBAS CARAS, LIMPIEZA, CARGA Y DESCARGA DE MATERIAL DENTRO Y FUERA DE LA OBRA Y TODO LO NECESARIO PARA SU CORRECTA COLOCACIÓN Y FUNCIONAMIENTO.","PZA",1,1226.92,1226.92]
[null,null,"CAN-03","SUMINISTRO Y COLOCACIÓN DE PUERTA DE RECAMARA DE MADERA DE TAMBOR DE 0.80 X 2.10 MTS. BASTIDOR DE MADERA, ACABADO EN COLOR BLANCO OSTION LÍNEA RETIVALSA O SIMILAR, INCLUYE MARCO METÁLICO DE MEDIO CAJÓN CON PROTECCIÓN DE PRAIMER Y ACABADO A DOS MANOS DE ESMAPZA EN COLOR BLANCO, CHAPA METÁLICA ACABADO COLOR SATINADO O LATON CON CERRADURA, 3 BISAGRAS DE LIBRO LATONADAS, SELLADO CON ACRILASTIC EN AMBAS CARAS, LIMPIEZA, CARGA, ACARREO DE MATERIAL DENTRO Y FUERA DE LA OBRA Y TODO LO NECESARIO PARA SU CORRECTO FUNCIONAMIENTO.","PZA",2,1359.47,2718.94]
[null,null,"CAN-04","SUMINISTRO Y COLOCACIÓN DE PUERTA DE BAÑO PREFABRICADA MULTIPANEL METALICA LISA DE 0.70 X 2.10 MTS. O LA COTA FINAL QUE INDIQUE LA DIRECCION DE LA OBRA  LINEA VALSA O SIMILAR, COLOR BLANCO OSTIÓN, INCLUYE MARCO METÁLICO DE MEDIO CAJÓN CON PROTECCIÓN DE PRAIMER Y ACABADO A DOS MANOS DE ESMAPZA EN COLOR BLANCO, CHAPA METÁLICA ACABADO COLOR SATINADO O LATON CON SEGURO, 3 BISAGRAS DE LIBRO LATONADAS, SELLADO CON ACRILASTIC EN AMBAS CARAS, LIMPIEZA, CARGA, ACARREO DE MATERIAL DENTRO Y FUERA DE LA OBRA Y TODO LO NECESARIO PARA SU CORRECTO FUNCIONAMIENTO.","PZA",1,924.7,924.7]
[null,null,"CAN-05","SUMINISTRO Y COLOCACIÓN DE VENTANA PARA SALA, RECAMARA Y USOS MÚLTIPLES, DE 1.20 x 1.20 M. CON CELOSIA INTEGRADA DE ALUMINIO LÍNEA 1-1/2\" ANODIZADO NATURAL, CON VIDRIO CLARO DE 3MM, JALADERA, CARRETILLAS, APLICACIÓN DE SELLO CON ACRILASTIC EN AMBAS CARAS, LIMPIEZA, CARGA Y ACARREO DE MATERIAL DENTRO Y FUERA DE OBRA Y TODO LO NECESARIO PARA SU CORRECTO FUNCIONAMIENTO.","PZA",4,732.5,2930]
[null,null,"CAN-06","SUMINISTRO Y COLOCACIÓN DE VENTANA PARA SALA, RECAMARA Y USOS MÚLTIPLES, DE 0.40 x 0.60 M. CON CELOSIA INTEGRADA DE ALUMINIO LÍNEA 1-1/2\" ANODIZADO NATURAL, CON VIDRIO CLARO DE 3MM, JALADERA, CARRETILLAS, APLICACIÓN DE SELLO CON ACRILASTIC EN AMBAS CARAS, LIMPIEZA, CARGA Y ACARREO DE MATERIAL DENTRO Y FUERA DE OBRA Y TODO LO NECESARIO PARA SU CORRECTO FUNCIONAMIENTO.","PZA",1,566.03,566.03]
[]
[null,null,"7","TOTAL . CANCELERÍA",null,null,null,{"$f":"SUM(H81:H86)","v":9971.2000000000007}]
[]
[null,null,"8","EQUIPAMENTO"]
[null,null,"EQUI-01","SUMINISTRO Y COLOCACIÓN DE BIODIGESTOR DE POLIETILENO  COLOR NEGRO MARCA ROTOPLAS O SIMILAR, INCLUYE, TAPA ROSCADA, REGISTRO DE LODOS COLOR NEGRO, EXCAVACION. LIMPIEZA, CARGA Y ACARREO DENTRO Y FUERA DE LA OBRA Y TODO LO NECESARIO PARA SU CORRECTA COLOCACIÓN Y FUNCIONAMIENTO.","PZA",1,8125.15,{"$f":"(G91*F91)","v":8125.15}]
[null,null,"EQUI-02","SUMINISTRO Y COLOCACION DE ESTUFA ECOLOGICA PATSARI MCA. GIRA, HECHA EN OBRA A BASE DE TABIQUE, BARRO, MORTERO Y ARENA, INCLUYE JUEGO DE TUBO DE CHIMENEA, JUEGO DE COMALES, GORROS, PROTECCION Y PARRILLA DE CAMARAS DE  COMBUSTION, BASE HECHA EN OBRA CON LOSA ARMADA DE CONCRETO 10 CMS Fc=150 KG/CM2 Y MALLA ELECTROSOLDADA 6-6/10*10 Y BLOCK DE 12*20*40CMS A UNA ALTURA DE 50 CMS, INCLUYE: MATERIAL, MANO DE OBRA, HERRAMIENTA, EQUIPO Y TODO LO NECESARIO PARA SU CORRECTO FUNCIONAMIENTO.","PZA.",1,2946.4,{"$f":"+F92*G92","v":2946.4}]
[]
[null,null,"8",{"$f":"+D90","v":"EQUIPAMENTO"},null,null,null,{"$f":"SUM(H91:H93)","v":11071.55}]
[]
[null,null,"9","LIMPIEZA"]
[null,null,"LIM-01","LIMPIEZA FINAL, INCLUYE CARGA,  ACARREO DENTRO Y FUERA DE LA OBRA, DURANTE EL PROCESO LO REQUIERA EN VARIAS ETAPAS.","M2",55.44,9.67,{"$f":"(G97*F97)","v":536.1}]
[]
[null,null,"9","TOTAL . LIMPIEZA",null,null,null,{"$f":"SUM(H97:H98)","v":536.1}]
[]
[]
[null,null,null,null,null,null,"TOTAL DEL PRESUPUESTO MOSTRADO:",{"$f":"(+H17+H27+H37+H50+H67+H77+H88+H94+H99)","v":140000}]
[]
[null,null,null,"(* CIENTO CUARENTA MIL PESOS 00/100 M.N. *)"]
[]
[]
[null,null,"No.","EDIFICACION.","CANT.",null,null,"IMPORTE"]
[null,null,{"$f":"+C13","v":"1"},{"$f":"+D13","v":"PRELIMINARES"},1,null,null,{"$f":"+H17","v":424.9},null,{"$f":"+[1]Hoja1!H1","v":904.99},{"$f":"+J108-H108","v":480.09}]
[null,null,{"$f":"+C19","v":"2"},{"$f":"+D19","v":"ESTRUCTURAS"},1,null,null,{"$f":"+H27","v":65553.56},null,{"$f":"+[1]Hoja1!H2","v":91531.92},{"$f":"+J109-H109","v":25978.36}]
[null,null,{"$f":"+C29","v":"3"},{"$f":"+D29","v":"ALBAÑILERÍA"},1,null,null,{"$f":"+H37","v":5546.84},null,{"$f":"+[1]Hoja1!H3","v":7273.71},1726.87]
[null,null,{"$f":"+C39","v":"4"},{"$f":"+D39","v":"ACABADOS"},1,null,null,{"$f":"+H50","v":23075.39},null,{"$f":"+[1]Hoja1!H4","v":30426.57},7351.18]
[null,null,{"$f":"+C52","v":"5"},{"$f":"+D52","v":"INSTALACIÓN HIDRO-SANITARIA"},1,null,null,{"$f":"+H67","v":15671.91},null,{"$f":"+[1]Hoja1!H5","v":18707.66},3035.75]
[null,null,{"$f":"+C70","v":"6"},{"$f":"+D70","v":"INSTALACIÓN ELÉCTRICA"},1,null,null,{"$f":"+H77","v":8148.55},null,{"$f":"+[1]Hoja1!H6","v":10671.33},2522.7800000000002]
[null,null,"7","CANCELERIA",1,null,null,{"$f":"+H88","v":9971.2000000000007},null,{"$f":"+[1]Hoja1!H7","v":14474.34},4503.1400000000003]
[null,null,{"$f":"+C94","v":"8"},{"$f":"+D94","v":"EQUIPAMENTO"},1,null,null,{"$f":"+H94","v":11071.55},null,{"$f":"+[1]Hoja1!H8","v":9541.51},-1530.04]
[null,null,"9","LIMPIEZA",1,null,null,{"$f":"+H99","v":536.1},null,{"$f":"+[1]Hoja1!H9","v":562.16},26.06]
[]
[]
[null,null,null,null,null,null,"COSTO EDIFICACION.-",{"$f":"SUM(H108:H117)","v":140000}]
[]
[null,null,"R E S U M E N"]
[]
[null,null,"COSTO DE EDIFICACION POR ACCION.",null,null,null,null,140000]

{"sheet":"F-22 CATAL","index":4,"n_rows":88,"n_cols":11,"rows_kept":88,"cut":false,"hidden":false,"merged":[[38,0,38,2],[38,3,38,7],[31,6,31,7],[32,6,32,7],[33,6,33,7],[34,6,34,7],[28,0,28,2],[28,3,28,7],[15,3,15,5],[15,6,15,7],[0,6,0,7],[2,2,3,7],[13,6,13,7],[6,2,7,5],[6,6,7,7],[4,6,4,7],[12,0,12,2],[12,3,12,7],[6,0,7,1],[9,0,9,2],[9,3,9,7],[18,0,18,2],[29,6,29,7],[35,3,35,5],[35,6,35,7],[36,3,36,7],[10,6,10,7],[22,6,22,7],[23,6,23,7],[24,6,24,7],[25,3,25,5],[25,6,25,7],[26,3,26,7],[14,6,14,7],[18,3,18,7],[19,6,19,7],[20,6,20,7],[21,6,21,7],[53,0,53,2],[53,3,53,7],[54,6,54,7],[39,6,39,7],[40,6,40,7],[41,6,41,7],[42,6,42,7],[43,6,43,7],[44,6,44,7],[45,6,45,7],[46,6,46,7],[47,6,47,7],[48,6,48,7],[49,6,49,7],[88,3,88,7],[30,6,30,7],[70,6,70,7],[68,6,68,7],[75,6,75,7],[73,3,73,5],[73,6,73,7],[50,3,50,5],[50,6,50,7],[51,3,51,7],[66,3,66,5],[66,6,66,7],[67,3,67,7],[55,6,55,7],[56,6,56,7],[57,6,57,7],[58,6,58,7],[87,0,87,2],[87,3,87,5],[87,6,87,7],[67,0,67,2],[64,6,64,7],[65,6,65,7],[59,6,59,7],[60,6,60,7],[61,6,61,7],[62,6,62,7],[63,6,63,7],[74,0,74,2],[74,3,74,7],[69,6,69,7],[71,6,71,7],[72,6,72,7],[81,3,81,5],[81,6,81,7],[76,6,76,7],[77,6,77,7],[78,6,78,7],[79,6,79,7],[80,6,80,7],[84,3,84,5],[84,6,84,7],[82,0,82,2],[82,3,82,7],[83,6,83,7]]}
[null,null,null,null,null,null,"FORMATO N0. 22"]
[]
[null,"COMISION DE VIVIENDA ","CATÁLOGO DE CONCEPTOS, CANTIDADES DE OBRA, PRECIOS UNITARIOS, IMPORTES PARCIALES Y TOTALES DE LA PROPUESTA"]
[null,"DEL ESTADO DE SONORA"]
[null,null,"FECHA DE PRESENTACIÓN DE LA PROPUESTA: ",null,null,null,{"$f":"IF(+datos!B10=\"\",\"\",+datos!B10)","v":""}]
[{"$f":"CONCATENATE(\"LICITACIÓN No.: \",+datos!B1)","v":"LICITACIÓN No.: "},null,"F. INICIO",{"$f":"IF(+datos!B6=\"\",\"\",+datos!B6)","v":""},"F. TERMINO",{"$f":"IF(+datos!B7=\"\",\"\",+datos!B7)","v":""},"PLAZO:",{"$f":"CONCATENATE(+datos!B8, \" DIAS NATURALES.\")","v":"150 DIAS NATURALES."}]
[{"$f":"+datos!B9","v":"TERMINACION DE CONSTRUCCIÓN DE 10(DIEZ ) UNIDAD BASICA DE VIVIENDA INDIGENA  DE 45 M2 EN AREA URBANA Y SEMIURBANA  A BASE DE LOSA DE CIMENTACIÓN, MUROS DE BLOCK, TECHO DE VIGUETA, INSTALACIONES ELÉCTRICAS, HIDRAULICAS, SANITARIAS, CANCELERIA Y EQUIPAMIENTO  EN VARIAS LOCALIDADES DEL MUNICIPIO DE BENITO JUAREZ, SONORA."},null,"(Nombre o razón social del licitante)",null,null,null,"(Nombre y firma del apoderado Legal)"]
[]
[]
[" ",null,null,"CANTIDADES DE OBRA, PRECIOS UNITARIOS E IMPORTES"]
["CLAVE","DESCRIPCIÓN","UNIDAD","CANTIDAD","P. UNIT. CON NUMERO","PRECIO UNIT. CON LETRA","IMPORTE",null,{"$f":"+datos!B4","v":10}]
[]
["PRELIMINARES",null,null,"PESOS 00/100 M.N.**"]
[{"$f":"+'b)Estandar (E)'!C14","v":"PRE-01"},{"$f":"+'b)Estandar (E)'!D14","v":"TRAZO Y NIVELACIÓN EN PLATAFORMA, PARA LA UBICACIÓN DE EJES, Y PERÍMETROS  DE LA LOSA DE CIMENTACIÓN, TRAZO DE DESPLANTE DE MUROS Y LOCALIZACIÓN DE CASTILLO INCLUYE MATERIALES, MANO DE OBRA Y TODO LO NECESARIO PARA SU CORRECTA EJECUCIÓN."},{"$f":"+'b)Estandar (E)'!E14","v":"M2"},{"$f":"+OPUS!F3","v":0},{"$f":"+OPUS!G3","v":0},null,{"$f":"D14*E14","v":0},null,52.25,44.56,{"$f":"+I14*$I$11","v":522.5}]
[{"$f":"+'b)Estandar (E)'!C15","v":"PRE-02"},{"$f":"+'b)Estandar (E)'!D15","v":"EXCAVACIÓN CON PALA DERECHA A MANO EN PLATAFORMA MEJORADA, INCLUYE AFINE DE TALUDES Y FONDO, PARA ALOJAR CIMENTACIÓN PROFUNDA DE 0.00 A 2.00 M INCLUYE LIMPIEZA Y ACARREOS DENTRO,  FUERA DE LA OBRA."},{"$f":"+'b)Estandar (E)'!E15","v":"M3"},{"$f":"+OPUS!F4","v":0},{"$f":"+OPUS!G4","v":0},null,0,null,0.46,9.8800000000000008,{"$f":"+I15*$I$11","v":4.5999999999999996}]
[null,null,null,{"$f":"+A13","v":"PRELIMINARES"},null,null,{"$f":"+SUM(G14:H15)","v":0}]
[]
[]
[{"$f":"+'b)Estandar (E)'!D19","v":"ESTRUCTURAS"}]
[{"$f":"+'b)Estandar (E)'!C20","v":"EST-01"},{"$f":"+'b)Estandar (E)'!D20","v":"LOSA DE CIMENTACIÓN DE CONCRETO ARMADO DE 12 CM. DE ESPESOR, A BASE DE CONCRETO F'C=200 KG/CM2  CON AGREGADO MÁXIMO DE 38 MM HECHO EN OBRA O PREMEZCLADO, REFORZADO CON MALLA DE ACERO ELECTROSOLDADA CORRUGADA 6-6/8-8  Y CADENAS CON ARMEX 12x20 CM REFORZADAS CON  UN TRASLAPE MÍNIMO DE 10 CMS. EN LA MALLA Y 20 CMS EN EL ARMEX, CON BASTONES DE  VARILLAS DE 3/8\"  SEPARADAS SEGÚN PROYECTO E INCLUYE ARREGLO EN CHAROLA PARA BAÑO (PREPARACIÓN PARA RECIBIR LA INSTALACIÓN HIDROSANITARIA) HABILITADO, TRASLAPES, CIMBRA, DESCIMBRA, COLADO, VIBRADO POR MEDIOS MECANICOS, ACABADO LISO PULIDO, CURADO POR ASPERSIÓN, COLOCACIÓN DE POLIETILENO CAL. 600 EN TODA LA SUPERFICIE QUE ABARQUE EL ARMADO DE ACERO, PRUEBAS DE LABORATORIO, INCLUYE MATERIALES, MANO DE OBRA, LIMPIEZA, CARGA Y ACARREOS DENTRO Y FUERA DE LA OBRA, Y TODO LO NECESARIO PARA SU CORRECTA EJECUCIÓN Y CONSTRUCCIÓN."},{"$f":"+'b)Estandar (E)'!E20","v":"M2"},{"$f":"+OPUS!F6","v":0},{"$f":"+OPUS!G6","v":0},null,{"$f":"D20*E20","v":0},null,45.06,79.680000000000007,{"$f":"+I20*$I$11","v":450.6}]
[{"$f":"+'b)Estandar (E)'!C21","v":"EST-02"},{"$f":"+'b)Estandar (E)'!D21","v":"IMPERMEABILIZACIÓN EN LA LOSA DE CIMENTACIÓN ENTRE EL DESPLANTE DE LOS MUROS, CON EMULSIÓN ASFÁLTICA EMULCOAT O SIMILAR REBAJADA AL 50% CON  UNA CAPA DE 5MM DE ESPESOR, INCLUYE MATERIALES, MANO DE OBRA, ACARREOS Y TODO LO NECESARIO PARA SU CORRECTA INSTALACIÓN."},{"$f":"+'b)Estandar (E)'!E21","v":"ML"},{"$f":"+OPUS!F7","v":0},{"$f":"+OPUS!G7","v":0},null,{"$f":"D21*E21","v":0},null,39.979999999999997,79.680000000000007,{"$f":"+I21*$I$11","v":399.8}]
[{"$f":"+'b)Estandar (E)'!C22","v":"EST-03."},{"$f":"+'b)Estandar (E)'!D22","v":"MURO    A  PLOMO  HASTA  UNA  ALTURA  DE  2.55  MT,  DE  BLOCK  NORMAL DE CONCRETO CON RESISTENCIA MÍNIMA DE 50 KG/CM2 CON DIMENSIONES 12x20x40, ASENTADO CON MORTERO CEMENTO-ARENA 1:5, CON ACABADO APARENTE AMBAS CARAS CON JUNTA VACÍA O BOLEADA, INCLUYE LECHO SUPERIOR DE VANOS DE PUERTAS INTERIORES Y EXTERIORES, ASÍ COMO VENTANAS, SOSTENIDOS CON CADENAS INTERMEDIAS, CARGA Y ACARREO DE MATERIAL DENTRO Y FUERA DE LA OBRA, PRUEBAS DE LABORATORIO AL BLOCK Y MORTERO, MANO DE OBRA Y TODO LO NECESARIO PARA SU CORRECTA EJECUCIÓN Y CONSTRUCCIÓN.ARA SU CORRECTA EJECUCIÓN Y CONSTRUCCIÓN."},{"$f":"+'b)Estandar (E)'!E22","v":"M2"},{"$f":"+OPUS!F8","v":183.14},{"$f":"+OPUS!G8","v":0},null,0,null,86.36,79.680000000000007,863.6]
[{"$f":"+'b)Estandar (E)'!C23","v":"EST-04"},{"$f":"+'b)Estandar (E)'!D23","v":"CASTILLO CON SECCIÓN 12 X 12 CM DE CONCRETO CON RESISTENCIA F'C 150 KG/CM2 AGREGADO MÁXIMO 19 MM EL CONCRETO SERÁ HECHO EN OBRA O PREMEZCLADO REFORZADO CON ARMEX 08x08-4 , UNICAMENTE HASTA LA LOSA MACIZA DEL ENTREPISO CON RECUBRIMIENTO MÍNIMO DE 1 CM PROMEDIO, EL ANCLAJE DE LOS CASTILLOS DEBERÁ SER DE 30CM HACIA LA CIMENTACIÓN Y HACIA LA LOSA DE AZOTEA, ACABADO APARENTE,  INCLUYE HABILITADO, TRASLAPES DE ACERO, COLADO, VIBRADO, MATERIAL , MANO DE OBRA, LIMPIEZA CARGA Y ACARREO DENTRO Y FUERA DE LA OBRA Y TODO LO NECESARIO PARA SU CORRECTA EJECUCIÓN Y CONSTRUCCIÓN."},{"$f":"+'b)Estandar (E)'!E23","v":"ML"},{"$f":"+OPUS!F9","v":158},{"$f":"+OPUS!G9","v":0},null,0,null,44.36,79.680000000000007,443.6]
[{"$f":"+'b)Estandar (E)'!C24","v":"EST-05"},{"$f":"+'b)Estandar (E)'!D24","v":"DALA DE CERRAMIENTO DE CONCRETO HECHO EN OBRA FC=150 KG/CM2, Y ARMADURA PREFABRICADA DE ARMEX 08*16/4,  INCLUYE: MATERIAL, HERRAMIENTA,MANO DE OBRA Y TODO LO NECESARIO PARA SU CORRECTA EJECUCION."},{"$f":"+'b)Estandar (E)'!E24","v":"ML"},{"$f":"+OPUS!F10","v":375.59},{"$f":"+OPUS!G10","v":0},null,0,null,53.67,79.680000000000007,536.70000000000005]
[{"$f":"+'b)Estandar (E)'!C25","v":"EST-06"},{"$f":"+'b)Estandar (E)'!D25","v":"LOSA DE AZOTEA A BASE DE VIGUETA 12-3 Y CASETON DE POLIESTIRENO, CON UNA CAPA DE COMPRESION  CON CONCRETO F'c=200 KG/CM2 DE 4 CM2 DE ESPESOR Y ACERO DE REFUERZO CON MALLA ELECTROSOLDADA 6*6-10/10;  INCLUYE CIMBRA COMUN,   INC. ARMADO, COLADO, DESCIMBRADO, HERRAMIENTA Y MANO DE OBRA."},{"$f":"+'b)Estandar (E)'!E25","v":"M2"},{"$f":"+OPUS!F11","v":465.6},{"$f":"+OPUS!G11","v":0},null,0,null,46.56,79.680000000000007,465.6]
[null,null,null,{"$f":"+A19","v":"ESTRUCTURAS"},null,null,{"$f":"+SUM(G20:H25)","v":0}]
[]
[]
[{"$f":"+'b)Estandar (E)'!D29","v":"ALBAÑILERÍA"}]
[{"$f":"+'b)Estandar (E)'!C30","v":"ALB-01."},{"$f":"+'b)Estandar (E)'!D30","v":"PRETIL DE 20 CM DE ALTURA A PLOMO Y NIVEL, DE BLOCK NORMAL DE CONCRETO O SIMILAR CON RESISTENCIA MÍNIMA DE 50 K/CM2 CON DIMENSIONES 12 20 40, ACABADO COMÚN, CON APLANADO FINO MÍNIMO DE 1CM DE ESPESOR EN LAS TRES CARAS, ASENTADO CON MORTERO CEMENTO-ARENA 1:5 INCLUYE MATERIALES, MANO DE OBRA, LIMPIEZA, CARGA Y  ACARREO DENTRO Y FUERA DE LA OBRA Y TODO LO NECESARIO PARA SU CORRECTA EJECUCIÓN Y CONSTRUCCIÓN."},{"$f":"+'b)Estandar (E)'!E30","v":"ML"},{"$f":"+OPUS!F13","v":77.599999999999994},{"$f":"+OPUS!G13","v":0},null,{"$f":"D30*E30","v":0},null,7.76,46.07,{"$f":"+I30*$I$11","v":77.599999999999994}]
[{"$f":"+'b)Estandar (E)'!C31","v":"ALB-02."},{"$f":"+'b)Estandar (E)'!D31","v":"BASE PARA TINACO A PLOMO Y NIVEL EN FORMA DE CRUZ A UNA ALTURA DE 1.50 MT TERMINADA DEL NIVEL DE LA CEBOLLA DE LA REGADERA, CON MURETES DE BLOCK NORMAL DE CONCRETO O SIMILAR CON RESISTENCIA MÍNIMA DE 50 K/CM2 CON DIMENSIONES 12 20 40 CM DE ESPESOR, ASENTADO CON MORTERO-ARENA 1:5 INCLUYE UN  CASTILLO DE REFUERZO AHOGADO EN EL EJE CENTRAL DEL ELEMENTO, EL DIÁMETRO DE LA LOSA ES DE 1.0M DE FORMA CIRCULAR CON 8CM DE ESPESOR REFORZADA CON MALLA ELECTROSOLDADA 6x6 10/10 CORRUGADA CON CONCRETO ARMADO F´C 200 KG/CM2 AGREGADO MÁXIMO 19 MM HECHO EN OBRA O PREMEZCLADO, EL ACABADO DE LA BASE ES FINO A BASE DE MORTERO CEMENTO-ARENA 1:6 Y APARENTE PARA LA LOSA, INCLUYE MATERIALES, HABILITADO DE ACERO, TRASLAPES, CIMBRA, DESCIMBRA, COLADO, VIBRADO, CURADO POR ASPERSIÓN, MANO DE OBRA, LIMPIEZA, CARGA Y ACARREO DENTRO Y FUERA DE LA OBRA Y TODO LO NECESARIO PARA SU CORRECTA EJECUCIÓN Y CONSTRUCCIÓN."},{"$f":"+'b)Estandar (E)'!E31","v":"PZA"},{"$f":"+OPUS!F14","v":10},{"$f":"+OPUS!G14","v":0},null,{"$f":"D31*E31","v":0},null,1,46.07,{"$f":"+I31*$I$11","v":10}]
[{"$f":"+'b)Estandar (E)'!C32","v":"ALB-03"},{"$f":"+'b)Estandar (E)'!D32","v":"CHAFLÁN DE 7x7 CM. DE MORTERO-ARENA 1:5 COLOCADO EN TODO EL PERÍMETRO DEL PRETIL Y DE LA BASE PARA EL TINACO Y/O DOMO EN CASO DE EXISTIR, INCLUYE MATERIAL, CARGA, ACARREO DENTRO Y FUERA DE LA OBRA, LIMPIEZA, MANO DE OBRA Y TODO LO NECESARIO PARA SU CORRECTA EJECUCIÓN Y CONSTRUCCIÓN."},{"$f":"+'b)Estandar (E)'!E32","v":"ML"},{"$f":"+OPUS!F15","v":256.2},{"$f":"+OPUS!G15","v":0},null,{"$f":"D32*E32","v":0},null,25.62,46.07,{"$f":"+I32*$I$11","v":256.2}]
[{"$f":"+'b)Estandar (E)'!C33","v":"ALB-04"},{"$f":"+'b)Estandar (E)'!D33","v":"SUMINISTRO Y APLICACIÓN DE IMPERMEABILIZACIÓN EN LOSA DE AZOTEA A BASE DE UNA CAPA DE PRIMARIO Y APLICACIÓN DE 2 CAPAS DE BITUFLEX O ACRÍLICO ELASTOMERICO (ACRITÓN) PARA TRES AÑOS O SIMILAR CON LA COLOCACION DE IMPERMEABILIZANTE PREFABRICADO SOLDABLE EN LA JUNTA CONSTRUCTIVA A TODO LO LARGO Y UNA VUELTA DE 5CM EN LOS EXTREMOS, CON REFUERZO DE UNA CAPA DE MEMBRANA TRASLAPADA 10 CM, SE SELLARAN TODAS LAS FISURAS EN LA LOSA Y JUNTAS CONSTRUCTIVAS CON RESINA EPOXICA O SIMILAR PREVIO A LA COLOCACIÓN DEL PRIMARIO, COMO TERMINADO SE APLICARA UNA CAPA DE COLOR TERRACOTA Ò SI SE APLICA MATERIAL ACRÍLICO COLOR BLANCO PREFERENTEMENTE, INCLUYE MATERIAL, ACARREOS, MANO DE OBRA Y TODO LO NECESARIO PARA SU CORRECTA EJECUCIÓN."},{"$f":"+'b)Estandar (E)'!E33","v":"M2"},{"$f":"+OPUS!F16","v":487.6},{"$f":"+OPUS!G16","v":0},null,{"$f":"D33*E33","v":0},null,48.76,46.07,{"$f":"+I33*$I$11","v":487.6}]
[{"$f":"+'b)Estandar (E)'!C34","v":"ALB-05"},{"$f":"+'b)Estandar (E)'!D34","v":"REGISTRO SANITARIO A PLOMO Y NIVEL CON MEDIDAS INTERIORES 40x60 CM CON LA PROFUNDIDAD QUE INDIQUE EL PROYECTO DE DESCARGA SANITARIA, ELABORADO A BASE  DE BLOCK NORMAL DE CONCRETO O SIMILAR CON RESISTENCIA MINIMA DE 50 KG/CM2 CON DIMENSIONES 12x20x40cm DE ESPESOR JUNTEADO CON MORTERO CEMENTO-ARENA 1:5 INCLUYE EXCAVACIÓN, NIVELACIÓN, PLANTILLA DE 3CM DE ESPESOR A BASE DE MORTERO CEMENTO ARENA 1:6, RECIBIR INSTALACIONES,  FORMACIÓN DE MEDIA CAÑA CON CONCRETO AL FONDO DEL MISMO, TAPA PARA REGISTRO CON MEDIDAS DE 48X68 CMS, DE 5.00 CMS. DE ESPESOR CON CONCRETO F'c=150 KG/CM2, R.N., AGREGADO MÁXIMO DE 3/4\", CON MARCO Y CONTRAMARCO METÁLICO DE SOLERA DE 1 1/2\"X1/8\", ARMADO CON ALAMBRÓN No2 (1/4\"), OREJA, ACABADO INTERIOR PULIDO, MANO DE OBRA, LIMPIEZA, CARGA Y ACARREO DENTRO Y FUERA DE LA OBRA Y TODO LO NECESARIO PARA SU CORRECTA EJECUCIÓN Y CONSTRUCCIÓN."},{"$f":"+'b)Estandar (E)'!E34","v":"PZA"},{"$f":"+OPUS!F17","v":10},{"$f":"+OPUS!G17","v":0},null,{"$f":"D34*E34","v":0},null,1,46.07,{"$f":"+I34*$I$11","v":10}]
[{"$f":"+'b)Estandar (E)'!C35","v":"ALB-06"},{"$f":"+'b)Estandar (E)'!D35","v":"COLOCACION DE HUELLA DE ACCESO A BASE DE CONCRETO CON RESISTENCIA F'C 100 KG/CM2 AGREGADO MÁXIMO 19 MM EL CONCRETO SERÁ HECHO EN OBRA O PREMEZCLADO DE 8 CM DE ESPESOR Y MEDIDAS 1.0 X 1.0 M, LEVE PENDIENTE DE 5MM HACIA AFUERA, INCLUYE CIMBRA, DESCIMBRA, ESCOBILLADO EN SENTIDO PERPENDICULAR A LA PUERTA Y RODAPIE EN LAS ORILLAS, MATERIALES, MANO DE OBRA, LIMPIEZA, CARGA Y ACARREO DE MATERIAL DENTRO Y FUERA DE OBRA Y TODO LO NECESARIO PARA SU CORRECTA EJECUCIÓN."},{"$f":"+'b)Estandar (E)'!E35","v":"PZA."},{"$f":"+OPUS!F18","v":10},{"$f":"+OPUS!G18","v":0},null,{"$f":"D35*E35","v":0},null,1,46.07,{"$f":"+I35*$I$11","v":10}]
[null,null,null,{"$f":"+A29","v":"ALBAÑILERÍA"},null,null,{"$f":"SUM(G30:H35)","v":0}]
[]
[]
[{"$f":"+'b)Estandar (E)'!D39","v":"ACABADOS"}]
[{"$f":"+'b)Estandar (E)'!C40","v":"ACA-01"},{"$f":"+'b)Estandar (E)'!D40","v":"APLANADO FINO EN FACHADA PRINCIPAL CON 1.5 CM DE ESPESOR PROMEDIO CON MORTERO CEMENTO-ARENA 1:5 INCLUYE REPELLADO GRUESO (DEJANDO EL TIEMPO NECESARIO DE FRAGUADO NECESARIO PARA EVITAR LA CONTRACCIÓN DEL MATERIAL), INCLUYE: PERFILADO DE ARISTAS Y BOQUILLAS EN PUERTAS Y/O VENTANAS, RETIRO DE REBABA FINA Y PICADO EN ELEMENTOS ESTRUCTURALES ANTES DE SU APLICACIÓN, MATERIAL, MANO DE OBRA Y TODO LO NECESARIO PARA SU CORRECTA EJECUCIÓN."},{"$f":"+'b)Estandar (E)'!E40","v":"M2"},{"$f":"+OPUS!F20","v":192.7},{"$f":"+OPUS!G20","v":0},null,{"$f":"D40*E40","v":0},null,19.27,null,{"$f":"+I40*$I$11","v":192.7}]
[{"$f":"+'b)Estandar (E)'!C41","v":"ACA-02"},{"$f":"+'b)Estandar (E)'!D41","v":"APLANADO ZARPEADO EN MUROS EXTERIORES ( MURO TRASERO ) A UNA ALTURA DE 2.60 MT, Y REGLA CON 1.0 CM DE ESPESOR PROMEDIO CON MORTERO-ARENA 1:5  INCLUYE  INCLUYE, MATERIALES, MANO DE OBRA, LIMPIEZA, CARGA Y ACARREO DE MATERIAL DENTRO Y FUERA DE OBRA Y TODO LO NECESARIO PARA SU CORRECTA EJECUCIÓN."},{"$f":"+'b)Estandar (E)'!E41","v":"M2"},{"$f":"+OPUS!F21","v":218},{"$f":"+OPUS!G21","v":0},null,{"$f":"D41*E41","v":0},null,21.8,null,{"$f":"+I41*$I$11","v":218}]
[{"$f":"+'b)Estandar (E)'!C42","v":"ACA-03"},{"$f":"+'b)Estandar (E)'!D42","v":"APLANADO ZARPEADO EN MUROS EXTERIORES ( MUROS LATERALES ) A UNA ALTURA DE 2.80 MT, Y REGLA CON 1.0 CM DE ESPESOR PROMEDIO CON MORTERO-ARENA 1:5  INCLUYE  INCLUYE, MATERIALES, MANO DE OBRA, LIMPIEZA, CARGA Y ACARREO DE MATERIAL DENTRO Y FUERA DE OBRA Y TODO LO NECESARIO PARA SU CORRECTA EJECUCIÓN."},{"$f":"+'b)Estandar (E)'!E42","v":"M2"},{"$f":"+OPUS!F22","v":353.7},{"$f":"+OPUS!G22","v":0},null,{"$f":"D42*E42","v":0},null,35.369999999999997,null,{"$f":"+I42*$I$11","v":353.7}]
[{"$f":"+'b)Estandar (E)'!C43","v":"ACA-04"},{"$f":"+'b)Estandar (E)'!D43","v":"EMBOQUILLADO EN PUERTAS Y VENTANAS CON MORTERO CEMENTO-ARENA 1:5, DE 1 CM. DE ESPESOR PROMEDIO, PERFILADO DEL VANO DEL ELEMENTO, INCLUYE EMBOQUILLADO DE ARISTAS EN JUNTA CONSTRUCTIVA PARA POSTERIORMENTE COLOCAR TAPAJUNTAS DE PVC DE 2\" Y 10CM DE ANCHO O UNA JUNTA CONSTRUCTIVA A BASE DE NIEVE SECA (POLIESTIRENO) DE 2\" DE ESPESOR EN FACHADA FRONTAL Y TRASERA, INCLUYE MATERIALES, MANO DE OBRA, LIMPIEZA, CARGA Y ACARREOS DENTRO Y FUERA DE LA OBRA Y TODO LO NECESARIO PARA SU CORRECTA EJECUCIÓN."},{"$f":"+'b)Estandar (E)'!E43","v":"ML"},{"$f":"+OPUS!F23","v":574.79999999999995},{"$f":"+OPUS!G23","v":0},null,{"$f":"D43*E43","v":0},null,57.48,null,{"$f":"+I43*$I$11","v":574.79999999999995}]
[{"$f":"+'b)Estandar (E)'!C44","v":"ACA-05"},{"$f":"+'b)Estandar (E)'!D44","v":"APLANADO ZARPEADO EN MUROS INTERIORES A UNA ALTURA DE 2.50 MT, Y REGLA CON 1.0 CM DE ESPESOR PROMEDIO CON MORTERO-ARENA 1:5  INCLUYE  INCLUYE, MATERIALES, MANO DE OBRA, LIMPIEZA, CARGA Y ACARREO DE MATERIAL DENTRO Y FUERA DE OBRA Y TODO LO NECESARIO PARA SU CORRECTA EJECUCIÓN."},{"$f":"+'b)Estandar (E)'!E44","v":"M2"},{"$f":"+OPUS!F24","v":1199.5999999999999},{"$f":"+OPUS!G24","v":0},null,{"$f":"D44*E44","v":0},null,119.96,null,{"$f":"+I44*$I$11","v":1199.5999999999999}]
[{"$f":"+'b)Estandar (E)'!C45","v":"ACA-06."},{"$f":"+'b)Estandar (E)'!D45","v":"SUMINISTRO Y APLICACIÓN DE PINTURA VINÍLICA EN FACHADA PRINCIPAL A DOS MANOS, INCLUYE 1 MANO DE SELLADOR 5x1, 2 MANOS DE PINTURA,  LIMPIEZA DE REBABAS, SE SELLARAN TODAS LAS FISURAS EN LOS APLANADOS Y JUNTAS CONSTRUCTIVAS CON RESINA EPOXICA O SIMILAR PREVIO A LA COLOCACIÓN DEL SELLADOR, CARGA Y ACARREOS DENTRO Y FUERA DE LA OBRA, LIMPIEZA DEL ÁREA DE TRABAJO INCLUYENDO PUERTAS Y VENTANAS Y TODO LO NECESARIO PARA SU CORRECTA EJECUCIÓN."},{"$f":"+'b)Estandar (E)'!E45","v":"M2"},{"$f":"+OPUS!F25","v":192.7},{"$f":"+OPUS!G25","v":0},null,{"$f":"D45*E45","v":0},null,19.27,null,{"$f":"+I45*$I$11","v":192.7}]
[{"$f":"+'b)Estandar (E)'!C46","v":"ACA-07"},{"$f":"+'b)Estandar (E)'!D46","v":"SUMINISTRO Y APLICACIÓN DE PINTURA VINÍLICA EN MUROS  INTERIORES (LA HABITACION PEQUEÑA SERA DE COLOR ROSA) Y PLAFON (TOTAL DE LA VIVIENDA) A DOS MANOS, INCLUYE 1 MANO DE SELLADOR 5x1, 2 MANOS DE PINTURA, LIMPIEZA DE REBABAS, SE SELLARAN TODAS LAS FISURAS EN LOS APLANADOS Y JUNTAS CONSTRUCTIVAS CON RESINA EPOXICA O SIMILAR PREVIO A LA COLOCACIÓN DEL SELLADOR, CARGA Y ACARREOS DENTRO Y FUERA DE LA OBRA, LIMPIEZA DEL ÁREA DE TRABAJO INCLUYENDO PUERTAS Y VENTANAS Y TODO LO NECESARIO PARA SU CORRECTA EJECUCIÓN."},{"$f":"+'b)Estandar (E)'!E46","v":"M2"},{"$f":"+OPUS!F26","v":1617},{"$f":"+OPUS!G26","v":0},null,{"$f":"D46*E46","v":0},null,161.69999999999999,null,{"$f":"+I46*$I$11","v":1617}]
[{"$f":"+'b)Estandar (E)'!C47","v":"ACA-08"},{"$f":"+'b)Estandar (E)'!D47","v":"SUMINISTRO Y APLICACIÓN DE PINTURA VINÍLICA EN EXTERIORES ( EN FACHADA POSTERIOR Y LATERALES ) A DOS MANOS, INCLUYE 1 MANO DE SELLADOR 5x1, 2 MANOS DE PINTURA, LIMPIEZA DE REBABAS, SE SELLARAN TODAS LAS FISURAS EN LOS APLANADOS Y JUNTAS CONSTRUCTIVAS CON RESINA EPOXICA O SIMILAR PREVIO A LA COLOCACIÓN DEL SELLADOR, CARGA Y ACARREOS DENTRO Y FUERA DE LA OBRA, LIMPIEZA DEL ÁREA DE TRABAJO INCLUYENDO PUERTAS Y VENTANAS Y TODO LO NECESARIO PARA SU CORRECTA EJECUCIÓN."},{"$f":"+'b)Estandar (E)'!E47","v":"M2"},{"$f":"+OPUS!F27","v":571.70000000000005},{"$f":"+OPUS!G27","v":0},null,{"$f":"D47*E47","v":0},null,57.17,null,{"$f":"+I47*$I$11","v":571.70000000000005}]
[{"$f":"+'b)Estandar (E)'!C48","v":"ACA-09"},{"$f":"+'b)Estandar (E)'!D48","v":"APLANADO DE PLAFOND A UNA CAPA CON MORTERO CG:C:P EN PROPORCION 1:18:9 DE 0.50 CM. DE ESPESOR PROMEDIO A PLOMO Y REGLA : INCLUYE ANDAMIOS, PERFILACIONES, MANO DE OBRA Y QUIPO."},{"$f":"+'b)Estandar (E)'!E48","v":"M2"},{"$f":"+OPUS!F28","v":417.4},{"$f":"+OPUS!G28","v":0},null,{"$f":"D48*E48","v":0},null,41.74,null,{"$f":"+I48*$I$11","v":417.4}]
[{"$f":"+OPUS!C29","v":"AC-15U"},{"$f":"+OPUS!D29","v":"      Suministro y colocacion de placa ceramica con logotipo coves sonora formato de 31x61 cms asentada al muro con cemento blanco de la marca crest o similar, ahogada en el enjarre concepto incluye materiales, mano de obra, herramienta y todo lo necesario para su correcta ejecucion."},{"$f":"+OPUS!E29","v":"pza"},{"$f":"+OPUS!F29","v":10},{"$f":"+OPUS!G29","v":0},null,{"$f":"D49*E49","v":0}]
[{"$f":"+OPUS!C30","v":"AC-16U"},{"$f":"+OPUS!D30","v":"      Suministro y colocacion de manta fabricada en vinil de 1.00 x 1.00 mts con informacion relacionado con el programa el concepto incluye material, mano de obra, herramienta y todo lo necesario para su correcta ejecucion."},{"$f":"+OPUS!E30","v":"pza"},{"$f":"+OPUS!F30","v":10},{"$f":"+OPUS!G30","v":0},null,0]
[null,null,null,{"$f":"+A39","v":"ACABADOS"},null,null,{"$f":"+SUM(G40:H50)","v":0}]
[]
[]
[{"$f":"+'b)Estandar (E)'!D52","v":"INSTALACIÓN HIDRO-SANITARIA"}]
[{"$f":"+'b)Estandar (E)'!C53","v":"INS-01"},{"$f":"+'b)Estandar (E)'!D53","v":"SALIDA HIDRÁULICA SEGÚN PROYECTO POR MUEBLE (2-REGADERA, 1-W.C., 1-LAVABO, 1-TARJA, 1-LAVADERO, 1-TINACO, ) A BASE DE POLIPROPILENO LÍNEA ECOPLUS, TUBO-PLUS, CPVC Y/O SIMILAR COLOCACIÓN DE JARRO DE AIRE EN LA SALIDA DEL TINACO, INCLUYE, LIMPIEZA, CARGA Y ACARREO DENTRO Y FUERA DE LA OBRA, MANO DE OBRA, RANURADO, RESANES DE ALBAÑILERÍA, PRUEBA HIDROSTÁTICA, Y TODO LO NECESARIO PARA EL CORRECTO FUNCIONAMIENTO DEL MUEBLE."},{"$f":"+'b)Estandar (E)'!E53","v":"SAL"},{"$f":"+OPUS!F32","v":60},{"$f":"+OPUS!G32","v":0},null,{"$f":"D55*E55","v":0},null,6,1,{"$f":"+I55*$I$11","v":60}]
[{"$f":"+'b)Estandar (E)'!C54","v":"INS-02"},{"$f":"+'b)Estandar (E)'!D54","v":"SALIDA  SANITARIA DE PVC CON DIÁMETRO SEGÚN EL MUEBLE QUE INDIQUE EL PROYECTO (REGADERA, W.C., LAVABO, TARJA, LAVADERO) INCLUYE LIMPIEZA, CARGA Y ACARREO DENTRO Y FUERA DE LA OBRA DE MATERIALES, MANO DE OBRA, RANURADO, RESANES DE ALBAÑILERÍA, PRUEBA SANITARIA, TODO LO NECESARIO PARA EL CORRECTO FUNCIONAMIENTO DEL MUEBLE."},{"$f":"+'b)Estandar (E)'!E54","v":"SAL"},{"$f":"+OPUS!F33","v":50},{"$f":"+OPUS!G33","v":0},null,{"$f":"D56*E56","v":0},null,5,1,{"$f":"+I56*$I$11","v":50}]
[{"$f":"+'b)Estandar (E)'!C55","v":"INS-03"},{"$f":"+'b)Estandar (E)'!D55","v":"SUMINISTRO Y COLOCACIÓN DE TUBO DE PVC SANITARIO CON CAMPANA DE 100 MM (4\") O LO QUE INDIQUE EL PROYECTO PARA CONEXIÓN DE REGISTRO DE DESCARGA DOMICILIARIA, JUNTEADO DICHA CONEXIÓN AL REGISTRO CON MORTERO PARA EVITAR FILTRACIONES INCLUYE EXCAVACIÓN, CAMA DE ARENA, TENDIDO, ACOSTILLADO, RELLENO COMPACTADO Y NIVELACIÓN, CARGA Y ACARREO DENTRO Y FUERA DE LA OBRA, MATERIALES, MANO DE OBRA, PRUEBA SANITARIA Y TODO LO NECESARIO PARA EL CORRECTO FUNCIONAMIENTO DE LA DESCARGA."},{"$f":"+'b)Estandar (E)'!E55","v":"ML"},{"$f":"+OPUS!F34","v":105},{"$f":"+OPUS!G34","v":0},null,0,null,10.5,1,105]
[{"$f":"+'b)Estandar (E)'!C56","v":"INS-04"},{"$f":"+'b)Estandar (E)'!D56","v":"SUMINISTRO, COLOCACIÓN Y CONEXIÓN DEL DISPARO DEL CUADRO DE MEDICIÓN HASTA LA CONEXIÓN AL TINACO, CON POLIDUCTO RD DE POLIPROPILENO LÍNEA ECOPLUS, TUBO-PLUS, CPVC Y/O SIMILAR Y TUBERÍA RÍGIDA DE 19 MM INCLUYE EXCAVACIÓN, TENDIDO, RELLENO, COMPACTACIÓN Y NIVELACIÓN, MATERIALES, MANO DE OBRA Y TODO LO NECESARIO PARA SU CORRECTO FUNCIONAMIENTO."},{"$f":"+'b)Estandar (E)'!E56","v":"ML"},{"$f":"+OPUS!F35","v":150},{"$f":"+OPUS!G35","v":0},null,0,null,15,1,150]
[{"$f":"+'b)Estandar (E)'!C57","v":"INS-05"},{"$f":"+'b)Estandar (E)'!D57","v":"SUMINISTRO Y COLOCACIÓN DE WC LÍNEA ECONÓMICA COLOR BLANCO DE GRADO ECOLOGICO MAXIMO 5 LTS., INCLUYE HERRAJES DE CONEXIÓN Y FUNCIONAMIENTO, JUNTAS SILICÓN, PRUEBA SANITARIA, SELLO DE CEMENTO GRIS EN SU BASE, LIMPIEZA, CARGA Y ACARREO DENTRO Y FUERA DE LA OBRA Y TODO LO NECESARIO PARA SU CORRECTA COLOCACIÓN Y FUNCIONAMIENTO."},{"$f":"+'b)Estandar (E)'!E57","v":"PZA"},{"$f":"+OPUS!F36","v":10},{"$f":"+OPUS!G36","v":0},null,0,null,1,1,10]
[{"$f":"+'b)Estandar (E)'!C58","v":"INS-06"},{"$f":"+'b)Estandar (E)'!D58","v":"SUMINISTRO Y COLOCACIÓN DE LAVABO LÍNEA ECONÓMICA COLOR BLANCO, INCLUYE LLAVE MEZCLADORA METÁLICA CROMADA CON DISPOSITIVO AHORRADOR DE AGUA, CESPOL DE PLÁSTICO RÍGIDO, CONTRAREJILLA, SOPORTES, SELLO ENTRE EL CONTACTO DEL LAVABO CON EL MURO A BASE DE SILICÓN TRANSPARENTE, LIMPIEZA, PRUEBA HIDROSANITARIA, CARGA Y ACARREO DE MATERIAL DENTRO Y FUERA DE LA OBRA Y TODO LO NECESARIO PARA SU CORRECTO FUNCIONAMIENTO."},{"$f":"+'b)Estandar (E)'!E58","v":"PZA"},{"$f":"+OPUS!F37","v":10},{"$f":"+OPUS!G37","v":0},null,{"$f":"D60*E60","v":0},null,1,1,{"$f":"+I60*$I$11","v":10}]
[{"$f":"+'b)Estandar (E)'!C59","v":"INS-07"},{"$f":"+'b)Estandar (E)'!D59","v":"SUMINISTRO Y COLOCACIÓN DE REGADERA CON DISPOSITIVO AHORRADOR DE AGUA INTEGRADO, LLAVES COLOCADAS HOSIZONTALMENTE, MANERALES Y CHAPETONES LÍNEA ECONÓMICA, METÁLICOS CROMADOS, INCLUYE, LIMPIEZA, CARGA, ACARREO DE MATERIALES DENTRO Y FUERA DE LA OBRA, PRUEBA HIDRÁULICA Y TODO LO NECESARIO PARA SU CORRECTO FUNCIONAMIENTO."},{"$f":"+'b)Estandar (E)'!E59","v":"PZA"},{"$f":"+OPUS!F38","v":10},{"$f":"+OPUS!G38","v":0},null,0,null,1,1,10]
[{"$f":"+'b)Estandar (E)'!C60","v":"INS-08"},{"$f":"+'b)Estandar (E)'!D60","v":"SUMINISTRO Y COLOCACIÓN DE LAVADERO CON TINA Y TALLADOR, AMACIZADO CON MORTERO-ARENA 1:5 INCLUYE ANCLAS, SOPORTE A BASE DE BLOCK NORMAL CON MEDIDAS DE 12*20*40, DE 80CM DE ALTURA, LLAVE DE NARIZ, PRUEBA HIDROSANITARIA, LIMPIEZA, CARGA Y ACARREO DENTRO Y FUERA DE LA OBRA Y TODO LO NECESARIO PARA SU CORRECTO FUNCIONAMIENTO."},{"$f":"+'b)Estandar (E)'!E60","v":"PZA"},{"$f":"+OPUS!F39","v":10},{"$f":"+OPUS!G39","v":0},null,0,null,1,1,10]
[{"$f":"+'b)Estandar (E)'!C61","v":"INS-09"},{"$f":"+'b)Estandar (E)'!D61","v":"SUMINISTRO Y COLOCACIÓN DE BOTE CESPOL CON COLADERA CROMADA DE 4\" PARA REGADERA DEL BAÑO FIJÁNDOLA CON MORTERO CEMENTO-ARENA 1:4, INCLUYE LIMPIEZA, CARGA, ACARREO DE MATERIAL DENTRO Y FUERA DE OBRA Y TODO LO NECESARIO PARA SU CORRECTO FUNCIONAMIENTO."},{"$f":"+'b)Estandar (E)'!E61","v":"PZA"},{"$f":"+OPUS!F40","v":10},{"$f":"+OPUS!G40","v":0},null,0,null,1,1,10]
[{"$f":"+'b)Estandar (E)'!C62","v":"INS-10"},{"$f":"+'b)Estandar (E)'!D62","v":"SUMINISTRO Y COLOCACIÓN DE TINACO DE POLIETILENO DE 450 LTS COLOR NEGRO MARCA ROTOPLAS O SIMILAR, INCLUYE, TAPA ROSCADA, VÁLVULA DE GLOBO ROSCADA (DE PASO), VARILLA FLOTADOR, LIMPIEZA, CARGA Y ACARREO DENTRO Y FUERA DE LA OBRA Y TODO LO NECESARIO PARA SU CORRECTA COLOCACIÓN Y FUNCIONAMIENTO."},{"$f":"+'b)Estandar (E)'!E62","v":"PZA"},{"$f":"+OPUS!F41","v":10},{"$f":"+OPUS!G41","v":0},null,{"$f":"D64*E64","v":0},null,1,1,{"$f":"+I64*$I$11","v":10}]
[{"$f":"+'b)Estandar (E)'!C63","v":"INS-11"},{"$f":"+'b)Estandar (E)'!D63","v":"SUMINISTRO Y COLOCACIÓN DE TARJA CON TINA, INCLUYE, SUMINISTRO Y COLOCACION, LIMPIEZA, CARGA Y ACARREO DENTRO Y FUERA DE LA OBRA Y TODO LO NECESARIO PARA SU CORRECTA COLOCACIÓN Y FUNCIONAMIENTO."},{"$f":"+'b)Estandar (E)'!E63","v":"PZA"},{"$f":"+OPUS!F42","v":10},{"$f":"+OPUS!G42","v":0},null,0,null,1,1,10]
[{"$f":"+'b)Estandar (E)'!C64","v":"INS-12"},{"$f":"+'b)Estandar (E)'!D64","v":"SUMINISTRO Y COLOCACION DE SISTEMA DE CAPTACION DE AGUA PLUVIAL CONECTADA A CISTERNA, INCLUYE: TUBERIA DE PVC 4 PULG CANALETA DE PVC, VALVULA CHECK, BOMBA DE 5 HP PRUEBAS DE BOMBEO DE CISTERNA A TINACO, MATERIAL, MANO DE OBRA, HERRAMIENTA, EQUIPO Y TODO LO NECESARIO PARA SU CORRECTO FUNCIONAMENTO."},{"$f":"+'b)Estandar (E)'!E64","v":"PZA"},{"$f":"+OPUS!F43","v":0},{"$f":"+OPUS!G43","v":0},null,0,null,1,1,10]
[null,null,null,{"$f":"+A54","v":"INSTALACIÓN HIDRO-SANITARIA"},null,null,{"$f":"+SUM(G55:H66)","v":0}]
[{"$f":"+'b)Estandar (E)'!D70","v":"INSTALACIÓN ELÉCTRICA"},{"$f":"+Hoja4!D28","v":"      INSTALACIONES ELECTRICAS"},{"$f":"+Hoja4!E28","v":0},{"$f":"+K68","v":0},null,null,0,null,{"$f":"+Hoja4!F28","v":0},1,0]
[{"$f":"+'b)Estandar (E)'!C71","v":"ELEC-01"},{"$f":"+'b)Estandar (E)'!D71","v":"SALIDA PARA ACOMETIDA ELÉCTRICA ADOSADA EN EL EXTERIOR DEL MURO DEL EDIFICIO CON COLOCACIÓN DE CENTRO DE CARGA QO-2, CON INTERRUPTOR TERMOMAGNÉTICO DE 15 AMP, INCLUYE MATERIALES, ACARREOS, MANO DE OBRA, LIMPIEZA Y TODOS LOS ACCESORIOS Y MATERIALES NECESARIOS PARA SU CORRECTA COLOCACIÓN."},{"$f":"+'b)Estandar (E)'!E71","v":"PZA"},{"$f":"+OPUS!F45","v":10},{"$f":"+OPUS!G45","v":0},null,0,null,1,3,10]
[{"$f":"+'b)Estandar (E)'!C72","v":"ELEC-02"},{"$f":"+'b)Estandar (E)'!D72","v":"SUMINISTRO E INSTALACIÓN DE SALIDA DE CENTRO Y/O ARBOTANTE DONDE INDIQUE EL PROYECTO, DEJANDO UNA PREPARACION PARA FUTUROS CRECIMIENTOS EN VOLADIZO DE LOSA DE COCINA, INCLUYE POLIDUCTO NARANJA REFORZADO, CAJA GALVANIZADA, CABLE No.14, SOQUET DE PLÁSTICO O DE PORCELANA, RANURADO, RESANE DE ALBAÑILERÍA, PRUEBA ELÉCTRICA, LIMPIEZA, MANO DE OBRA, Y TODO LO NECESARIO PARA SU CORRECTA INSTALACIÓN Y FUNCIONAMIENTO."},{"$f":"+'b)Estandar (E)'!E72","v":"SAL"},{"$f":"+OPUS!F46","v":80},{"$f":"+OPUS!G46","v":0},null,{"$f":"D70*E70","v":0},null,8,3,{"$f":"+I70*$I$11","v":80}]
[{"$f":"+'b)Estandar (E)'!C73","v":"ELEC-03"},{"$f":"+'b)Estandar (E)'!D73","v":"SUMINISTRO E INSTALACIÓN DE SALIDA DE APAGADOR DONDE INDIQUE EL PROYECTO, INCLUYE POLIDUCTO NARANJA REFORZADO, CAJA GALVANIZADA, CABLE No.14, PLACA DE PLÁSTICO MARCA QUINZIÑO O SIMILAR, RANURADO, RESANE DE ALBAÑILERÍA, PRUEBA ELÉCTRICA, LIMPIEZA, MANO DE OBRA, Y TODO LO NECESARIO PARA SU CORRECTA INSTALACIÓN Y FUNCIONAMIENTO."},{"$f":"+'b)Estandar (E)'!E73","v":"SAL"},{"$f":"+OPUS!F47","v":80},{"$f":"+OPUS!G47","v":0},null,0,null,8,3,80]
[{"$f":"+'b)Estandar (E)'!C74","v":"ELEC-04"},{"$f":"+'b)Estandar (E)'!D74","v":"SUMINISTRO E INSTALACIÓN DE SALIDA DE CONTACTO DONDE INDIQUE EL PROYECTO, INCLUYE POLIDUCTO NARANJA REFORZADO, CAJA GALVANIZADA, CABLE No.12, PLACA DE PLÁSTICO MARCA QUINZIÑO O SIMILAR, RANURADO, RESANE DE ALBAÑILERÍA, PRUEBA ELÉCTRICA, LIMPIEZA, MANO DE OBRA, Y TODO LO NECESARIO PARA SU CORRECTA INSTALACIÓN Y FUNCIONAMIENTO."},{"$f":"+'b)Estandar (E)'!E74","v":"SAL"},{"$f":"+OPUS!F48","v":80},{"$f":"+OPUS!G48","v":0},null,0,null,8,3,80]
[{"$f":"+'b)Estandar (E)'!C75","v":"ELEC-05"},{"$f":"+'b)Estandar (E)'!D75","v":"SUMINISTRO Y COLOCACION DE FOCOS AHORRADORES DE 13 WATTS, INCLUYE CARGA, COLOCACION Y ACARREO DENTRO Y FUERA DE LA OBRA"},{"$f":"+'b)Estandar (E)'!E75","v":"PZA"},{"$f":"+OPUS!F49","v":80},{"$f":"+OPUS!G49","v":0},null,{"$f":"D73*E73","v":0},null,8,3,{"$f":"+I73*$I$11","v":80}]
[null,null,null,{"$f":"+A68","v":"INSTALACIÓN ELÉCTRICA"},null,null,{"$f":"SUM(G69:H73)","v":0},null,null,null,0]
[{"$f":"+'b)Estandar (E)'!D80","v":"CANCELERIA"},{"$f":"+Hoja4!D35","v":0},{"$f":"+Hoja4!E35","v":0},{"$f":"+K75","v":0},null,null,{"$f":"D75*E75","v":0},null,{"$f":"+Hoja4!F35","v":0},1,{"$f":"+I75*$I$11","v":0}]
[{"$f":"+'b)Estandar (E)'!C81","v":"CAN-01"},{"$f":"+'b)Estandar (E)'!D81","v":"SUMINISTRO Y COLOCACIÓN DE PUERTA DE ACCESO A LA VIVIENDA, PREFABRICADA MULTIPANEL MIXTA ESTAMPADA (6 TABLEROS) PARA EXTERIORES, DE 0.90 X 2.10 MTS O LA COTA FINAL QUE INDIQUE LA DIRECCIÓN DE LA OBRA, LINEA VALSA O SIMILAR, COLOR BLANCO OSTIÓN, INCLUYE, MARCO METÁLICO DE MEDIO CAJÓN CON PROTECCIÓN DE PRAIMER Y ACABADO A DOS MANOS DE ESMAPZA EN COLOR BLANCO, CHAPA METÁLICA CON CERRADURA, 3 BISAGRAS LATONADAS, SELLADO CON ACRILASTIC EN AMBAS CARAS, LIMPIEZA, CARGA Y DESCARGA DE MATERIAL DENTRO Y FUERA DE LA OBRA Y TODO LO NECESARIO PARA SU CORRECTA COLOCACIÓN Y FUNCIONAMIENTO."},{"$f":"+'b)Estandar (E)'!E81","v":"PZA"},{"$f":"+OPUS!F51","v":10},{"$f":"+OPUS!G51","v":0},null,0,null,1,3,10]
[{"$f":"+'b)Estandar (E)'!C82","v":"CAN-02"},{"$f":"+'b)Estandar (E)'!D82","v":"SUMINISTRO Y COLOCACIÓN DE PUERTA TRASERA A LA VIVIENDA PREFABRICADA MULTIPANEL LISA PARA EXTERIORES, DE 0.90 x 2.10M O LA COTA FINAL QUE INDIQUE LA DIRECCION DE LA OBRA, LINEA VALSA O SIMILAR, COLOR BLANCO OSTIÓN, INCLUYE, MARCO METÁLICO DE MEDIO CAJÓN CON PROTECCIÓN DE PRAIMER Y ACABADO A DOS MANOS DE ESMAPZA EN COLOR BLANCO, CHAPA METÁLICA CON CERRADURA, 3 BISAGRAS LATONADAS, SELLADO CON ACRILASTIC EN AMBAS CARAS, LIMPIEZA, CARGA Y DESCARGA DE MATERIAL DENTRO Y FUERA DE LA OBRA Y TODO LO NECESARIO PARA SU CORRECTA COLOCACIÓN Y FUNCIONAMIENTO."},{"$f":"+'b)Estandar (E)'!E82","v":"PZA"},{"$f":"+OPUS!F52","v":10},{"$f":"+OPUS!G52","v":0},null,{"$f":"D77*E77","v":0},null,1,3,{"$f":"+I77*$I$11","v":10}]
[{"$f":"+'b)Estandar (E)'!C83","v":"CAN-03"},{"$f":"+'b)Estandar (E)'!D83","v":"SUMINISTRO Y COLOCACIÓN DE PUERTA DE RECAMARA DE MADERA DE TAMBOR DE 0.80 X 2.10 MTS. BASTIDOR DE MADERA, ACABADO EN COLOR BLANCO OSTION LÍNEA RETIVALSA O SIMILAR, INCLUYE MARCO METÁLICO DE MEDIO CAJÓN CON PROTECCIÓN DE PRAIMER Y ACABADO A DOS MANOS DE ESMAPZA EN COLOR BLANCO, CHAPA METÁLICA ACABADO COLOR SATINADO O LATON CON CERRADURA, 3 BISAGRAS DE LIBRO LATONADAS, SELLADO CON ACRILASTIC EN AMBAS CARAS, LIMPIEZA, CARGA, ACARREO DE MATERIAL DENTRO Y FUERA DE LA OBRA Y TODO LO NECESARIO PARA SU CORRECTO FUNCIONAMIENTO."},{"$f":"+'b)Estandar (E)'!E83","v":"PZA"},{"$f":"+OPUS!F53","v":20},{"$f":"+OPUS!G53","v":0},null,0,null,2,3,20]
[{"$f":"+'b)Estandar (E)'!C84","v":"CAN-04"},{"$f":"+'b)Estandar (E)'!D84","v":"SUMINISTRO Y COLOCACIÓN DE PUERTA DE BAÑO PREFABRICADA MULTIPANEL METALICA LISA DE 0.70 X 2.10 MTS. O LA COTA FINAL QUE INDIQUE LA DIRECCION DE LA OBRA  LINEA VALSA O SIMILAR, COLOR BLANCO OSTIÓN, INCLUYE MARCO METÁLICO DE MEDIO CAJÓN CON PROTECCIÓN DE PRAIMER Y ACABADO A DOS MANOS DE ESMAPZA EN COLOR BLANCO, CHAPA METÁLICA ACABADO COLOR SATINADO O LATON CON SEGURO, 3 BISAGRAS DE LIBRO LATONADAS, SELLADO CON ACRILASTIC EN AMBAS CARAS, LIMPIEZA, CARGA, ACARREO DE MATERIAL DENTRO Y FUERA DE LA OBRA Y TODO LO NECESARIO PARA SU CORRECTO FUNCIONAMIENTO."},{"$f":"+'b)Estandar (E)'!E84","v":"PZA"},{"$f":"+OPUS!F54","v":10},{"$f":"+OPUS!G54","v":0},null,0,null,1,3,10]
[{"$f":"+'b)Estandar (E)'!C85","v":"CAN-05"},{"$f":"+'b)Estandar (E)'!D85","v":"SUMINISTRO Y COLOCACIÓN DE VENTANA PARA SALA, RECAMARA Y USOS MÚLTIPLES, DE 1.20 x 1.20 M. CON CELOSIA INTEGRADA DE ALUMINIO LÍNEA 1-1/2\" ANODIZADO NATURAL, CON VIDRIO CLARO DE 3MM, JALADERA, CARRETILLAS, APLICACIÓN DE SELLO CON ACRILASTIC EN AMBAS CARAS, LIMPIEZA, CARGA Y ACARREO DE MATERIAL DENTRO Y FUERA DE OBRA Y TODO LO NECESARIO PARA SU CORRECTO FUNCIONAMIENTO."},{"$f":"+'b)Estandar (E)'!E85","v":"PZA"},{"$f":"+OPUS!F55","v":40},{"$f":"+OPUS!G55","v":0},null,{"$f":"D80*E80","v":0},null,4,3,{"$f":"+I80*$I$11","v":40}]
[{"$f":"+'b)Estandar (E)'!C86","v":"CAN-06"},{"$f":"+'b)Estandar (E)'!D86","v":"SUMINISTRO Y COLOCACIÓN DE VENTANA PARA SALA, RECAMARA Y USOS MÚLTIPLES, DE 0.40 x 0.60 M. CON CELOSIA INTEGRADA DE ALUMINIO LÍNEA 1-1/2\" ANODIZADO NATURAL, CON VIDRIO CLARO DE 3MM, JALADERA, CARRETILLAS, APLICACIÓN DE SELLO CON ACRILASTIC EN AMBAS CARAS, LIMPIEZA, CARGA Y ACARREO DE MATERIAL DENTRO Y FUERA DE OBRA Y TODO LO NECESARIO PARA SU CORRECTO FUNCIONAMIENTO."},{"$f":"+'b)Estandar (E)'!E86","v":"PZA"},{"$f":"+OPUS!F56","v":10},{"$f":"+OPUS!G56","v":0},null,0,null,1,3,10]
[null,null,null,{"$f":"+A75","v":"CANCELERIA"},null,null,{"$f":"SUM(G76:H81)","v":0},null,null,null,0]
[{"$f":"+'b)Estandar (E)'!D96","v":"LIMPIEZA"},{"$f":"+Hoja4!D47","v":0},{"$f":"+Hoja4!E47","v":0},{"$f":"+K83","v":0},null,null,{"$f":"D83*E83","v":0},null,{"$f":"+Hoja4!F47","v":0},1,{"$f":"+I83*$I$11","v":0}]
[{"$f":"+'b)Estandar (E)'!C97","v":"LIM-01"},{"$f":"+'b)Estandar (E)'!D97","v":"LIMPIEZA FINAL, INCLUYE CARGA,  ACARREO DENTRO Y FUERA DE LA OBRA, DURANTE EL PROCESO LO REQUIERA EN VARIAS ETAPAS."},{"$f":"+'b)Estandar (E)'!E97","v":"M2"},{"$f":"+OPUS!F58","v":522.5},{"$f":"+OPUS!G58","v":0},null,0,null,52.25,3,522.5]
[null,null,null,{"$f":"+A83","v":"LIMPIEZA"},null,null,{"$f":"+G84","v":0},null,null,null,0]
[]
[]
["TOTAL DE PRESUPUESTO **                                             ",null,null,"TOTAL DE PRESUPUESTO",null,null,{"$f":"+G16+G26+G36+G51+G67+G74+G82+G85","v":0}]

{"sheet":"OPUS","index":5,"n_rows":58,"n_cols":6,"rows_kept":58,"cut":false,"hidden":false,"merged":[]}
["Capítulo","-",null,"TERMINACION DE CONSTRUCCIÓN DE 10(DIEZ ) UNIDAD BASICA DE VIVIENDA INDIGENA  DE 45 M2 EN AREA URBANA Y SEMIURBANA  A BASE DE LOSA DE CIMENTACIÓN, MUROS DE BLOCK, TECHO DE VIGUETA, INSTALACIONES ELÉCTRICAS, HIDRAULICAS, SANITARIAS, CANCELERIA Y EQUIPAMIENTO  EN VARIAS LOCALIDADES DEL MUNICIPIO DE BENITO JUAREZ, SONORA."]
["Subcapítulo","-","1.-","   LOSA DE CIMENTACION"]
["Concepto",null,"PRE-01","      TRAZO Y NIVELACIÓN EN PLATAFORMA, PARA LA UBICACIÓN DE EJES, Y PERÍMETROS  DE LA LOSA DE CIMENTACIÓN, TRAZO DE DESPLANTE DE MUROS Y LOCALIZACIÓN DE CASTILLO INCLUYE MATERIALES, MANO DE OBRA Y TODO LO NECESARIO PARA SU CORRECTA EJECUCIÓN.","M2",0]
["Concepto",null,"PRE-02","      EXCAVACIÓN CON PALA DERECHA A MANO EN PLATAFORMA MEJORADA, INCLUYE AFINE DE TALUDES Y FONDO, PARA ALOJAR CIMENTACIÓN PROFUNDA DE 0.00 A 2.00 M INCLUYE LIMPIEZA Y ACARREOS DENTRO,  FUERA DE LA OBRA.","M3",0]
["Subcapítulo","-","2.-","   ESTRUCTURAS"]
["Concepto",null,"EST-01","      LOSA DE CIMENTACIÓN DE CONCRETO ARMADO DE 12 CM. DE ESPESOR, A BASE DE CONCRETO F'C=200 KG/CM2  CON AGREGADO MÁXIMO DE 38 MM HECHO EN OBRA O PREMEZCLADO, REFORZADO CON MALLA DE ACERO ELECTROSOLDADA CORRUGADA 6-6/8-8  Y CADENAS CON ARMEX 12x20 CM REFORZADAS CON  UN TRASLAPE MÍNIMO DE 10 CMS. EN LA MALLA Y 20 CMS EN EL ARMEX, CON BASTONES DE  VARILLAS DE 3/8\"  SEPARADAS SEGÚN PROYECTO E INCLUYE ARREGLO EN CHAROLA PARA BAÑO (PREPARACIÓN PARA RECIBIR LA INSTALACIÓN HIDROSANITARIA) HABILITADO, TRASLAPES, CIMBRA, DESCIMBRA, COLADO, VIBRADO POR MEDIOS MECANICOS, ACABADO LISO PULIDO, CURADO POR ASPERSIÓN, COLOCACIÓN DE POLIETILENO CAL. 600 EN TODA LA SUPERFICIE QUE ABARQUE EL ARMADO DE ACERO, PRUEBAS DE LABORATORIO, INCLUYE MATERIALES, MANO DE OBRA, LIMPIEZA, CARGA Y ACARREOS DENTRO Y FUERA DE LA OBRA, Y TODO LO NECESARIO PARA SU CORRECTA EJECUCIÓN Y CONSTRUCCIÓN.","M2",0]
["Concepto",null,"EST-02","       IMPERMEABILIZACIÓN EN LA LOSA DE CIMENTACIÓN ENTRE EL DESPLANTE DE LOS MUROS, CON EMULSIÓN ASFÁLTICA EMULCOAT O SIMILAR REBAJADA AL 50% CON  UNA CAPA DE 5MM DE ESPESOR, INCLUYE MATERIALES, MANO DE OBRA, ACARREOS Y TODO LO NECESARIO PARA SU CORRECTA INSTALACIÓN.","ml",0]
["Concepto",null,"EST-03.","      MURO A PLOMO  HASTA  UNA  ALTURA  DE  2.55  MT,  DE  BLOCK  NORMAL DE CONCRETO CON RESISTENCIA MÍNIMA DE 50 KG/CM2 CON DIMENSIONES 12x20x40, ASENTADO CON MORTERO CEMENTO-ARENA 1:5, CON ACABADO APARENTE AMBAS CARAS CON JUNTA VACÍA O BOLEADA, INCLUYE LECHO SUPERIOR DE VANOS DE PUERTAS INTERIORES Y EXTERIORES, ASÍ COMO VENTANAS, SOSTENIDOS CON CADENAS INTERMEDIAS, CARGA Y ACARREO DE MATERIAL DENTRO Y FUERA DE LA OBRA, PRUEBAS DE LABORATORIO AL BLOCK Y MORTERO, MANO DE OBRA Y TODO LO NECESARIO PARA SU CORRECTA EJECUCIÓN Y CONSTRUCCIÓN.ARA SU CORRECTA EJECUCIÓN Y CONSTRUCCIÓN.","M2",183.14]
["Concepto",null,"EST-04","      CASTILLO CON SECCIÓN 12 X 12 CM DE CONCRETO CON RESISTENCIA F'C 150 KG/CM2 AGREGADO MÁXIMO 19 MM EL CONCRETO SERÁ HECHO EN OBRA O PREMEZCLADO REFORZADO CON ARMEX 08x08-4 , UNICAMENTE HASTA LA LOSA MACIZA DEL ENTREPISO CON RECUBRIMIENTO MÍNIMO DE 1 CM PROMEDIO, EL ANCLAJE DE LOS CASTILLOS DEBERÁ SER DE 30CM HACIA LA CIMENTACIÓN Y HACIA LA LOSA DE AZOTEA, ACABADO APARENTE,  INCLUYE HABILITADO, TRASLAPES DE ACERO, COLADO, VIBRADO, MATERIAL , MANO DE OBRA, LIMPIEZA CARGA Y ACARREO DENTRO Y FUERA DE LA OBRA Y TODO LO NECESARIO PARA SU CORRECTA EJECUCIÓN Y CONSTRUCCIÓN.","Ml",158]
["Concepto",null,"EST-05","      DALA DE CERRAMIENTO DE CONCRETO HECHO EN OBRA FC=150 KG/CM2, Y ARMADURA PREFABRICADA DE ARMEX 08*16/4,  INCLUYE: MATERIAL, HERRAMIENTA,MANO DE OBRA Y TODO LO NECESARIO PARA SU CORRECTA EJECUCION.","Ml",375.59]
["Concepto",null,"EST-06","      LOSA DE AZOTEA A BASE DE VIGUETA 12-3 Y CASETON DE POLIESTIRENO, CON UNA CAPA DE COMPRESION  CON CONCRETO F'c=200 KG/CM2 DE 4 CM2 DE ESPESOR Y ACERO DE REFUERZO CON MALLA ELECTROSOLDADA 6*6-10/10;  INCLUYE CIMBRA COMUN,   INC. ARMADO, COLADO, DESCIMBRADO, HERRAMIENTA Y MANO DE OBRA.","M2",465.6]
["Subcapítulo","-","3.-","   ALBAÑILERIA"]
["Concepto",null,"ALB-01.","      PRETIL DE 20 CM DE ALTURA A PLOMO Y NIVEL, DE BLOCK NORMAL DE CONCRETO O SIMILAR CON RESISTENCIA MÍNIMA DE 50 K/CM2 CON DIMENSIONES 12 20 40, ACABADO COMÚN, CON APLANADO FINO MÍNIMO DE 1CM DE ESPESOR EN LAS TRES CARAS, ASENTADO CON MORTERO CEMENTO-ARENA 1:5 INCLUYE MATERIALES, MANO DE OBRA, LIMPIEZA, CARGA Y  ACARREO DENTRO Y FUERA DE LA OBRA Y TODO LO NECESARIO PARA SU CORRECTA EJECUCIÓN Y CONSTRUCCIÓN.","ML",77.599999999999994]
["Concepto",null,"ALB-02.","      BASE PARA TINACO A PLOMO Y NIVEL EN FORMA DE CRUZ A UNA ALTURA DE 1.50 MT TERMINADA DEL NIVEL DE LA CEBOLLA DE LA REGADERA, CON MURETES DE BLOCK NORMAL DE CONCRETO O SIMILAR CON RESISTENCIA MÍNIMA DE 50 K/CM2 CON DIMENSIONES 12 20 40 CM DE ESPESOR, ASENTADO CON MORTERO-ARENA 1:5 INCLUYE UN  CASTILLO DE REFUERZO AHOGADO EN EL EJE CENTRAL DEL ELEMENTO, EL DIÁMETRO DE LA LOSA ES DE 1.0M DE FORMA CIRCULAR CON 8CM DE ESPESOR REFORZADA CON MALLA ELECTROSOLDADA 6x6 10/10 CORRUGADA CON CONCRETO ARMADO F´C 200 KG/CM2 AGREGADO MÁXIMO 19 MM HECHO EN OBRA O PREMEZCLADO, EL ACABADO DE LA BASE ES FINO A BASE DE MORTERO CEMENTO-ARENA 1:6 Y APARENTE PARA LA LOSA, INCLUYE MATERIALES, HABILITADO DE ACERO, TRASLAPES, CIMBRA, DESCIMBRA, COLADO, VIBRADO, CURADO POR ASPERSIÓN, MANO DE OBRA, LIMPIEZA, CARGA Y ACARREO DENTRO Y FUERA DE LA OBRA Y TODO LO NECESARIO PARA SU CORRECTA EJECUCIÓN Y CONSTRUCCIÓN.","PZA",10]
["Concepto",null,"ALB-03","      CHAFLÁN DE 7x7 CM. DE MORTERO-ARENA 1:5 COLOCADO EN TODO EL PERÍMETRO DEL PRETIL Y DE LA BASE PARA EL TINACO Y/O DOMO EN CASO DE EXISTIR, INCLUYE MATERIAL, CARGA, ACARREO DENTRO Y FUERA DE LA OBRA, LIMPIEZA, MANO DE OBRA Y TODO LO NECESARIO PARA SU CORRECTA EJECUCIÓN Y CONSTRUCCIÓN.","ML",256.2]
["Concepto",null,"ALB-04","      SUMINISTRO Y APLICACIÓN DE IMPERMEABILIZACIÓN EN LOSA DE AZOTEA A BASE DE UNA CAPA DE PRIMARIO Y APLICACIÓN DE 2 CAPAS DE BITUFLEX O ACRÍLICO ELASTOMERICO (ACRITÓN) PARA TRES AÑOS O SIMILAR CON LA COLOCACION DE IMPERMEABILIZANTE PREFABRICADO SOLDABLE EN LA JUNTA CONSTRUCTIVA A TODO LO LARGO Y UNA VUELTA DE 5CM EN LOS EXTREMOS, CON REFUERZO DE UNA CAPA DE MEMBRANA TRASLAPADA 10 CM, SE SELLARAN TODAS LAS FISURAS EN LA LOSA Y JUNTAS CONSTRUCTIVAS CON RESINA EPOXICA O SIMILAR PREVIO A LA COLOCACIÓN DEL PRIMARIO, COMO TERMINADO SE APLICARA UNA CAPA DE COLOR TERRACOTA Ò SI SE APLICA MATERIAL ACRÍLICO COLOR BLANCO PREFERENTEMENTE, INCLUYE MATERIAL, ACARREOS, MANO DE OBRA Y TODO LO NECESARIO PARA SU CORRECTA EJECUCIÓN.","M2",487.6]
["Concepto",null,"ALB-05","       REGISTRO SANITARIO A PLOMO Y NIVEL CON MEDIDAS INTERIORES 40x60 CM CON LA PROFUNDIDAD QUE INDIQUE EL PROYECTO DE DESCARGA SANITARIA, ELABORADO A BASE  DE BLOCK NORMAL DE CONCRETO O SIMILAR CON RESISTENCIA MINIMA DE 50 KG/CM2 CON DIMENSIONES 12x20x40cm DE ESPESOR JUNTEADO CON MORTERO CEMENTO-ARENA 1:5 INCLUYE EXCAVACIÓN, NIVELACIÓN, PLANTILLA DE 3CM DE ESPESOR A BASE DE MORTERO CEMENTO ARENA 1:6, RECIBIR INSTALACIONES,  FORMACIÓN DE MEDIA CAÑA CON CONCRETO AL FONDO DEL MISMO, TAPA PARA REGISTRO CON MEDIDAS DE 48X68 CMS, DE 5.00 CMS. DE ESPESOR CON CONCRETO F'c=150 KG/CM2, R.N., AGREGADO MÁXIMO DE 3/4\", CON MARCO Y CONTRAMARCO METÁLICO DE SOLERA DE 1 1/2\"X1/8\", ARMADO CON ALAMBRÓN No2 (1/4\"), OREJA, ACABADO INTERIOR PULIDO, MANO DE OBRA, LIMPIEZA, CARGA Y ACARREO DENTRO Y FUERA DE LA OBRA Y TODO LO NECESARIO PARA SU CORRECTA EJECUCIÓN Y CONSTRUCCIÓN.","PZA",10]
["Concepto",null,"ALB-06","      COLOCACION DE HUELLA DE ACCESO A BASE DE CONCRETO CON RESISTENCIA F'C 100 KG/CM2 AGREGADO MÁXIMO 19 MM EL CONCRETO SERÁ HECHO EN OBRA O PREMEZCLADO DE 8 CM DE ESPESOR Y MEDIDAS 1.0 X 1.0 M, LEVE PENDIENTE DE 5MM HACIA AFUERA, INCLUYE CIMBRA, DESCIMBRA, ESCOBILLADO EN SENTIDO PERPENDICULAR A LA PUERTA Y RODAPIE EN LAS ORILLAS, MATERIALES, MANO DE OBRA, LIMPIEZA, CARGA Y ACARREO DE MATERIAL DENTRO Y FUERA DE OBRA Y TODO LO NECESARIO PARA SU CORRECTA EJECUCIÓN.","PZA",10]
["Subcapítulo","-","4.-","   ACABADOS"]
["Concepto",null,"ACA-01","      APLANADO FINO EN FACHADA PRINCIPAL CON 1.5 CM DE ESPESOR PROMEDIO CON MORTERO CEMENTO-ARENA 1:5 INCLUYE REPELLADO GRUESO (DEJANDO EL TIEMPO NECESARIO DE FRAGUADO NECESARIO PARA EVITAR LA CONTRACCIÓN DEL MATERIAL), INCLUYE: PERFILADO DE ARISTAS Y BOQUILLAS EN PUERTAS Y/O VENTANAS, RETIRO DE REBABA FINA Y PICADO EN ELEMENTOS ESTRUCTURALES ANTES DE SU APLICACIÓN, MATERIAL, MANO DE OBRA Y TODO LO NECESARIO PARA SU CORRECTA EJECUCIÓN.","m2",192.7]
["Concepto",null,"ACA-02","      APLANADO ZARPEADO EN MUROS EXTERIORES ( MURO TRASERO ) A UNA ALTURA DE 2.60 MT, Y REGLA CON 1.0 CM DE ESPESOR PROMEDIO CON MORTERO-ARENA 1:5  INCLUYE  INCLUYE, MATERIALES, MANO DE OBRA, LIMPIEZA, CARGA Y ACARREO DE MATERIAL DENTRO Y FUERA DE OBRA Y TODO LO NECESARIO PARA SU CORRECTA EJECUCIÓN.","m2",218]
["Concepto",null,"ACA-03","      APLANADO ZARPEADO EN MUROS EXTERIORES ( MUROS LATERALES ) A UNA ALTURA DE 2.80 MT, Y REGLA CON 1.0 CM DE ESPESOR PROMEDIO CON MORTERO-ARENA 1:5  INCLUYE  INCLUYE, MATERIALES, MANO DE OBRA, LIMPIEZA, CARGA Y ACARREO DE MATERIAL DENTRO Y FUERA DE OBRA Y TODO LO NECESARIO PARA SU CORRECTA EJECUCIÓN.","m2",353.7]
["Concepto",null,"ACA-04","      EMBOQUILLADO EN PUERTAS Y VENTANAS CON MORTERO CEMENTO-ARENA 1:5, DE 1 CM. DE ESPESOR PROMEDIO, PERFILADO DEL VANO DEL ELEMENTO, INCLUYE EMBOQUILLADO DE ARISTAS EN JUNTA CONSTRUCTIVA PARA POSTERIORMENTE COLOCAR TAPAJUNTAS DE PVC DE 2\" Y 10CM DE ANCHO O UNA JUNTA CONSTRUCTIVA A BASE DE NIEVE SECA (POLIESTIRENO) DE 2\" DE ESPESOR EN FACHADA FRONTAL Y TRASERA, INCLUYE MATERIALES, MANO DE OBRA, LIMPIEZA, CARGA Y ACARREOS DENTRO Y FUERA DE LA OBRA Y TODO LO NECESARIO PARA SU CORRECTA EJECUCIÓN.","ML",574.79999999999995]
["Concepto",null,"ACA-05","      APLANADO ZARPEADO EN MUROS INTERIORES A UNA ALTURA DE 2.50 MT, Y REGLA CON 1.0 CM DE ESPESOR PROMEDIO CON MORTERO-ARENA 1:5  INCLUYE  INCLUYE, MATERIALES, MANO DE OBRA, LIMPIEZA, CARGA Y ACARREO DE MATERIAL DENTRO Y FUERA DE OBRA Y TODO LO NECESARIO PARA SU CORRECTA EJECUCIÓN.","m2",1199.5999999999999]
["Concepto",null,"ACA-06.","      SUMINISTRO Y APLICACIÓN DE PINTURA VINÍLICA EN FACHADA PRINCIPAL A DOS MANOS, INCLUYE 1 MANO DE SELLADOR 5x1, 2 MANOS DE PINTURA,  LIMPIEZA DE REBABAS, SE SELLARAN TODAS LAS FISURAS EN LOS APLANADOS Y JUNTAS CONSTRUCTIVAS CON RESINA EPOXICA O SIMILAR PREVIO A LA COLOCACIÓN DEL SELLADOR, CARGA Y ACARREOS DENTRO Y FUERA DE LA OBRA, LIMPIEZA DEL ÁREA DE TRABAJO INCLUYENDO PUERTAS Y VENTANAS Y TODO LO NECESARIO PARA SU CORRECTA EJECUCIÓN.","M2",192.7]
["Concepto",null,"ACA-07","      SUMINISTRO Y APLICACIÓN DE PINTURA VINÍLICA EN MUROS  INTERIORES (LA HABITACION PEQUEÑA SERA DE COLOR ROSA) Y PLAFON (TOTAL DE LA VIVIENDA) A DOS MANOS, INCLUYE 1 MANO DE SELLADOR 5x1, 2 MANOS DE PINTURA, LIMPIEZA DE REBABAS, SE SELLARAN TODAS LAS FISURAS EN LOS APLANADOS Y JUNTAS CONSTRUCTIVAS CON RESINA EPOXICA O SIMILAR PREVIO A LA COLOCACIÓN DEL SELLADOR, CARGA Y ACARREOS DENTRO Y FUERA DE LA OBRA, LIMPIEZA DEL ÁREA DE TRABAJO INCLUYENDO PUERTAS Y VENTANAS Y TODO LO NECESARIO PARA SU CORRECTA EJECUCIÓN.","M2",1617]
["Concepto",null,"ACA-08","      SUMINISTRO Y APLICACIÓN DE PINTURA VINÍLICA EN EXTERIORES ( EN FACHADA POSTERIOR Y LATERALES ) A DOS MANOS, INCLUYE 1 MANO DE SELLADOR 5x1, 2 MANOS DE PINTURA, LIMPIEZA DE REBABAS, SE SELLARAN TODAS LAS FISURAS EN LOS APLANADOS Y JUNTAS CONSTRUCTIVAS CON RESINA EPOXICA O SIMILAR PREVIO A LA COLOCACIÓN DEL SELLADOR, CARGA Y ACARREOS DENTRO Y FUERA DE LA OBRA, LIMPIEZA DEL ÁREA DE TRABAJO INCLUYENDO PUERTAS Y VENTANAS Y TODO LO NECESARIO PARA SU CORRECTA EJECUCIÓN.","M2",571.70000000000005]
["Concepto",null,"ACA-09","      APLANADO DE PLAFOND A UNA CAPA CON MORTERO CG:C:P EN PROPORCION 1:18:9 DE 0.50 CM. DE ESPESOR PROMEDIO A PLOMO Y REGLA : INCLUYE ANDAMIOS, PERFILACIONES, MANO DE OBRA Y QUIPO.","M2",417.4]
["Concepto",null,"AC-15U","      Suministro y colocacion de placa ceramica con logotipo coves sonora formato de 31x61 cms asentada al muro con cemento blanco de la marca crest o similar, ahogada en el enjarre concepto incluye materiales, mano de obra, herramienta y todo lo necesario para su correcta ejecucion.","pza",10]
["Concepto",null,"AC-16U","      Suministro y colocacion de manta fabricada en vinil de 1.00 x 1.00 mts con informacion relacionado con el programa el concepto incluye material, mano de obra, herramienta y todo lo necesario para su correcta ejecucion.","pza",10]
["Subcapítulo","-","5.-","    INSTALACIÓN HIDRO-SANITARIA"]
["Concepto",null,"INS-01","      SALIDA HIDRÁULICA SEGÚN PROYECTO POR MUEBLE (2-REGADERA, 1-W.C., 1-LAVABO, 1-TARJA, 1-LAVADERO, 1-TINACO, ) A BASE DE POLIPROPILENO LÍNEA ECOPLUS, TUBO-PLUS, CPVC Y/O SIMILAR COLOCACIÓN DE JARRO DE AIRE EN LA SALIDA DEL TINACO, INCLUYE, LIMPIEZA, CARGA Y ACARREO DENTRO Y FUERA DE LA OBRA, MANO DE OBRA, RANURADO, RESANES DE ALBAÑILERÍA, PRUEBA HIDROSTÁTICA, Y TODO LO NECESARIO PARA EL CORRECTO FUNCIONAMIENTO DEL MUEBLE.","SAL",60]
["Concepto",null,"INS-02","      SALIDA  SANITARIA DE PVC CON DIÁMETRO SEGÚN EL MUEBLE QUE INDIQUE EL PROYECTO (REGADERA, W.C., LAVABO, TARJA, LAVADERO) INCLUYE LIMPIEZA, CARGA Y ACARREO DENTRO Y FUERA DE LA OBRA DE MATERIALES, MANO DE OBRA, RANURADO, RESANES DE ALBAÑILERÍA, PRUEBA SANITARIA, TODO LO NECESARIO PARA EL CORRECTO FUNCIONAMIENTO DEL MUEBLE.","SAL",50]
["Concepto",null,"INS-03","      SUMINISTRO Y COLOCACIÓN DE TUBO DE PVC SANITARIO CON CAMPANA DE 100 MM (4\") O LO QUE INDIQUE EL PROYECTO PARA CONEXIÓN DE REGISTRO DE DESCARGA DOMICILIARIA, JUNTEADO DICHA CONEXIÓN AL REGISTRO CON MORTERO PARA EVITAR FILTRACIONES INCLUYE EXCAVACIÓN, CAMA DE ARENA, TENDIDO, ACOSTILLADO, RELLENO COMPACTADO Y NIVELACIÓN, CARGA Y ACARREO DENTRO Y FUERA DE LA OBRA, MATERIALES, MANO DE OBRA, PRUEBA SANITARIA Y TODO LO NECESARIO PARA EL CORRECTO FUNCIONAMIENTO DE LA DESCARGA.","ML",105]
["Concepto",null,"INS-04","      SUMINISTRO, COLOCACIÓN Y CONEXIÓN DEL DISPARO DEL CUADRO DE MEDICIÓN HASTA LA CONEXIÓN AL TINACO, CON POLIDUCTO RD DE POLIPROPILENO LÍNEA ECOPLUS, TUBO-PLUS, CPVC Y/O SIMILAR Y TUBERÍA RÍGIDA DE 19 MM INCLUYE EXCAVACIÓN, TENDIDO, RELLENO, COMPACTACIÓN Y NIVELACIÓN, MATERIALES, MANO DE OBRA Y TODO LO NECESARIO PARA SU CORRECTO FUNCIONAMIENTO.","ML",150]
["Concepto",null,"INS-05","      SUMINISTRO Y COLOCACIÓN DE WC LÍNEA ECONÓMICA COLOR BLANCO DE GRADO ECOLOGICO MAXIMO 5 LTS., INCLUYE HERRAJES DE CONEXIÓN Y FUNCIONAMIENTO, JUNTAS SILICÓN, PRUEBA SANITARIA, SELLO DE CEMENTO GRIS EN SU BASE, LIMPIEZA, CARGA Y ACARREO DENTRO Y FUERA DE LA OBRA Y TODO LO NECESARIO PARA SU CORRECTA COLOCACIÓN Y FUNCIONAMIENTO.","PZA",10]
["Concepto",null,"INS-06","      SUMINISTRO Y COLOCACIÓN DE LAVABO LÍNEA ECONÓMICA COLOR BLANCO, INCLUYE LLAVE MEZCLADORA METÁLICA CROMADA CON DISPOSITIVO AHORRADOR DE AGUA, CESPOL DE PLÁSTICO RÍGIDO, CONTRAREJILLA, SOPORTES, SELLO ENTRE EL CONTACTO DEL LAVABO CON EL MURO A BASE DE SILICÓN TRANSPARENTE, LIMPIEZA, PRUEBA HIDROSANITARIA, CARGA Y ACARREO DE MATERIAL DENTRO Y FUERA DE LA OBRA Y TODO LO NECESARIO PARA SU CORRECTO FUNCIONAMIENTO.","PZA",10]
["Concepto",null,"INS-07","      SUMINISTRO Y COLOCACIÓN DE REGADERA CON DISPOSITIVO AHORRADOR DE AGUA INTEGRADO, LLAVES COLOCADAS HOSIZONTALMENTE, MANERALES Y CHAPETONES LÍNEA ECONÓMICA, METÁLICOS CROMADOS, INCLUYE, LIMPIEZA, CARGA, ACARREO DE MATERIALES DENTRO Y FUERA DE LA OBRA, PRUEBA HIDRÁULICA Y TODO LO NECESARIO PARA SU CORRECTO FUNCIONAMIENTO.","PZA",10]
["Concepto",null,"INS-08","      SUMINISTRO Y COLOCACIÓN DE LAVADERO CON TINA Y TALLADOR, AMACIZADO CON MORTERO-ARENA 1:5 INCLUYE ANCLAS, SOPORTE A BASE DE BLOCK NORMAL CON MEDIDAS DE 12*20*40, DE 80CM DE ALTURA, LLAVE DE NARIZ, PRUEBA HIDROSANITARIA, LIMPIEZA, CARGA Y ACARREO DENTRO Y FUERA DE LA OBRA Y TODO LO NECESARIO PARA SU CORRECTO FUNCIONAMIENTO.","PZA",10]
["Concepto",null,"INS-09","      SUMINISTRO Y COLOCACIÓN DE BOTE CESPOL CON COLADERA CROMADA DE 4\" PARA REGADERA DEL BAÑO FIJÁNDOLA CON MORTERO CEMENTO-ARENA 1:4, INCLUYE LIMPIEZA, CARGA, ACARREO DE MATERIAL DENTRO Y FUERA DE OBRA Y TODO LO NECESARIO PARA SU CORRECTO FUNCIONAMIENTO.","PZA",10]
["Concepto",null,"INS-10","      SUMINISTRO Y COLOCACIÓN DE TINACO DE POLIETILENO DE 450 LTS COLOR NEGRO MARCA ROTOPLAS O SIMILAR, INCLUYE, TAPA ROSCADA, VÁLVULA DE GLOBO ROSCADA (DE PASO), VARILLA FLOTADOR, LIMPIEZA, CARGA Y ACARREO DENTRO Y FUERA DE LA OBRA Y TODO LO NECESARIO PARA SU CORRECTA COLOCACIÓN Y FUNCIONAMIENTO.","PZA",10]
["Concepto",null,"INS-11","      SUMINISTRO Y COLOCACIÓN DE TARJA CON TINA, INCLUYE, SUMINISTRO Y COLOCACION, LIMPIEZA, CARGA Y ACARREO DENTRO Y FUERA DE LA OBRA Y TODO LO NECESARIO PARA SU CORRECTA COLOCACIÓN Y FUNCIONAMIENTO.","PZA",10]
["Concepto",null,"INS-12","      SUMINISTRO Y COLOCACION DE SISTEMA DE CAPTACION DE AGUA PLUVIAL CONECTADA A CISTERNA, INCLUYE: TUBERIA DE PVC 4 PULG CANALETA DE PVC,  MATERIAL, MANO DE OBRA, HERRAMIENTA, EQUIPO Y TODO LO NECESARIO PARA SU CORRECTO FUNCIONAMENTO.","PZA",0]
["Subcapítulo","-","6.-","    INSTALACIÓN ELÉCTRICA"]
["Concepto",null,"ELEC-01","      SALIDA PARA ACOMETIDA ELÉCTRICA ADOSADA EN EL EXTERIOR DEL MURO DEL EDIFICIO CON COLOCACIÓN DE CENTRO DE CARGA QO-2, CON INTERRUPTOR TERMOMAGNÉTICO DE 15 AMP, INCLUYE MATERIALES, ACARREOS, MANO DE OBRA, LIMPIEZA Y TODOS LOS ACCESORIOS Y MATERIALES NECESARIOS PARA SU CORRECTA COLOCACIÓN.","PZA",10]
["Concepto",null,"ELEC-02","      SUMINISTRO E INSTALACIÓN DE SALIDA DE CENTRO Y/O ARBOTANTE DONDE INDIQUE EL PROYECTO, DEJANDO UNA PREPARACION PARA FUTUROS CRECIMIENTOS EN VOLADIZO DE LOSA DE COCINA, INCLUYE POLIDUCTO NARANJA REFORZADO, CAJA GALVANIZADA, CABLE No.14, SOQUET DE PLÁSTICO O DE PORCELANA, RANURADO, RESANE DE ALBAÑILERÍA, PRUEBA ELÉCTRICA, LIMPIEZA, MANO DE OBRA, Y TODO LO NECESARIO PARA SU CORRECTA INSTALACIÓN Y FUNCIONAMIENTO.","Sal",80]
["Concepto",null,"ELEC-03","      SUMINISTRO E INSTALACIÓN DE SALIDA DE APAGADOR DONDE INDIQUE EL PROYECTO, INCLUYE POLIDUCTO NARANJA REFORZADO, CAJA GALVANIZADA, CABLE No.14, PLACA DE PLÁSTICO MARCA QUINZIÑO O SIMILAR, RANURADO, RESANE DE ALBAÑILERÍA, PRUEBA ELÉCTRICA, LIMPIEZA, MANO DE OBRA, Y TODO LO NECESARIO PARA SU CORRECTA INSTALACIÓN Y FUNCIONAMIENTO.","Sal",80]
["Concepto",null,"ELEC-04","      SUMINISTRO E INSTALACIÓN DE SALIDA DE CONTACTO DONDE INDIQUE EL PROYECTO, INCLUYE POLIDUCTO NARANJA REFORZADO, CAJA GALVANIZADA, CABLE No.12, PLACA DE PLÁSTICO MARCA QUINZIÑO O SIMILAR, RANURADO, RESANE DE ALBAÑILERÍA, PRUEBA ELÉCTRICA, LIMPIEZA, MANO DE OBRA, Y TODO LO NECESARIO PARA SU CORRECTA INSTALACIÓN Y FUNCIONAMIENTO.","Sal",80]
["Concepto",null,"ELEC-05","      SUMINISTRO Y COLOCACION DE FOCOS AHORRADORES DE 13 WATTS, INCLUYE CARGA, COLOCACION Y ACARREO DENTRO Y FUERA DE LA OBRA","Pza",80]
["Subcapítulo","-","7.-","   CANCELERIA"]
["Concepto",null,"CAN-01","      SUMINISTRO Y COLOCACIÓN DE PUERTA DE ACCESO A LA VIVIENDA, PREFABRICADA MULTIPANEL MIXTA ESTAMPADA (6 TABLEROS) PARA EXTERIORES, DE 0.90 X 2.10 MTS O LA COTA FINAL QUE INDIQUE LA DIRECCIÓN DE LA OBRA, LINEA VALSA O SIMILAR, COLOR BLANCO OSTIÓN, INCLUYE, MARCO METÁLICO DE MEDIO CAJÓN CON PROTECCIÓN DE PRAIMER Y ACABADO A DOS MANOS DE ESMAPZA EN COLOR BLANCO, CHAPA METÁLICA CON CERRADURA, 3 BISAGRAS LATONADAS, SELLADO CON ACRILASTIC EN AMBAS CARAS, LIMPIEZA, CARGA Y DESCARGA DE MATERIAL DENTRO Y FUERA DE LA OBRA Y TODO LO NECESARIO PARA SU CORRECTA COLOCACIÓN Y FUNCIONAMIENTO.","Pza",10]
["Concepto",null,"CAN-02","      SUMINISTRO Y COLOCACIÓN DE PUERTA TRASERA A LA VIVIENDA PREFABRICADA MULTIPANEL LISA PARA EXTERIORES, DE 0.90 x 2.10M O LA COTA FINAL QUE INDIQUE LA DIRECCION DE LA OBRA, LINEA VALSA O SIMILAR, COLOR BLANCO OSTIÓN, INCLUYE, MARCO METÁLICO DE MEDIO CAJÓN CON PROTECCIÓN DE PRAIMER Y ACABADO A DOS MANOS DE ESMAPZA EN COLOR BLANCO, CHAPA METÁLICA CON CERRADURA, 3 BISAGRAS LATONADAS, SELLADO CON ACRILASTIC EN AMBAS CARAS, LIMPIEZA, CARGA Y DESCARGA DE MATERIAL DENTRO Y FUERA DE LA OBRA Y TODO LO NECESARIO PARA SU CORRECTA COLOCACIÓN Y FUNCIONAMIENTO.","Pza",10]
["Concepto",null,"CAN-03","      SUMINISTRO Y COLOCACIÓN DE PUERTA DE RECAMARA DE MADERA DE TAMBOR DE 0.80 X 2.10 MTS. BASTIDOR DE MADERA, ACABADO EN COLOR BLANCO OSTION LÍNEA RETIVALSA O SIMILAR, INCLUYE MARCO METÁLICO DE MEDIO CAJÓN CON PROTECCIÓN DE PRAIMER Y ACABADO A DOS MANOS DE ESMAPZA EN COLOR BLANCO, CHAPA METÁLICA ACABADO COLOR SATINADO O LATON CON CERRADURA, 3 BISAGRAS DE LIBRO LATONADAS, SELLADO CON ACRILASTIC EN AMBAS CARAS, LIMPIEZA, CARGA, ACARREO DE MATERIAL DENTRO Y FUERA DE LA OBRA Y TODO LO NECESARIO PARA SU CORRECTO FUNCIONAMIENTO.","Pza",20]
["Concepto",null,"CAN-04","      SUMINISTRO Y COLOCACIÓN DE PUERTA DE BAÑO PREFABRICADA MULTIPANEL METALICA LISA DE 0.70 X 2.10 MTS. O LA COTA FINAL QUE INDIQUE LA DIRECCION DE LA OBRA  LINEA VALSA O SIMILAR, COLOR BLANCO OSTIÓN, INCLUYE MARCO METÁLICO DE MEDIO CAJÓN CON PROTECCIÓN DE PRAIMER Y ACABADO A DOS MANOS DE ESMAPZA EN COLOR BLANCO, CHAPA METÁLICA ACABADO COLOR SATINADO O LATON CON SEGURO, 3 BISAGRAS DE LIBRO LATONADAS, SELLADO CON ACRILASTIC EN AMBAS CARAS, LIMPIEZA, CARGA, ACARREO DE MATERIAL DENTRO Y FUERA DE LA OBRA Y TODO LO NECESARIO PARA SU CORRECTO FUNCIONAMIENTO.","Pza",10]
["Concepto",null,"CAN-05","      SUMINISTRO Y COLOCACIÓN DE VENTANA PARA SALA, RECAMARA Y USOS MÚLTIPLES, DE 1.20 x 1.20 M. CON CELOSIA INTEGRADA DE ALUMINIO LÍNEA 1-1/2\" ANODIZADO NATURAL, CON VIDRIO CLARO DE 3MM, JALADERA, CARRETILLAS, APLICACIÓN DE SELLO CON ACRILASTIC EN AMBAS CARAS, LIMPIEZA, CARGA Y ACARREO DE MATERIAL DENTRO Y FUERA DE OBRA Y TODO LO NECESARIO PARA SU CORRECTO FUNCIONAMIENTO.","Pza",40]
["Concepto",null,"CAN-06","      SUMINISTRO Y COLOCACIÓN DE VENTANA PARA SALA, RECAMARA Y USOS MÚLTIPLES, DE 0.40 x 0.60 M. CON CELOSIA INTEGRADA DE ALUMINIO LÍNEA 1-1/2\" ANODIZADO NATURAL, CON VIDRIO CLARO DE 3MM, JALADERA, CARRETILLAS, APLICACIÓN DE SELLO CON ACRILASTIC EN AMBAS CARAS, LIMPIEZA, CARGA Y ACARREO DE MATERIAL DENTRO Y FUERA DE OBRA Y TODO LO NECESARIO PARA SU CORRECTO FUNCIONAMIENTO.","Pza",10]
["Subcapítulo","-","9.-","   LIMPIEZA"]
["Concepto",null,"LIM-01","      LIMPIEZA FINAL, INCLUYE CARGA,  ACARREO DENTRO Y FUERA DE LA OBRA, DURANTE EL PROCESO LO REQUIERA EN VARIAS ETAPAS.","M2",522.5]

{"sheet":"Hoja1","index":6,"n_rows":47,"n_cols":9,"rows_kept":47,"cut":false,"hidden":true,"merged":[]}
[]
[]
[]
[null,"-","Capítulo",null,"CONSTRUCCIÓN DE VIVIENDA DE 44.56 M2, A BASE DE LOSA DE CIMENTACIÓN, MUROS DE BLOCK, TECHO DE VIGUETA Y BOVEDILLA, INSTALACIONES ELÉCTRICAS, HIDRÁULICAS Y SANITARIAS.",null,null,null,116600]
[null,"-","Subcapítulo",null,"   LOSA DE CIMENTACIÓN",null,null,null,21033.97]
[null,null,"Concepto","PC-01","      Limpia, trazo y nivelación.","M2",44.56,9.4499999999999993,421.09]
[null,null,"Concepto","PC-02","      Excavación a mano en terreno investigado en obra, cualquier profundidad, incluye afine de taludes y acarreo fuera de la obra de material no utilizable.","M3",9.8800000000000008,117.4,1159.9100000000001]
[null,null,"Concepto","PC-03","      Suministro de material de banco, bajo firmes, incluyendo producción, derechos, fletes, suministro en obra, acarreos en obra y afine. (volumen medido compacto).","M3",8.91,140,1247.4000000000001]
[null,null,"Concepto","PC-04","      Relleno y compactado de material con pisón de mano y agua en capas de espesor máximo de 20 cm, incluye acarreo en carretilla libre a 20 m.","M3",8.91,65.66,585.03]
[null,null,"Concepto","PC-05","      Losa de Cimentación de 9 cm de espesor, a base de concreto F'c=200  kg/cm2; t.m.a. 3/4\" hecho en obra; reforzado con  malla electrosoldada 6x6-10/10, plantilla de 5 cm de espesor a base de concreto F'c=100 kg/cm2 t.m.a. 3/4\", dentellón perimetral e intermedio a base de armex de 15x20 cm; anclaje a base de  bastones con varilla 3/8\"  @ 30 con 40 cm de largo donde se indique en los planos de proyecto,  acabado pulido, incluye  curado, vibrado, colado y todo lo necesario para su correcta ejecución.","M2",44.56,373.14,16627.12]
[null,null,"Concepto","PC-06","      Impermeabilización a base de producto epóxico color negro aplicado sobre los 12 cm del desplante y 20 cm del espesor de la losa y dentellón perimetral  en todo el perímetro, incluye: materiales, mano de obra, herramienta y equipo necesarios para su correcta ejecución.","ML",26.9,36.93,993.42]
[null,"-","Subcapítulo",null,"   MUROS",null,null,null,29572.67]
[null,null,"Concepto","MC-04","      Construcción de muro de block de 12x20x40 cm junteado con mortero cemento arena proporción 1:4, incluye: Muro de enrase, plomeado, relleno de huecos en contorno de ventanas a base de concreto F´c= 150 kg/cm2 hecho en obra t.m.a. 3/4\", materiales, mano de obra, herramienta, equipo y todo lo necesario para su correcta ejecución.","M2",81.040000000000006,219.73,17806.919999999998]
[null,null,"Concepto","MC-05","      Castillo de concreto F´c=150 kg/cm2 hecho en obra t.m.a. 3/4\", 12x12 cm de sección, armado con armex 12x12-4; incluye: Cimbra y descimbra; fabricación, colado y  curado del concreto; materiales, mano de obra, equipo y todo lo necesario para su correcta ejecución.","ML",43.38,134.97,5855]
[null,null,"Concepto","MC-06","      Cadena de cerramiento de concreto F´c=150 kg/cm2 hecho en obra t.m.a. 3/4\", 12x20 cm de sección, armada con armex 12X20-4; incluye: Cimbra y descimbra; fabricación, colado y  curado del concreto; materiales, mano de obra, equipo y todo lo necesario para su correcta ejecución.","ML",40.159999999999997,147.18,5910.75]
[null,"-","Subcapítulo",null,"   CUBIERTA",null,null,null,27898.15]
[null,null,"Concepto","CU-01","      Losa aligerada de 15 cm de espesor, a base de bovedilla de poliestireno y vigueta de alma abierta con armadura de acero diseño 10-36 de la marca deacero o similar, con patín de 12 cm de ancho por 5 cm de peralte, colado de capa de compresión de 4 cm con concreto F'c=200 kg/cm2, t.m.a. 3/4\", reforzado malla electrosoldada de 6x6-10/10, el concepto incluye: afine de la superficie superior  con acabado semipulido para recibir impermeabilización, cimbra y descimbra aparente, volado de concreto de 0.19 x 0.10 m, armado de con varilla de 3/8\", 1 varilla longitudinal y bastones @ .30m de .40m de longitud, colado, vibrado, curado y todo lo necesario para su correcta ejecución.","M2",46.07,471.13,21704.959999999999]
[null,null,"Concepto","CU-02","      Impermeabilización de losa de azotea a base de impermeabilizante elastomerico marca termoteck o similar de 3 años de garantía, a razón de 1 m2/lt, y  tela de refuerzo sencillo, incluye limpieza y preparación de la superficie.","M2",46.07,134.43,6193.19]
[null,"-","Subcapítulo",null,"   ACABADOS",null,null,null,7729.03]
[null,null,"Concepto","AC-01","      Aplanado de yeso en plafones, de 1.5 cm de espesor promedio, a plomo y regla, acabado pulido, reforzada con malla pollera en toda el área incluye: perfilado de aristas y remate en columnas, trabes y muros.","M2",39.71,144.56,5740.48]
[null,null,"Concepto","AC-02","      Sardinel de 10x10 cm a  base de concreto hidráulico de F'c=150 kg/cm2 t.m.a. 3/4\",con anclas de varilla corrugada de 3/8\" según especificaciones de proyecto. Incluye: Herramienta, mano de obra y todo lo necesario para su correcta ejecución.","ML",1.92,78.08,149.91]
[null,null,"Concepto","AC-03","      Suministro y colocación de azulejo de 20x30cm de color blanco de la marca porcelanite o similar asentado con cemento crest o similar, boquilla de 2 mm a base de junta crest anti-hongo o similar.  Incluye: Herramienta, mano de obra y todo lo necesario para su correcta ejecución.","M2",4,249.33,997.32]
[null,null,"Concepto","AC-04","      Suministro y colocación de piso antiderrapante de 20x20cm de color blanco de la marca porcelanite o similar asentado con cemento crest o similar, boquilla de 2 mm a base de junta crest anti-hongo o similar. Incluye: Herramienta, mano de obra y todo lo necesario para su correcta ejecución.","M2",3.75,217.32,814.95]
[null,null,"Concepto","AC-05","      Colocación de placa de cerámica en medidas de 20x20 cm, con cemento crest, en muro de fachada. Incluye; Material, herramienta, mano de obra y todo lo necesario para su correcta ejecución.","M2",1,26.37,26.37]
[null,"-","Subcapítulo",null,"   PUERTAS Y VENTANAS",null,null,null,10200.629999999999]
[null,null,"Concepto","PV-01","      Suministro e instalación de puerta tipo multypanel 0.90x2.06m con marco metálico de 0.96x2.10m fabricado a base de perfil tubular M-225., chapa tipo bola con llave para exterior modelo MH52T3  marca fanal o similar acabado en latón brillante para exterior, dos bisagras de 3\", pintura esmalte anticorrosivo color blanco en el marco metálico, el concepto incluye perfilado del hueco previo a su colocación con mortero cemento-arena 1:4. Incluye: Herramienta, mano de obra y todo lo necesario para su correcta ejecución.","PZA",1,1875.8,1875.8]
[null,null,"Concepto","PV-02","      Suministro e instalación de puerta de tambor 0.80x2.06m con marco metálico de 0.86x2.10m fabricado a base de perfil tubular M-225., chapa tipo bola para interior  marca fanal o similar, dos bisagras de 3\", pintura esmalte anticorrosivo color blanco en el marco metálico, el concepto incluye perfilado del hueco previo a su colocación con mortero cemento-arena 1:4. Incluye: Herramienta, mano de obra y todo lo necesario para su correcta ejecución.","PZA",2,1066.69,2133.38]
[null,null,"Concepto","PV-03","      Suministro e instalación de puerta de tambor 0.70x2.06m con marco metálico de 0.76x2.10m fabricado a base de perfil tubular M-225., chapa tipo bola para interior  marca fanal o similar, dos bisagras de 3\", pintura esmalte anticorrosivo color blanco en el marco metálico, el concepto incluye perfilado del hueco previo a su colocación con mortero cemento-arena 1:4. Incluye: Herramienta, mano de obra y todo lo necesario para su correcta ejecución.","PZA",1,996.58,996.58]
[null,null,"Concepto","PV-04","      Suministro y colocación  de ventana corrediza de 0.83x1.05m a base de perfil de aluminio anodizado natural  de 1 1/2\" con cristal claro de 3mm con un fijo lateral y un corredizo, incluye perfilado del hueco, previo a su colocación a base de mortero cemento-arena proporción  1:4. Incluye: Herramienta, mano de obra y todo lo necesario para su correcta ejecución.","PZA",3,987.18,2961.54]
[null,null,"Concepto","PV-05","      Suministro y colocación  de ventana corrediza de 0.60x0.40m a base de perfil de aluminio anodizado natural  de 1 1/2\" con cristal claro de 3mm con un fijo lateral y un corredizo, incluye perfilado del hueco previo a su colocación a base de mortero cemento-arena proporción  1:4. Incluye: Herramienta, mano de obra y todo lo necesario para su correcta ejecución.","PZA",1,698.79,698.79]
[null,null,"Concepto","PV-06","      Suministro e instalación de puerta tipo multypanel 0.80x2.06m con marco metálico de 0.86x2.10m fabricado a base de perfil tubular M-225., chapa tipo bola con llave para exterior modelo MH52T3  marca fanal o similar acabado en latón brillante para exterior, dos bisagras de 3\", pintura esmalte anticorrosivo color blanco en el marco metálico, el concepto incluye perfilado del hueco previo a su colocación con mortero cemento-arena 1:4. Incluye: Herramienta, mano de obra y todo lo necesario para su correcta ejecución.","PZA",1,1534.54,1534.54]
[null,"-","Subcapítulo",null,"   INSTALACIONES ELÉCTRICAS",null,null,null,7635.94]
[null,null,"Concepto","IE-01","      Suministro y colocación de centro de carga de dos circuitos  con una pieza de interruptor sencillo de 1x30 amperes, tubería galvanizada conduit pared delgada de 3/4\", el concepto incluye ranurado, resanado con mortero cemento-arena 1:4, prueba del correcto funcionamiento de las instalaciones y todo lo necesario para su correcto funcionamiento.","PZA",1,481.41,481.41]
[null,null,"Concepto","IE-02","      Salida eléctrica para tomacorriente, incluye; Contacto doble, tapa, poliducto eléctrico, cableado con cable thw #12, ranurado, sujeción de poliducto, mano de obra y equipo.","SAL",9,358.32,3224.88]
[null,null,"Concepto","IE-03","      Salida eléctrica para apagador sencillo,  incluye: tapa de una via, poliducto eléctrico naranja reforzado de 1/2\", cableado con cable thw #12, ranurado, resanado con mortero cemento-arena 1:4, sujeción de poliducto, mano de obra y equipo.","SAL",3,310.39,931.17]
[null,null,"Concepto","IE-04","      Salida eléctrica para apagador doble, incluye; tapa de dos vías, poliducto eléctrico naranja reforzado de 1/2\", cableado con cable thw #12, ranurado, resanado con mortero cemento-arena 1:4, sujeción de poliducto, mano de obra y equipo.","SAL",2,355.65,711.3]
[null,null,"Concepto","IE-05","      Salida eléctrica para lámpara,  incluye; cableado con cable thw #12,  caja octogonal de 4\", con poliducto naranja reforzado de 1/2\", cableado, ranurado, resanado con mortero cemento-arena 1:4, sujeción de poliducto, mano de obra y equipo.","SAL",7,279.08,1953.56]
[null,null,"Concepto","IE-06","      Suministro e instalación de foco incandescente de 100 watts según proyecto, incluye: la roseta de porcelana de 4\" y todo lo necesario para su correcta instalación.","PZA",7,47.66,333.62]
[null,"-","Subcapítulo",null,"   INSTALACIONES HIDRÁULICAS Y SANITARIAS",null,null,null,12529.61]
[null,null,"Concepto","IHS-05","      Salidas para instalación sanitaria de 1 1/2\",  2\" y 4\" para ventila,  lavabo, sanitario, tarja y regadera, tubería de pvc, conexiones, pegamento, ranurado, resanado con mortero cemento-arena 1:4, pendiente, materiales, mano de obra, herramienta y equipo.","SAL",5,364.4,1822]
[null,null,"Concepto","IHS-07","      Salidas para instalación hidráulica  para  regadera agua fría y caliente, lavabo, sanitario,  tarja o zinc, con tubería cpvc de 1/2\" marca duralon o similar, el concepto incluye: 2 Dispositivos economizadores de agua (DISEA M) marca EEFIMEX ó similar en regadera y lavabo, limpieza,  conexiones, ranurado, pendiente, materiales, mano de obra, herramienta,  equipo, resanado con mortero cemento-arena 1:4, prueba del correcto funcionamiento de las instalaciones y todo lo necesario para su correcto funcionamiento.","SAL",5,442.83,2214.15]
[null,null,"Concepto","IHS-08","      Suministro e instalación de sanitario marca lamosa o similar línea económica  en color blanco, incluye asiento, pijas, cuello de cera, manguera flexible, llave cromada de 1/2\".","PZA",1,1567.81,1567.81]
[null,null,"Concepto","IHS-09","      Suministro e instalación de lavabo marca lamosa o similar línea económica  en color blanco, incluye: Llave mezcladora marca helvex o similar línea económica, juego de patas, soportes, manguera flexible, llave cromada de 1/2\", cespol bote.","PZA",1,1203.52,1203.52]
[null,null,"Concepto","IHS-10","      Suministro e instalación de regadera línea económica  incluye llaves de empotrar, manerales,  brazo y chapetón.","PZA",1,1723.06,1723.06]
[null,null,"Concepto","IHS-11","      Construcción de registro sanitario de 46x45cm de medida interna, a base de ladrillo recocido común de la región de 7x14x28 cm, junteado con mortero cal-arena 1:5 + 10% de cemento, base y tapa a base de concreto F'c=150 kg/cm2 con t.m.a. 3/4\" reforzado con malla electrosoldada 6x6-10/10 el concepto incluye: enjarre interior con mortero cemento-arena 1:3, fabricación y colocación de dos jaladeras para la tapa a base de alambrón de 1/4\", con pases a base de poliducto de 1/2\". y todo lo necesario para su correcta ejecución.","PZA",1,671.94,671.94]
[null,null,"Concepto","IHS-12","      Suministro e instalación de tinaco de 600 lt de la marca rotoplas o similar con el sistema de 3 capas para garantizar una vida útil de 35 años, con todos los accesorios como jarro de aire, flotador #5, válvula de llenado ¾\", multiconector con válvula de esfera, tuerca unión y válvula check, incluye base para nivelar tinaco (detalle plano), la alimentación hidráulica por medio de tubería cpvc de 1/2\" y todo lo necesario para su correcto funcionamiento.","PZA",1,2027.04,2027.04]
[null,null,"Concepto","IHS-13","      Suministro e instalación de lavadero doble de empotrar, el concepto incluye; firme de concreto sencillo, murete de block de 12x20x40 cm, segun proyecto, la salida sanitaria con tubería pvc de 2\" y la salida hidráulica con tubería cpvc de 1/2\", llave de jardín de 1/2\", dispositivo economizador de agua (DISEA M) marca EEFIMEX ó similar,  resanado con mortero cemento-arena 1:4  y todo lo necesario para su correcto funcionamiento.","PZA",1,1300.0899999999999,1300.0899999999999]

{"sheet":"Hoja2","index":7,"n_rows":0,"n_cols":0,"rows_kept":0,"cut":false,"hidden":true,"merged":[]}

{"sheet":"Hoja3","index":8,"n_rows":0,"n_cols":0,"rows_kept":0,"cut":false,"hidden":true,"merged":[]}

{"sheet":"Hoja4","index":9,"n_rows":32,"n_cols":6,"rows_kept":32,"cut":false,"hidden":true,"merged":[]}
["-","Capítulo",null,"CONSTRUCCIÓN DE RECAMARA ADICIONAL  DE 16.48 M2 URBANA  A BASE DE LOSA DE CIMENTACIÓN, MUROS DE BLOCK, TECHO DE VIGUETA E INSTALACIONES ELÉCTRICAS, EN LOS MUNICIPIOS  DE SONORA."]
["-","Subcapítulo","1.-","      LOSA DE CIMENTACION"]
[null,"Concepto","PC-01U","      Limpia, trazo y nivelación.","M2",16.48]
[null,"Concepto","PC-02U","      Excavación a mano en terreno investigado en obra, cualquier profundidad, incluye afine de taludes y acarreo fuera de la obra de material no utilizable.","M3",0.38]
[null,"Concepto","PC-05U","      Losa de Cimentación de 9 cm de espesor, a base de concreto F'c=200  kg/cm2; t.m.a. 3/4\" hecho en obra; reforzado con  malla electrosoldada 6x6-10/10, plantilla de 5 cm de espesor a base de concreto F'c=100 kg/cm2 t.m.a. 3/4\", dentellón perimetral e intermedio a base de armex de 15x20 cm; anclaje a base de  bastones con varilla corrugada 3/8\" grado 42 o 5/16 DA 6000  @ 30 con 40 cm de largo donde se indique en los planos de proyecto,  acabado pulido, incluye: fumigacion antitermitas con fumigante aditivo adherente termidor o similar, curado, vibrado, colado y todo lo necesario para su correcta ejecución.","M2",16.48]
[null,"Concepto","PC-06U","      Impermeabilización a base de producto epóxico color negro aplicado sobre los 12 cm del desplante y 20 cm del espesor de la losa y dentellón perimetral  en todo el perímetro, incluye: materiales, mano de obra, herramienta y equipo necesarios para su correcta ejecución.","Ml",15.76]
[null,"Concepto","PC-07U","      Afine, nivelacion y compactacion de terreno natural para desplante de losa de cimentacio, incluye todo lo necesario para su correcta ejecucion.","M2",16.48]
["-","Subcapítulo","2.-","      ALBAÑILERIA"]
[null,"Concepto","MC-01U","      Construcción de muro de block de 12x20x40 cm junteado con mortero cemento arena proporción 1:4, incluye; Muro de enrase, plomeado, relleno de huecos en contorno de ventanas a base de concreto F´c= 150 kg/cm2 hecho en obra t.m.a. 3/4\", materiales, mano de obra, herramienta, equipo, con boquilla cortada a hueso.","M2",30.55]
[null,"Concepto","MC-02U","      Castillo K-1 de concreto F´c=150 kg/cm2 hecho en obra t.m.a. 3/4\", 12x12 cm de sección, armado con armex 12x12-4; incluye: cimbra aparente y descimbra; fabricación, colado y  curado del concreto; materiales y mano de obra, deberá de quedar con acabado final aparente.","Ml",10.06]
[null,"Concepto","MC-02UA","      Castillo K-2 ahogados de 2.50 ML de altura incluye el pretil, con  concreto F´c=150 kg/cm2 hecho en obra t.m.a. 3/4\", con una varilla corrugada de refuerzo de 3/8\";  armado, colado y  vibrado del concreto; materiales y mano de obra,.","Ml",10.029999999999999]
[null,"Concepto","MC-03U","      Cadena de cerramiento de concreto F´c=150 kg/cm2 hecho en obra t.m.a. 3/4\", 12x20 cm de sección, armada con armex 12X20-4; incluye: cimbra aparente y descimbra; fabricación, colado y  curado del concreto; materiales y mano de obra, deberá de quedar con acabado final aparente.","Ml",15.76]
[null,"Concepto","MC-04U","      Construcción de pretil  a base de block de 12x20x40 cm junteado con mortero cemento arena proporción 1:4, incluye; plomeado, relleno de huecos en parte superior y en parte inferior para nivelar con concreto F´c= 150 kg/cm2 hecho en obra t.m.a. 3/4\", materiales, mano de obra, herramienta, equipo, con boquilla cortada a hueso.","M2",4.03]
[null,"Concepto","MC-05U","      Construcción de diamantes a base de  mortero cemento-arena 1:4  2.5 cm de e spesor promedio  acabado floteado para recibir impermeabilizacion, incluye trazo y ejecucion de pendientes, elevacion de materiales hasta 3.00 m, material, herramienta y mano de obra.","m2",2.27]
[null,"Concepto","MC-06U","      Suministro y Colocacion de gargola tipo cuadrada sencilla incluye demolicion, mortero cemento-arena 1:4 y todo lo necesario para su correcta instalacion.","pza",2]
["-","Subcapítulo","3.-","      CUBIERTA"]
[null,"Concepto","CU-01U","      Losa aligerada de 15 cm de espesor, a base de bovedilla de poliestireno y vigueta de alma abierta con armadura de acero diseño 10-36 de la marca deacero o similar, con patín de 12 cm de ancho por 5 cm de peralte, colado de capa de compresión de 4 cm con concreto F'c=200 kg/cm2, t.m.a. 3/4\", reforzado malla electrosoldada de 6x6-10/10, el concepto incluye: afine de la superficie superior  con acabado semipulido para recibir impermeabilización, cimbra y descimbraaparente, colado, vibrado, curado y todo lo necesario para su correcta ejecución. Para la ejecucion de este concepto el beneficiario aportara el importe de 4,000 pesos en la compra de los materiales alambre recocido, curacreto, malla electrosoldada 6x6 - 10/10, Vigueta alma abierta con armadura 10-36 y Bovedilla de poliestireno de 61x122 x11 cms de espesor","M2",16.48]
[null,"Concepto","CU-02U","      Impermeabilización de losa de azotea a base de impermeabilizante elastomerico de 3 años de garantía,a razón de 1 m2/lt, y  tela de refuerzo sencillo, incluye limpieza y preparación de la superficie.","M2",16.48]
["-","Subcapítulo","4.-","      ACABADOS"]
[null,"Concepto","AC-01U","      Chaflán de 10x10 cms. con pasta de cemento-arena prop. 1:4, según detalle indicado en los planos, Incluye: Material, mano de obra, herramienta y todo lo necesario para su correcta ejecución.","ML",8.92]
[null,"Concepto","AC-03U","      Aplanado de yeso en plafones, de 1.5 cm de espesor promedio, a plomo y regla, acabado pulido, reforzada con malla pollera en toda el área incluye: perfilado de aristas y remate en columnas, trabes y muros.","M2",14.59]
[null,"Concepto","AC-09U","      Cemento blanco, en muro de fachada para colocacion de placa Incluye; Material, herramienta, mano de obra y todo lo necesario para su correcta ejecución.","Pza",1]
[null,"Concepto","AC-14U","      Pintura vinílica lavable en muros y plafond  incluye: material, limpieza, rebabeado, preparación de la superficie, aplicación de sellador vinílico y dos manos de pintura.","M2",92.95]
[null,"Concepto","AC-13U","      Aplanado de mezcla en muros, a base de mortero cemento arena 1:3,  acabado fino floteado , incluye: material, mano de obra, remates y emboquillado.","m2",78.36]
["-","Subcapítulo","5.-","      PUERTAS Y VENTANAS"]
[null,"Concepto","PV-04U","      Suministro y colocación  de ventana corrediza de 0.83x1.05m a base de perfil de aluminio anodizado natural  de 1 1/2\" con cristal claro de 3mm con un fijo lateral y un corredizo, incluye perfilado del hueco, previo a su colocación a base de mortero cemento-arena proporción  1:4. Incluye: Herramienta, mano de obra y todo lo necesario para su correcta ejecución.","Pza",1]
[null,"Concepto","PV-06U","      Suministro e instalación de puerta de 0.90x2.10 mts, tipo multypanel lisa, fabricado con hoja de acero liso galvanizado cal. 28, con bastidor de madera de pino estufado, terminado en color blanco, relleno de esouma rigida de poliuretano con una densidad de 32 a 34 kg/m3 .,incluye marco metálico fabricado a base de perfil tubular M-225,chapa tipo bola con llave para exterior  acabado en latón brillante para exterior, dos bisagras de 3\", pintura esmalte anticorrosivo color blanco, perfilado del hueco previo a su colocación con mortero cemento-arena 1:4. Herramienta, mano de obra y todo lo necesario para su correcta ejecución.","Pza",1]
["-","Subcapítulo","6.-","      INSTALACIONES ELECTRICAS"]
[null,"Concepto","IE-02U","      Salida eléctrica para tomacorriente, incluye; Contacto doble, tapa, poliducto eléctrico, cableado, ranurado, sujeción de poliducto, mano de obra y equipo.","Sal",1]
[null,"Concepto","IE-03U","      Salida eléctrica para apagador sencillo,  incluye: tapa de una via, poliducto eléctrico naranja reforzado de 1/2\", cableado con cable thw #12, ranurado, resanado con mortero cemento-arena 1:4, sujeción de poliducto, mano de obra y equipo.","Sal",1]
[null,"Concepto","IE-05U","      Salida eléctrica para lámpara,  incluye; la roseta de porcelana de 4\" , cableado con cable thw #12,  caja octogonal de 4\", con poliducto naranja reforzado de 1/2\", cableado, ranurado, resanado con mortero cemento arena 1:4, sujeción de poliducto, mano de obra y equipo.","Sal",1]
[null,"Concepto","IE-06U","      Suministro  de foco fluorescente espiral 23 w. De luz fria con 100 W de iluminacion según proyecto,","Pza",1]

{"sheet":"datos","index":10,"n_rows":10,"n_cols":9,"rows_kept":10,"cut":false,"hidden":false,"merged":[]}
["NUMERO"]
["LOCALIDAD","VARIAS"]
["MUNICIPIO","BENITO JUAREZ"]
["ACCIONES",10]
[null,{"$f":"UPPER(CONVERTIRNUM(B4,0))","v":"DIEZ  "}]
["F.INICIO",null,null,null,null,null,null,{"$f":"+H5+1","v":1},{"$f":"CHAR(H6)","v":"\u0001"}]
["F.TERMINO",{"$f":"IF(+B6=\"\",\"\",+B6+B8-1)","v":""},null,null,null,null,null,2,"\u0002"]
["PLAZO",150,null,null,null,null,null,3,"\u0003"]
["DESCRIPCION","TERMINACION DE CONSTRUCCIÓN DE 10(DIEZ ) UNIDAD BASICA DE VIVIENDA INDIGENA  DE 45 M2 EN AREA URBANA Y SEMIURBANA  A BASE DE LOSA DE CIMENTACIÓN, MUROS DE BLOCK, TECHO DE VIGUETA, INSTALACIONES ELÉCTRICAS, HIDRAULICAS, SANITARIAS, CANCELERIA Y EQUIPAMIENTO  EN VARIAS LOCALIDADES DEL MUNICIPIO DE BENITO JUAREZ, SONORA."]
["F. PRESENTACION"]

{"sheet":"Hoja5","index":11,"n_rows":55,"n_cols":9,"rows_kept":55,"cut":false,"hidden":true,"merged":[]}
["+","Capítulo",1,null,"PRELIMINARES",null,null,null,42489.72]
[null,"Concepto","PRE-01","ESP-PC01","   TRAZO Y NIVELACIÓN EN PLATAFORMA, PARA LA UBICACIÓN DE EJES, Y PERÍMETROS  DE LA LOSA DE CIMENTACIÓN, TRAZO DE DESPLANTE DE MUROS Y LOCALIZACIÓN DE CASTILLO INCLUYE MATERIALES, MANO DE OBRA Y TODO LO NECESARIO PARA SU CORRECTA EJECUCIÓN.","M2",5544,null,21510.720000000001]
[null,"Concepto","PRE-02","ESP-PC02","   EXCAVACIÓN CON PALA DERECHA A MANO EN PLATAFORMA MEJORADA, INCLUYE AFINE DE TALUDES Y FONDO, PARA ALOJAR CIMENTACIÓN PROFUNDA DE 0.00 A 2.00 M INCLUYE LIMPIEZA Y ACARREOS DENTRO,  FUERA DE LA OBRA.","M3",189,null,20979]
["+","Capítulo",2,null,"ESTRUCTURAS",null,null,null,"6'555,356.06"]
[null,"Concepto","EST-01","ESP-PC05","   LOSA DE CIMENTACIÓN DE CONCRETO ARMADO DE 12 CM. DE ESPESOR, A BASE DE CONCRETO F'C=200 KG/CM2  CON AGREGADO MÁXIMO DE 38 MM HECHO EN OBRA O PREMEZCLADO, REFORZADO CON MALLA DE ACERO ELECTROSOLDADA CORRUGADA 6-6/8-8  Y CADENAS CON ARMEX 12x20 CM REFORZADAS CON  UN TRASLAPE MÍNIMO DE 10 CMS. EN LA MALLA Y 20 CMS EN EL ARMEX, CON BASTONES DE  VARILLAS DE 3/8\"  SEPARADAS SEGÚN PROYECTO E INCLUYE ARREGLO EN CHAROLA PARA BAÑO (PREPARACIÓN PARA RECIBIR LA INSTALACIÓN HIDROSANITARIA) HABILITADO, TRASLAPES, CIMBRA, DESCIMBRA, COLADO, VIBRADO POR MEDIOS MECANICOS, ACABADO LISO PULIDO, CURADO POR ASPERSIÓN, COLOCACIÓN DE POLIETILENO CAL. 600 EN TODA LA SUPERFICIE QUE ABARQUE EL ARMADO DE ACERO, PRUEBAS DE LABORATORIO, INCLUYE MATERIALES, MANO DE OBRA, LIMPIEZA, CARGA Y ACARREOS DENTRO Y FUERA DE LA OBRA, Y TODO LO NECESARIO PARA SU CORRECTA EJECUCIÓN Y CONSTRUCCIÓN.","M2",4501,null,"1'915,400.55"]
[null,"Concepto","EST-02","ESP-PC06","   IMPERMEABILIZACIÓN EN LA LOSA DE CIMENTACIÓN ENTRE EL DESPLANTE DE LOS MUROS, CON EMULSIÓN ASFÁLTICA EMULCOAT O SIMILAR REBAJADA AL 50% CON  UNA CAPA DE 5MM DE ESPESOR, INCLUYE MATERIALES, MANO DE OBRA, ACARREOS Y TODO LO NECESARIO PARA SU CORRECTA INSTALACIÓN.","ML",3627,null,91944.45]
[null,"Concepto","EST-03.","ESP-MC01","   MURO    A  PLOMO  HASTA  UNA  ALTURA  DE  2.55  MT,  DE  BLOCK  NORMAL DE CONCRETO CON RESISTENCIA MÍNIMA DE 50 KG/CM2 CON DIMENSIONES 12x20x40, ASENTADO CON MORTERO CEMENTO-ARENA 1:5, CON ACABADO APARENTE AMBAS CARAS CON JUNTA VACÍA O BOLEADA, INCLUYE LECHO SUPERIOR DE VANOS DE PUERTAS INTERIORES Y EXTERIORES, ASÍ COMO VENTANAS, SOSTENIDOS CON CADENAS INTERMEDIAS, CARGA Y ACARREO DE MATERIAL DENTRO Y FUERA DE LA OBRA, PRUEBAS DE LABORATORIO AL BLOCK Y MORTERO, MANO DE OBRA Y TODO LO NECESARIO PARA SU CORRECTA EJECUCIÓN Y CONSTRUCCIÓN.ARA SU CORRECTA EJECUCIÓN Y CONSTRUCCIÓN.","M2",8949,null,"1'697,714.79"]
[null,"Concepto","EST-04","ESP-MC02","   CASTILLO CON SECCIÓN 12 X 12 CM DE CONCRETO CON RESISTENCIA F'C 150 KG/CM2 AGREGADO MÁXIMO 19 MM EL CONCRETO SERÁ HECHO EN OBRA O PREMEZCLADO REFORZADO CON ARMEX 08x08-4 , UNICAMENTE HASTA LA LOSA MACIZA DEL ENTREPISO CON RECUBRIMIENTO MÍNIMO DE 1 CM PROMEDIO, EL ANCLAJE DE LOS CASTILLOS DEBERÁ SER DE 30CM HACIA LA CIMENTACIÓN Y HACIA LA LOSA DE AZOTEA, ACABADO APARENTE,  INCLUYE HABILITADO, TRASLAPES DE ACERO, COLADO, VIBRADO, MATERIAL , MANO DE OBRA, LIMPIEZA CARGA Y ACARREO DENTRO Y FUERA DE LA OBRA Y TODO LO NECESARIO PARA SU CORRECTA EJECUCIÓN Y CONSTRUCCIÓN.","ML",5985,null,544096.35]
[null,"Concepto","EST-05","ESP-MC03","   DALA DE CERRAMIENTO DE CONCRETO HECHO EN OBRA FC=150 KG/CM2, Y ARMADURA PREFABRICADA DE ARMEX 08*16/4,  INCLUYE: MATERIAL, HERRAMIENTA,MANO DE OBRA Y TODO LO NECESARIO PARA SU CORRECTA EJECUCION.","ML",4248,null,412650.72]
[null,"Concepto","EST-06","ESP-CU01","   LOSA DE AZOTEA A BASE DE VIGUETA 12-3 Y CASETON DE POLIESTIRENO, CON UNA CAPA DE COMPRESION  CON CONCRETO F'c=200 KG/CM2 DE 4 CM2 DE ESPESOR Y ACERO DE REFUERZO CON MALLA ELECTROSOLDADA 6*6-10/10;  INCLUYE CIMBRA COMUN,   INC. ARMADO, COLADO, DESCIMBRADO, HERRAMIENTA Y MANO DE OBRA.","M2",4780,null,"1'893,549.20"]
["+","Capítulo",3,null,"ALBAÑILERÍA",null,null,null,554683.31999999995]
[null,"Concepto","ALB-01.","ESP-MC04","   PRETIL DE 20 CM DE ALTURA A PLOMO Y NIVEL, DE BLOCK NORMAL DE CONCRETO O SIMILAR CON RESISTENCIA MÍNIMA DE 50 K/CM2 CON DIMENSIONES 12 20 40, ACABADO COMÚN, CON APLANADO FINO MÍNIMO DE 1CM DE ESPESOR EN LAS TRES CARAS, ASENTADO CON MORTERO CEMENTO-ARENA 1:5 INCLUYE MATERIALES, MANO DE OBRA, LIMPIEZA, CARGA Y  ACARREO DENTRO Y FUERA DE LA OBRA Y TODO LO NECESARIO PARA SU CORRECTA EJECUCIÓN Y CONSTRUCCIÓN.","ML",730,null,49384.5]
[null,"Concepto","ALB-02.",null,"   BASE PARA TINACO A PLOMO Y NIVEL EN FORMA DE CRUZ A UNA ALTURA DE 1.50 MT TERMINADA DEL NIVEL DE LA CEBOLLA DE LA REGADERA, CON MURETES DE BLOCK NORMAL DE CONCRETO O SIMILAR CON RESISTENCIA MÍNIMA DE 50 K/CM2 CON DIMENSIONES 12 20 40 CM DE ESPESOR, ASENTADO CON MORTERO-ARENA 1:5 INCLUYE UN  CASTILLO DE REFUERZO AHOGADO EN EL EJE CENTRAL DEL ELEMENTO, EL DIÁMETRO DE LA LOSA ES DE 1.0M DE FORMA CIRCULAR CON 8CM DE ESPESOR REFORZADA CON MALLA ELECTROSOLDADA 6x6 10/10 CORRUGADA CON CONCRETO ARMADO F´C 200 KG/CM2 AGREGADO MÁXIMO 19 MM HECHO EN OBRA O PREMEZCLADO, EL ACABADO DE LA BASE ES FINO A BASE DE MORTERO CEMENTO-ARENA 1:6 Y APARENTE PARA LA LOSA, INCLUYE MATERIALES, HABILITADO DE ACERO, TRASLAPES, CIMBRA, DESCIMBRA, COLADO, VIBRADO, CURADO POR ASPERSIÓN, MANO DE OBRA, LIMPIEZA, CARGA Y ACARREO DENTRO Y FUERA DE LA OBRA Y TODO LO NECESARIO PARA SU CORRECTA EJECUCIÓN Y CONSTRUCCIÓN.","PZA",100,null,91660]
[null,"Concepto","ALB-03","ESP-AC01","   CHAFLÁN DE 7x7 CM. DE MORTERO-ARENA 1:5 COLOCADO EN TODO EL PERÍMETRO DEL PRETIL Y DE LA BASE PARA EL TINACO Y/O DOMO EN CASO DE EXISTIR, INCLUYE MATERIAL, CARGA, ACARREO DENTRO Y FUERA DE LA OBRA, LIMPIEZA, MANO DE OBRA Y TODO LO NECESARIO PARA SU CORRECTA EJECUCIÓN Y CONSTRUCCIÓN.","ML",2004,null,19999.919999999998]
[null,"Concepto","ALB-04","ESP-CU02","   SUMINISTRO Y APLICACIÓN DE IMPERMEABILIZACIÓN EN LOSA DE AZOTEA A BASE DE UNA CAPA DE PRIMARIO Y APLICACIÓN DE 2 CAPAS DE BITUFLEX O ACRÍLICO ELASTOMERICO (ACRITÓN) PARA TRES AÑOS O SIMILAR CON LA COLOCACION DE IMPERMEABILIZANTE PREFABRICADO SOLDABLE EN LA JUNTA CONSTRUCTIVA A TODO LO LARGO Y UNA VUELTA DE 5CM EN LOS EXTREMOS, CON REFUERZO DE UNA CAPA DE MEMBRANA TRASLAPADA 10 CM, SE SELLARAN TODAS LAS FISURAS EN LA LOSA Y JUNTAS CONSTRUCTIVAS CON RESINA EPOXICA O SIMILAR PREVIO A LA COLOCACIÓN DEL PRIMARIO, COMO TERMINADO SE APLICARA UNA CAPA DE COLOR TERRACOTA Ò SI SE APLICA MATERIAL ACRÍLICO COLOR BLANCO PREFERENTEMENTE, INCLUYE MATERIAL, ACARREOS, MANO DE OBRA Y TODO LO NECESARIO PARA SU CORRECTA EJECUCIÓN.","M2",5510,null,302443.90000000002]
[null,"Concepto","ALB-05",null,"   REGISTRO SANITARIO A PLOMO Y NIVEL CON MEDIDAS INTERIORES 40x60 CM CON LA PROFUNDIDAD QUE INDIQUE EL PROYECTO DE DESCARGA SANITARIA, ELABORADO A BASE  DE BLOCK NORMAL DE CONCRETO O SIMILAR CON RESISTENCIA MINIMA DE 50 KG/CM2 CON DIMENSIONES 12x20x40cm DE ESPESOR JUNTEADO CON MORTERO CEMENTO-ARENA 1:5 INCLUYE EXCAVACIÓN, NIVELACIÓN, PLANTILLA DE 3CM DE ESPESOR A BASE DE MORTERO CEMENTO ARENA 1:6, RECIBIR INSTALACIONES,  FORMACIÓN DE MEDIA CAÑA CON CONCRETO AL FONDO DEL MISMO, TAPA PARA REGISTRO CON MEDIDAS DE 48X68 CMS, DE 5.00 CMS. DE ESPESOR CON CONCRETO F'c=150 KG/CM2, R.N., AGREGADO MÁXIMO DE 3/4\", CON MARCO Y CONTRAMARCO METÁLICO DE SOLERA DE 1 1/2\"X1/8\", ARMADO CON ALAMBRÓN No2 (1/4\"), OREJA, ACABADO INTERIOR PULIDO, MANO DE OBRA, LIMPIEZA, CARGA Y ACARREO DENTRO Y FUERA DE LA OBRA Y TODO LO NECESARIO PARA SU CORRECTA EJECUCIÓN Y CONSTRUCCIÓN.","PZA",100,null,74649]
[null,"Concepto","ALB-06",null,"   COLOCACION DE HUELLA DE ACCESO A BASE DE CONCRETO CON RESISTENCIA F'C 100 KG/CM2 AGREGADO MÁXIMO 19 MM EL CONCRETO SERÁ HECHO EN OBRA O PREMEZCLADO DE 8 CM DE ESPESOR Y MEDIDAS 1.0 X 1.0 M, LEVE PENDIENTE DE 5MM HACIA AFUERA, INCLUYE CIMBRA, DESCIMBRA, ESCOBILLADO EN SENTIDO PERPENDICULAR A LA PUERTA Y RODAPIE EN LAS ORILLAS, MATERIALES, MANO DE OBRA, LIMPIEZA, CARGA Y ACARREO DE MATERIAL DENTRO Y FUERA DE OBRA Y TODO LO NECESARIO PARA SU CORRECTA EJECUCIÓN.","PZA.",100,null,16546]
["+","Capítulo",4,null,"ACABADOS",null,null,null,"2'307,539.94"]
[null,"Concepto","ACA-01","ESP-AC13","   APLANADO FINO EN FACHADA PRINCIPAL CON 1.5 CM DE ESPESOR PROMEDIO CON MORTERO CEMENTO-ARENA 1:5 INCLUYE REPELLADO GRUESO (DEJANDO EL TIEMPO NECESARIO DE FRAGUADO NECESARIO PARA EVITAR LA CONTRACCIÓN DEL MATERIAL), INCLUYE: PERFILADO DE ARISTAS Y BOQUILLAS EN PUERTAS Y/O VENTANAS, RETIRO DE REBABA FINA Y PICADO EN ELEMENTOS ESTRUCTURALES ANTES DE SU APLICACIÓN, MATERIAL, MANO DE OBRA Y TODO LO NECESARIO PARA SU CORRECTA EJECUCIÓN.","M2",1902,null,165302.82]
[null,"Concepto","ACA-02","ESP-AC13","   APLANADO ZARPEADO EN MUROS EXTERIORES ( MURO TRASERO ) A UNA ALTURA DE 2.60 MT, Y REGLA CON 1.0 CM DE ESPESOR PROMEDIO CON MORTERO-ARENA 1:5  INCLUYE  INCLUYE, MATERIALES, MANO DE OBRA, LIMPIEZA, CARGA Y ACARREO DE MATERIAL DENTRO Y FUERA DE OBRA Y TODO LO NECESARIO PARA SU CORRECTA EJECUCIÓN.","M2",1981,null,115531.92]
[null,"Concepto","ACA-03","ESP-AC13","   APLANADO ZARPEADO EN MUROS EXTERIORES ( MUROS LATERALES ) A UNA ALTURA DE 2.80 MT, Y REGLA CON 1.0 CM DE ESPESOR PROMEDIO CON MORTERO-ARENA 1:5  INCLUYE  INCLUYE, MATERIALES, MANO DE OBRA, LIMPIEZA, CARGA Y ACARREO DE MATERIAL DENTRO Y FUERA DE OBRA Y TODO LO NECESARIO PARA SU CORRECTA EJECUCIÓN.","M2",3567,null,208027.44]
[null,"Concepto","ACA-04","ESP-AC13","   EMBOQUILLADO EN PUERTAS Y VENTANAS CON MORTERO CEMENTO-ARENA 1:5, DE 1 CM. DE ESPESOR PROMEDIO, PERFILADO DEL VANO DEL ELEMENTO, INCLUYE EMBOQUILLADO DE ARISTAS EN JUNTA CONSTRUCTIVA PARA POSTERIORMENTE COLOCAR TAPAJUNTAS DE PVC DE 2\" Y 10CM DE ANCHO O UNA JUNTA CONSTRUCTIVA A BASE DE NIEVE SECA (POLIESTIRENO) DE 2\" DE ESPESOR EN FACHADA FRONTAL Y TRASERA, INCLUYE MATERIALES, MANO DE OBRA, LIMPIEZA, CARGA Y ACARREOS DENTRO Y FUERA DE LA OBRA Y TODO LO NECESARIO PARA SU CORRECTA EJECUCIÓN.","ML",4680,null,131414.39999999999]
[null,"Concepto","ACA-05","ESP-AC13","   APLANADO ZARPEADO EN MUROS INTERIORES A UNA ALTURA DE 2.50 MT, Y REGLA CON 1.0 CM DE ESPESOR PROMEDIO CON MORTERO-ARENA 1:5  INCLUYE  INCLUYE, MATERIALES, MANO DE OBRA, LIMPIEZA, CARGA Y ACARREO DE MATERIAL DENTRO Y FUERA DE OBRA Y TODO LO NECESARIO PARA SU CORRECTA EJECUCIÓN.","M2",11323,null,660357.36]
[null,"Concepto","ACA-06.","ESP-AC14","   SUMINISTRO Y APLICACIÓN DE PINTURA VINÍLICA EN FACHADA PRINCIPAL A DOS MANOS, INCLUYE 1 MANO DE SELLADOR 5x1, 2 MANOS DE PINTURA,  LIMPIEZA DE REBABAS, SE SELLARAN TODAS LAS FISURAS EN LOS APLANADOS Y JUNTAS CONSTRUCTIVAS CON RESINA EPOXICA O SIMILAR PREVIO A LA COLOCACIÓN DEL SELLADOR, CARGA Y ACARREOS DENTRO Y FUERA DE LA OBRA, LIMPIEZA DEL ÁREA DE TRABAJO INCLUYENDO PUERTAS Y VENTANAS Y TODO LO NECESARIO PARA SU CORRECTA EJECUCIÓN.","M2",1902,null,68472]
[null,"Concepto","ACA-07","ESP-AC14","   SUMINISTRO Y APLICACIÓN DE PINTURA VINÍLICA EN MUROS  INTERIORES (LA HABITACION PEQUEÑA SERA DE COLOR ROSA) Y PLAFON (TOTAL DE LA VIVIENDA) A DOS MANOS, INCLUYE 1 MANO DE SELLADOR 5x1, 2 MANOS DE PINTURA, LIMPIEZA DE REBABAS, SE SELLARAN TODAS LAS FISURAS EN LOS APLANADOS Y JUNTAS CONSTRUCTIVAS CON RESINA EPOXICA O SIMILAR PREVIO A LA COLOCACIÓN DEL SELLADOR, CARGA Y ACARREOS DENTRO Y FUERA DE LA OBRA, LIMPIEZA DEL ÁREA DE TRABAJO INCLUYENDO PUERTAS Y VENTANAS Y TODO LO NECESARIO PARA SU CORRECTA EJECUCIÓN.","M2",15824,null,569664]
[null,"Concepto","ACA-08","ESP-AC14","   SUMINISTRO Y APLICACIÓN DE PINTURA VINÍLICA EN EXTERIORES ( EN FACHADA POSTERIOR Y LATERALES ) A DOS MANOS, INCLUYE 1 MANO DE SELLADOR 5x1, 2 MANOS DE PINTURA, LIMPIEZA DE REBABAS, SE SELLARAN TODAS LAS FISURAS EN LOS APLANADOS Y JUNTAS CONSTRUCTIVAS CON RESINA EPOXICA O SIMILAR PREVIO A LA COLOCACIÓN DEL SELLADOR, CARGA Y ACARREOS DENTRO Y FUERA DE LA OBRA, LIMPIEZA DEL ÁREA DE TRABAJO INCLUYENDO PUERTAS Y VENTANAS Y TODO LO NECESARIO PARA SU CORRECTA EJECUCIÓN.","M2",5548,null,199728]
[null,"Concepto","ACA-09","ESP-AC03","   APLANADO DE PLAFOND A UNA CAPA CON MORTERO CG:C:P EN PROPORCION 1:18:9 DE 0.50 CM. DE ESPESOR PROMEDIO A PLOMO Y REGLA : INCLUYE ANDAMIOS, PERFILACIONES, MANO DE OBRA Y QUIPO.","M2",4501,null,189042]
["+","Capítulo",5,null,"INSTALACIÓN HIDRO-SANITARIA",null,null,null,"1'567,190.50"]
[null,"Concepto","INS-01","ESP-IHS01","   SALIDA HIDRÁULICA SEGÚN PROYECTO POR MUEBLE (2-REGADERA, 1-W.C., 1-LAVABO, 1-TARJA, 1-LAVADERO, 1-TINACO, ) A BASE DE POLIPROPILENO LÍNEA ECOPLUS, TUBO-PLUS, CPVC Y/O SIMILAR COLOCACIÓN DE JARRO DE AIRE EN LA SALIDA DEL TINACO, INCLUYE, LIMPIEZA, CARGA Y ACARREO DENTRO Y FUERA DE LA OBRA, MANO DE OBRA, RANURADO, RESANES DE ALBAÑILERÍA, PRUEBA HIDROSTÁTICA, Y TODO LO NECESARIO PARA EL CORRECTO FUNCIONAMIENTO DEL MUEBLE.","SAL",600,null,118752]
[null,"Concepto","INS-02","ESP-IHS01","   SALIDA  SANITARIA DE PVC CON DIÁMETRO SEGÚN EL MUEBLE QUE INDIQUE EL PROYECTO (REGADERA, W.C., LAVABO, TARJA, LAVADERO) INCLUYE LIMPIEZA, CARGA Y ACARREO DENTRO Y FUERA DE LA OBRA DE MATERIALES, MANO DE OBRA, RANURADO, RESANES DE ALBAÑILERÍA, PRUEBA SANITARIA, TODO LO NECESARIO PARA EL CORRECTO FUNCIONAMIENTO DEL MUEBLE.","SAL",500,null,151910]
[null,"Concepto","INS-03",null,"   SUMINISTRO Y COLOCACIÓN DE TUBO DE PVC SANITARIO CON CAMPANA DE 100 MM (4\") O LO QUE INDIQUE EL PROYECTO PARA CONEXIÓN DE REGISTRO DE DESCARGA DOMICILIARIA, JUNTEADO DICHA CONEXIÓN AL REGISTRO CON MORTERO PARA EVITAR FILTRACIONES INCLUYE EXCAVACIÓN, CAMA DE ARENA, TENDIDO, ACOSTILLADO, RELLENO COMPACTADO Y NIVELACIÓN, CARGA Y ACARREO DENTRO Y FUERA DE LA OBRA, MATERIALES, MANO DE OBRA, PRUEBA SANITARIA Y TODO LO NECESARIO PARA EL CORRECTO FUNCIONAMIENTO DE LA DESCARGA.","ML",1050,null,56311.5]
[null,"Concepto","INS-04",null,"   SUMINISTRO, COLOCACIÓN Y CONEXIÓN DEL DISPARO DEL CUADRO DE MEDICIÓN HASTA LA CONEXIÓN AL TINACO, CON POLIDUCTO RD DE POLIPROPILENO LÍNEA ECOPLUS, TUBO-PLUS, CPVC Y/O SIMILAR Y TUBERÍA RÍGIDA DE 19 MM INCLUYE EXCAVACIÓN, TENDIDO, RELLENO, COMPACTACIÓN Y NIVELACIÓN, MATERIALES, MANO DE OBRA Y TODO LO NECESARIO PARA SU CORRECTO FUNCIONAMIENTO.","ML",1500,null,78735]
[null,"Concepto","INS-05","ESP-IHS03","   SUMINISTRO Y COLOCACIÓN DE WC LÍNEA ECONÓMICA COLOR BLANCO DE GRADO ECOLOGICO MAXIMO 5 LTS., INCLUYE HERRAJES DE CONEXIÓN Y FUNCIONAMIENTO, JUNTAS SILICÓN, PRUEBA SANITARIA, SELLO DE CEMENTO GRIS EN SU BASE, LIMPIEZA, CARGA Y ACARREO DENTRO Y FUERA DE LA OBRA Y TODO LO NECESARIO PARA SU CORRECTA COLOCACIÓN Y FUNCIONAMIENTO.","PZA",100,null,75536]
[null,"Concepto","INS-06","ESP-IHS04","   SUMINISTRO Y COLOCACIÓN DE LAVABO LÍNEA ECONÓMICA COLOR BLANCO, INCLUYE LLAVE MEZCLADORA METÁLICA CROMADA CON DISPOSITIVO AHORRADOR DE AGUA, CESPOL DE PLÁSTICO RÍGIDO, CONTRAREJILLA, SOPORTES, SELLO ENTRE EL CONTACTO DEL LAVABO CON EL MURO A BASE DE SILICÓN TRANSPARENTE, LIMPIEZA, PRUEBA HIDROSANITARIA, CARGA Y ACARREO DE MATERIAL DENTRO Y FUERA DE LA OBRA Y TODO LO NECESARIO PARA SU CORRECTO FUNCIONAMIENTO.","PZA",100,null,68281]
[null,"Concepto","INS-07","ESP-IHS05","   SUMINISTRO Y COLOCACIÓN DE REGADERA CON DISPOSITIVO AHORRADOR DE AGUA INTEGRADO, LLAVES COLOCADAS HOSIZONTALMENTE, MANERALES Y CHAPETONES LÍNEA ECONÓMICA, METÁLICOS CROMADOS, INCLUYE, LIMPIEZA, CARGA, ACARREO DE MATERIALES DENTRO Y FUERA DE LA OBRA, PRUEBA HIDRÁULICA Y TODO LO NECESARIO PARA SU CORRECTO FUNCIONAMIENTO.","PZA",100,null,25536]
[null,"Concepto","INS-08","ESP-IHS08","   SUMINISTRO Y COLOCACIÓN DE LAVADERO CON TINA Y TALLADOR, AMACIZADO CON MORTERO-ARENA 1:5 INCLUYE ANCLAS, SOPORTE A BASE DE BLOCK NORMAL CON MEDIDAS DE 12*20*40, DE 80CM DE ALTURA, LLAVE DE NARIZ, PRUEBA HIDROSANITARIA, LIMPIEZA, CARGA Y ACARREO DENTRO Y FUERA DE LA OBRA Y TODO LO NECESARIO PARA SU CORRECTO FUNCIONAMIENTO.","PZA",100,null,42042]
[null,"Concepto","INS-09",null,"   SUMINISTRO Y COLOCACIÓN DE BOTE CESPOL CON COLADERA CROMADA DE 4\" PARA REGADERA DEL BAÑO FIJÁNDOLA CON MORTERO CEMENTO-ARENA 1:4, INCLUYE LIMPIEZA, CARGA, ACARREO DE MATERIAL DENTRO Y FUERA DE OBRA Y TODO LO NECESARIO PARA SU CORRECTO FUNCIONAMIENTO.","PZA",100,null,5416]
[null,"Concepto","INS-10","ESP-IHS07","   SUMINISTRO Y COLOCACIÓN DE TINACO DE POLIETILENO DE 450 LTS COLOR NEGRO MARCA ROTOPLAS O SIMILAR, INCLUYE, TAPA ROSCADA, VÁLVULA DE GLOBO ROSCADA (DE PASO), VARILLA FLOTADOR, LIMPIEZA, CARGA Y ACARREO DENTRO Y FUERA DE LA OBRA Y TODO LO NECESARIO PARA SU CORRECTA COLOCACIÓN Y FUNCIONAMIENTO.","PZA",100,null,143192]
[null,"Concepto","INS-11",null,"   SUMINISTRO Y COLOCACIÓN DE TARJA CON TINA, INCLUYE, SUMINISTRO Y COLOCACION, LIMPIEZA, CARGA Y ACARREO DENTRO Y FUERA DE LA OBRA Y TODO LO NECESARIO PARA SU CORRECTA COLOCACIÓN Y FUNCIONAMIENTO.","PZA",100,null,73528]
[null,"Concepto","INS-12",null,"   SUMINISTRO Y COLOCACION DE SISTEMA DE CAPTACION DE AGUA PLUVIAL CONECTADA A CISTERNA, INCLUYE: TUBERIA DE PVC 4 PULG CANALETA DE PVC, VALVULA CHECK, BOMBA DE 5 HP PRUEBAS DE BOMBEO DE CISTERNA A TINACO, MATERIAL, MANO DE OBRA, HERRAMIENTA, EQUIPO Y TODO LO NECESARIO PARA SU CORRECTO FUNCIONAMENTO.","LTE",100,null,245568]
["+","Capítulo",6,null,"INSTALACIÓN ELÉCTRICA",null,null,null,814855]
[null,"Concepto","ELEC-01",null,"   SALIDA PARA ACOMETIDA ELÉCTRICA ADOSADA EN EL EXTERIOR DEL MURO DEL EDIFICIO CON COLOCACIÓN DE CENTRO DE CARGA QO-2, CON INTERRUPTOR TERMOMAGNÉTICO DE 15 AMP, INCLUYE MATERIALES, ACARREOS, MANO DE OBRA, LIMPIEZA Y TODOS LOS ACCESORIOS Y MATERIALES NECESARIOS PARA SU CORRECTA COLOCACIÓN.","LTE",100,null,121712]
[null,"Concepto","ELEC-02",null,"   SUMINISTRO E INSTALACIÓN DE SALIDA DE CENTRO Y/O ARBOTANTE DONDE INDIQUE EL PROYECTO, DEJANDO UNA PREPARACION PARA FUTUROS CRECIMIENTOS EN VOLADIZO DE LOSA DE COCINA, INCLUYE POLIDUCTO NARANJA REFORZADO, CAJA GALVANIZADA, CABLE No.14, SOQUET DE PLÁSTICO O DE PORCELANA, RANURADO, RESANE DE ALBAÑILERÍA, PRUEBA ELÉCTRICA, LIMPIEZA, MANO DE OBRA, Y TODO LO NECESARIO PARA SU CORRECTA INSTALACIÓN Y FUNCIONAMIENTO.","SAL",900,null,250767]
[null,"Concepto","ELEC-03","ESP-IE03","   SUMINISTRO E INSTALACIÓN DE SALIDA DE APAGADOR DONDE INDIQUE EL PROYECTO, INCLUYE POLIDUCTO NARANJA REFORZADO, CAJA GALVANIZADA, CABLE No.14, PLACA DE PLÁSTICO MARCA QUINZIÑO O SIMILAR, RANURADO, RESANE DE ALBAÑILERÍA, PRUEBA ELÉCTRICA, LIMPIEZA, MANO DE OBRA, Y TODO LO NECESARIO PARA SU CORRECTA INSTALACIÓN Y FUNCIONAMIENTO.","SAL",900,null,201465]
[null,"Concepto","ELEC-04","ESP-IE02","   SUMINISTRO E INSTALACIÓN DE SALIDA DE CONTACTO DONDE INDIQUE EL PROYECTO, INCLUYE POLIDUCTO NARANJA REFORZADO, CAJA GALVANIZADA, CABLE No.12, PLACA DE PLÁSTICO MARCA QUINZIÑO O SIMILAR, RANURADO, RESANE DE ALBAÑILERÍA, PRUEBA ELÉCTRICA, LIMPIEZA, MANO DE OBRA, Y TODO LO NECESARIO PARA SU CORRECTA INSTALACIÓN Y FUNCIONAMIENTO.","SAL",800,null,188720]
[null,"Concepto","ELEC-05","ESP-IE06","   SUMINISTRO Y COLOCACION DE FOCOS AHORRADORES DE 13 WATTS, INCLUYE CARGA, COLOCACION Y ACARREO DENTRO Y FUERA DE LA OBRA","PZA",900,null,52191]
["+","Capítulo",7,null,"CANCELERIA",null,null,null,997120]
[null,"Concepto","CAN-01","ESP-PV01","   SUMINISTRO Y COLOCACIÓN DE PUERTA DE ACCESO A LA VIVIENDA, PREFABRICADA MULTIPANEL MIXTA ESTAMPADA (6 TABLEROS) PARA EXTERIORES, DE 0.90 X 2.10 MTS O LA COTA FINAL QUE INDIQUE LA DIRECCIÓN DE LA OBRA, LINEA VALSA O SIMILAR, COLOR BLANCO OSTIÓN, INCLUYE, MARCO METÁLICO DE MEDIO CAJÓN CON PROTECCIÓN DE PRAIMER Y ACABADO A DOS MANOS DE ESMALTE EN COLOR BLANCO, CHAPA METÁLICA CON CERRADURA, 3 BISAGRAS LATONADAS, SELLADO CON ACRILASTIC EN AMBAS CARAS, LIMPIEZA, CARGA Y DESCARGA DE MATERIAL DENTRO Y FUERA DE LA OBRA Y TODO LO NECESARIO PARA SU CORRECTA COLOCACIÓN Y FUNCIONAMIENTO.","PZA",100,null,160461]
[null,"Concepto","CAN-02","ESP-PV06","   SUMINISTRO Y COLOCACIÓN DE PUERTA TRASERA A LA VIVIENDA PREFABRICADA MULTIPANEL LISA PARA EXTERIORES, DE 0.90 x 2.10M O LA COTA FINAL QUE INDIQUE LA DIRECCION DE LA OBRA, LINEA VALSA O SIMILAR, COLOR BLANCO OSTIÓN, INCLUYE, MARCO METÁLICO DE MEDIO CAJÓN CON PROTECCIÓN DE PRAIMER Y ACABADO A DOS MANOS DE ESMALTE EN COLOR BLANCO, CHAPA METÁLICA CON CERRADURA, 3 BISAGRAS LATONADAS, SELLADO CON ACRILASTIC EN AMBAS CARAS, LIMPIEZA, CARGA Y DESCARGA DE MATERIAL DENTRO Y FUERA DE LA OBRA Y TODO LO NECESARIO PARA SU CORRECTA COLOCACIÓN Y FUNCIONAMIENTO.","PZA",100,null,122692]
[null,"Concepto","CAN-03","ESP-PV02","   SUMINISTRO Y COLOCACIÓN DE PUERTA DE RECAMARA DE MADERA DE TAMBOR DE 0.80 X 2.10 MTS. BASTIDOR DE MADERA, ACABADO EN COLOR BLANCO OSTION LÍNEA RETIVALSA O SIMILAR, INCLUYE MARCO METÁLICO DE MEDIO CAJÓN CON PROTECCIÓN DE PRAIMER Y ACABADO A DOS MANOS DE ESMALTE EN COLOR BLANCO, CHAPA METÁLICA ACABADO COLOR SATINADO O LATON CON CERRADURA, 3 BISAGRAS DE LIBRO LATONADAS, SELLADO CON ACRILASTIC EN AMBAS CARAS, LIMPIEZA, CARGA, ACARREO DE MATERIAL DENTRO Y FUERA DE LA OBRA Y TODO LO NECESARIO PARA SU CORRECTO FUNCIONAMIENTO.","PZA",200,null,271894]
[null,"Concepto","CAN-04",null,"   SUMINISTRO Y COLOCACIÓN DE PUERTA DE BAÑO PREFABRICADA MULTIPANEL METALICA LISA DE 0.70 X 2.10 MTS. O LA COTA FINAL QUE INDIQUE LA DIRECCION DE LA OBRA  LINEA VALSA O SIMILAR, COLOR BLANCO OSTIÓN, INCLUYE MARCO METÁLICO DE MEDIO CAJÓN CON PROTECCIÓN DE PRAIMER Y ACABADO A DOS MANOS DE ESMALTE EN COLOR BLANCO, CHAPA METÁLICA ACABADO COLOR SATINADO O LATON CON SEGURO, 3 BISAGRAS DE LIBRO LATONADAS, SELLADO CON ACRILASTIC EN AMBAS CARAS, LIMPIEZA, CARGA, ACARREO DE MATERIAL DENTRO Y FUERA DE LA OBRA Y TODO LO NECESARIO PARA SU CORRECTO FUNCIONAMIENTO.","PZA",100,null,92470]
[null,"Concepto","CAN-05","ESP-PV04","   SUMINISTRO Y COLOCACIÓN DE VENTANA PARA SALA, RECAMARA Y USOS MÚLTIPLES, DE 1.20 x 1.20 M. CON CELOSIA INTEGRADA DE ALUMINIO LÍNEA 1-1/2\" ANODIZADO NATURAL, CON VIDRIO CLARO DE 3MM, JALADERA, CARRETILLAS, APLICACIÓN DE SELLO CON ACRILASTIC EN AMBAS CARAS, LIMPIEZA, CARGA Y ACARREO DE MATERIAL DENTRO Y FUERA DE OBRA Y TODO LO NECESARIO PARA SU CORRECTO FUNCIONAMIENTO.","PZA",400,null,293000]
[null,"Concepto","CAN-06","ESP-PV05","   SUMINISTRO Y COLOCACIÓN DE VENTANA PARA SALA, RECAMARA Y USOS MÚLTIPLES, DE 0.40 x 0.60 M. CON CELOSIA INTEGRADA DE ALUMINIO LÍNEA 1-1/2\" ANODIZADO NATURAL, CON VIDRIO CLARO DE 3MM, JALADERA, CARRETILLAS, APLICACIÓN DE SELLO CON ACRILASTIC EN AMBAS CARAS, LIMPIEZA, CARGA Y ACARREO DE MATERIAL DENTRO Y FUERA DE OBRA Y TODO LO NECESARIO PARA SU CORRECTO FUNCIONAMIENTO.","PZA",100,null,56603]
["+","Capítulo",9,null,"LIMPIEZA",null,null,null,53610.48]
[null,"Concepto","LIM-01",null,"   LIMPIEZA FINAL, INCLUYE CARGA,  ACARREO DENTRO Y FUERA DE LA OBRA, DURANTE EL PROCESO LO REQUIERA EN VARIAS ETAPAS.","M2",5544,null,53610.48]

{"sheet":"Hoja6","index":12,"n_rows":55,"n_cols":8,"rows_kept":55,"cut":false,"hidden":true,"merged":[]}
["Subcapítulo","-","1.-","   LOSA DE CIMENTACION",null,null,null,714.72]
["Concepto",null,"PRE-01","      TRAZO Y NIVELACIÓN EN PLATAFORMA, PARA LA UBICACIÓN DE EJES, Y PERÍMETROS  DE LA LOSA DE CIMENTACIÓN, TRAZO DE DESPLANTE DE MUROS Y LOCALIZACIÓN DE CASTILLO INCLUYE MATERIALES, MANO DE OBRA Y TODO LO NECESARIO PARA SU CORRECTA EJECUCIÓN.","M2",52.25,12.48,652.08000000000004]
["Concepto",null,"PRE-02","      EXCAVACIÓN CON PALA DERECHA A MANO EN PLATAFORMA MEJORADA, INCLUYE AFINE DE TALUDES Y FONDO, PARA ALOJAR CIMENTACIÓN PROFUNDA DE 0.00 A 2.00 M INCLUYE LIMPIEZA Y ACARREOS DENTRO,  FUERA DE LA OBRA.","M3",0.46,136.18,62.64]
["Subcapítulo","-","2.-","   ESTRUCTURAS",null,null,null,101521.41]
["Concepto",null,"EST-01","      LOSA DE CIMENTACIÓN DE CONCRETO ARMADO DE 12 CM. DE ESPESOR, A BASE DE CONCRETO F'C=200 KG/CM2  CON AGREGADO MÁXIMO DE 38 MM HECHO EN OBRA O PREMEZCLADO, REFORZADO CON MALLA DE ACERO ELECTROSOLDADA CORRUGADA 6-6/8-8  Y CADENAS CON ARMEX 12x20 CM REFORZADAS CON  UN TRASLAPE MÍNIMO DE 10 CMS. EN LA MALLA Y 20 CMS EN EL ARMEX, CON BASTONES DE  VARILLAS DE 3/8\"  SEPARADAS SEGÚN PROYECTO E INCLUYE ARREGLO EN CHAROLA PARA BAÑO (PREPARACIÓN PARA RECIBIR LA INSTALACIÓN HIDROSANITARIA) HABILITADO, TRASLAPES, CIMBRA, DESCIMBRA, COLADO, VIBRADO POR MEDIOS MECANICOS, ACABADO LISO PULIDO, CURADO POR ASPERSIÓN, COLOCACIÓN DE POLIETILENO CAL. 600 EN TODA LA SUPERFICIE QUE ABARQUE EL ARMADO DE ACERO, PRUEBAS DE LABORATORIO, INCLUYE MATERIALES, MANO DE OBRA, LIMPIEZA, CARGA Y ACARREOS DENTRO Y FUERA DE LA OBRA, Y TODO LO NECESARIO PARA SU CORRECTA EJECUCIÓN Y CONSTRUCCIÓN.","M2",45.06,587.69000000000005,26481.31]
["Concepto",null,"EST-02","       IMPERMEABILIZACIÓN EN LA LOSA DE CIMENTACIÓN ENTRE EL DESPLANTE DE LOS MUROS, CON EMULSIÓN ASFÁLTICA EMULCOAT O SIMILAR REBAJADA AL 50% CON  UNA CAPA DE 5MM DE ESPESOR, INCLUYE MATERIALES, MANO DE OBRA, ACARREOS Y TODO LO NECESARIO PARA SU CORRECTA INSTALACIÓN.","ml",39.979999999999997,31.59,1262.97]
["Concepto",null,"EST-03.","      MURO A PLOMO  HASTA  UNA  ALTURA  DE  2.55  MT,  DE  BLOCK  NORMAL DE CONCRETO CON RESISTENCIA MÍNIMA DE 50 KG/CM2 CON DIMENSIONES 12x20x40, ASENTADO CON MORTERO CEMENTO-ARENA 1:5, CON ACABADO APARENTE AMBAS CARAS CON JUNTA VACÍA O BOLEADA, INCLUYE LECHO SUPERIOR DE VANOS DE PUERTAS INTERIORES Y EXTERIORES, ASÍ COMO VENTANAS, SOSTENIDOS CON CADENAS INTERMEDIAS, CARGA Y ACARREO DE MATERIAL DENTRO Y FUERA DE LA OBRA, PRUEBAS DE LABORATORIO AL BLOCK Y MORTERO, MANO DE OBRA Y TODO LO NECESARIO PARA SU CORRECTA EJECUCIÓN Y CONSTRUCCIÓN.ARA SU CORRECTA EJECUCIÓN Y CONSTRUCCIÓN.","M2",86.36,316.68,27348.48]
["Concepto",null,"EST-04","      CASTILLO CON SECCIÓN 12 X 12 CM DE CONCRETO CON RESISTENCIA F'C 150 KG/CM2 AGREGADO MÁXIMO 19 MM EL CONCRETO SERÁ HECHO EN OBRA O PREMEZCLADO REFORZADO CON ARMEX 08x08-4 , UNICAMENTE HASTA LA LOSA MACIZA DEL ENTREPISO CON RECUBRIMIENTO MÍNIMO DE 1 CM PROMEDIO, EL ANCLAJE DE LOS CASTILLOS DEBERÁ SER DE 30CM HACIA LA CIMENTACIÓN Y HACIA LA LOSA DE AZOTEA, ACABADO APARENTE,  INCLUYE HABILITADO, TRASLAPES DE ACERO, COLADO, VIBRADO, MATERIAL , MANO DE OBRA, LIMPIEZA CARGA Y ACARREO DENTRO Y FUERA DE LA OBRA Y TODO LO NECESARIO PARA SU CORRECTA EJECUCIÓN Y CONSTRUCCIÓN.","Ml",44.36,171.31,7599.31]
["Concepto",null,"EST-05","      DALA DE CERRAMIENTO DE CONCRETO HECHO EN OBRA FC=150 KG/CM2, Y ARMADURA PREFABRICADA DE ARMEX 08*16/4,  INCLUYE: MATERIAL, HERRAMIENTA,MANO DE OBRA Y TODO LO NECESARIO PARA SU CORRECTA EJECUCION.","Ml",53.67,213.57,11462.3]
["Concepto",null,"EST-06","      LOSA DE AZOTEA A BASE DE VIGUETA 12-3 Y CASETON DE POLIESTIRENO, CON UNA CAPA DE COMPRESION  CON CONCRETO F'c=200 KG/CM2 DE 4 CM2 DE ESPESOR Y ACERO DE REFUERZO CON MALLA ELECTROSOLDADA 6*6-10/10;  INCLUYE CIMBRA COMUN,   INC. ARMADO, COLADO, DESCIMBRADO, HERRAMIENTA Y MANO DE OBRA.","M2",46.56,587.78,27367.040000000001]
["Subcapítulo","-","3.-","   ALBAÑILERIA",null,null,null,10710.71]
["Concepto",null,"ALB-01.","      PRETIL DE 20 CM DE ALTURA A PLOMO Y NIVEL, DE BLOCK NORMAL DE CONCRETO O SIMILAR CON RESISTENCIA MÍNIMA DE 50 K/CM2 CON DIMENSIONES 12 20 40, ACABADO COMÚN, CON APLANADO FINO MÍNIMO DE 1CM DE ESPESOR EN LAS TRES CARAS, ASENTADO CON MORTERO CEMENTO-ARENA 1:5 INCLUYE MATERIALES, MANO DE OBRA, LIMPIEZA, CARGA Y  ACARREO DENTRO Y FUERA DE LA OBRA Y TODO LO NECESARIO PARA SU CORRECTA EJECUCIÓN Y CONSTRUCCIÓN.","ML",7.76,383.58,2976.58]
["Concepto",null,"ALB-02.","      BASE PARA TINACO A PLOMO Y NIVEL EN FORMA DE CRUZ A UNA ALTURA DE 1.50 MT TERMINADA DEL NIVEL DE LA CEBOLLA DE LA REGADERA, CON MURETES DE BLOCK NORMAL DE CONCRETO O SIMILAR CON RESISTENCIA MÍNIMA DE 50 K/CM2 CON DIMENSIONES 12 20 40 CM DE ESPESOR, ASENTADO CON MORTERO-ARENA 1:5 INCLUYE UN  CASTILLO DE REFUERZO AHOGADO EN EL EJE CENTRAL DEL ELEMENTO, EL DIÁMETRO DE LA LOSA ES DE 1.0M DE FORMA CIRCULAR CON 8CM DE ESPESOR REFORZADA CON MALLA ELECTROSOLDADA 6x6 10/10 CORRUGADA CON CONCRETO ARMADO F´C 200 KG/CM2 AGREGADO MÁXIMO 19 MM HECHO EN OBRA O PREMEZCLADO, EL ACABADO DE LA BASE ES FINO A BASE DE MORTERO CEMENTO-ARENA 1:6 Y APARENTE PARA LA LOSA, INCLUYE MATERIALES, HABILITADO DE ACERO, TRASLAPES, CIMBRA, DESCIMBRA, COLADO, VIBRADO, CURADO POR ASPERSIÓN, MANO DE OBRA, LIMPIEZA, CARGA Y ACARREO DENTRO Y FUERA DE LA OBRA Y TODO LO NECESARIO PARA SU CORRECTA EJECUCIÓN Y CONSTRUCCIÓN.","PZA",1,884.4,884.4]
["Concepto",null,"ALB-03","      CHAFLÁN DE 7x7 CM. DE MORTERO-ARENA 1:5 COLOCADO EN TODO EL PERÍMETRO DEL PRETIL Y DE LA BASE PARA EL TINACO Y/O DOMO EN CASO DE EXISTIR, INCLUYE MATERIAL, CARGA, ACARREO DENTRO Y FUERA DE LA OBRA, LIMPIEZA, MANO DE OBRA Y TODO LO NECESARIO PARA SU CORRECTA EJECUCIÓN Y CONSTRUCCIÓN.","ML",25.62,63.41,1624.56]
["Concepto",null,"ALB-04","      SUMINISTRO Y APLICACIÓN DE IMPERMEABILIZACIÓN EN LOSA DE AZOTEA A BASE DE UNA CAPA DE PRIMARIO Y APLICACIÓN DE 2 CAPAS DE BITUFLEX O ACRÍLICO ELASTOMERICO (ACRITÓN) PARA TRES AÑOS O SIMILAR CON LA COLOCACION DE IMPERMEABILIZANTE PREFABRICADO SOLDABLE EN LA JUNTA CONSTRUCTIVA A TODO LO LARGO Y UNA VUELTA DE 5CM EN LOS EXTREMOS, CON REFUERZO DE UNA CAPA DE MEMBRANA TRASLAPADA 10 CM, SE SELLARAN TODAS LAS FISURAS EN LA LOSA Y JUNTAS CONSTRUCTIVAS CON RESINA EPOXICA O SIMILAR PREVIO A LA COLOCACIÓN DEL PRIMARIO, COMO TERMINADO SE APLICARA UNA CAPA DE COLOR TERRACOTA Ò SI SE APLICA MATERIAL ACRÍLICO COLOR BLANCO PREFERENTEMENTE, INCLUYE MATERIAL, ACARREOS, MANO DE OBRA Y TODO LO NECESARIO PARA SU CORRECTA EJECUCIÓN.","M2",48.76,78.489999999999995,3827.17]
["Concepto",null,"ALB-05","       REGISTRO SANITARIO A PLOMO Y NIVEL CON MEDIDAS INTERIORES 40x60 CM CON LA PROFUNDIDAD QUE INDIQUE EL PROYECTO DE DESCARGA SANITARIA, ELABORADO A BASE  DE BLOCK NORMAL DE CONCRETO O SIMILAR CON RESISTENCIA MINIMA DE 50 KG/CM2 CON DIMENSIONES 12x20x40cm DE ESPESOR JUNTEADO CON MORTERO CEMENTO-ARENA 1:5 INCLUYE EXCAVACIÓN, NIVELACIÓN, PLANTILLA DE 3CM DE ESPESOR A BASE DE MORTERO CEMENTO ARENA 1:6, RECIBIR INSTALACIONES,  FORMACIÓN DE MEDIA CAÑA CON CONCRETO AL FONDO DEL MISMO, TAPA PARA REGISTRO CON MEDIDAS DE 48X68 CMS, DE 5.00 CMS. DE ESPESOR CON CONCRETO F'c=150 KG/CM2, R.N., AGREGADO MÁXIMO DE 3/4\", CON MARCO Y CONTRAMARCO METÁLICO DE SOLERA DE 1 1/2\"X1/8\", ARMADO CON ALAMBRÓN No2 (1/4\"), OREJA, ACABADO INTERIOR PULIDO, MANO DE OBRA, LIMPIEZA, CARGA Y ACARREO DENTRO Y FUERA DE LA OBRA Y TODO LO NECESARIO PARA SU CORRECTA EJECUCIÓN Y CONSTRUCCIÓN.","PZA",1,1075.96,1075.96]
["Concepto",null,"ALB-06","      COLOCACION DE HUELLA DE ACCESO A BASE DE CONCRETO CON RESISTENCIA F'C 100 KG/CM2 AGREGADO MÁXIMO 19 MM EL CONCRETO SERÁ HECHO EN OBRA O PREMEZCLADO DE 8 CM DE ESPESOR Y MEDIDAS 1.0 X 1.0 M, LEVE PENDIENTE DE 5MM HACIA AFUERA, INCLUYE CIMBRA, DESCIMBRA, ESCOBILLADO EN SENTIDO PERPENDICULAR A LA PUERTA Y RODAPIE EN LAS ORILLAS, MATERIALES, MANO DE OBRA, LIMPIEZA, CARGA Y ACARREO DE MATERIAL DENTRO Y FUERA DE OBRA Y TODO LO NECESARIO PARA SU CORRECTA EJECUCIÓN.","PZA",1,322.04000000000002,322.04000000000002]
["Subcapítulo","-","4.-","   ACABADOS",null,null,null,35716.22]
["Concepto",null,"ACA-01","      APLANADO FINO EN FACHADA PRINCIPAL CON 1.5 CM DE ESPESOR PROMEDIO CON MORTERO CEMENTO-ARENA 1:5 INCLUYE REPELLADO GRUESO (DEJANDO EL TIEMPO NECESARIO DE FRAGUADO NECESARIO PARA EVITAR LA CONTRACCIÓN DEL MATERIAL), INCLUYE: PERFILADO DE ARISTAS Y BOQUILLAS EN PUERTAS Y/O VENTANAS, RETIRO DE REBABA FINA Y PICADO EN ELEMENTOS ESTRUCTURALES ANTES DE SU APLICACIÓN, MATERIAL, MANO DE OBRA Y TODO LO NECESARIO PARA SU CORRECTA EJECUCIÓN.","m2",19.27,116.26,2240.33]
["Concepto",null,"ACA-02","      APLANADO ZARPEADO EN MUROS EXTERIORES ( MURO TRASERO ) A UNA ALTURA DE 2.60 MT, Y REGLA CON 1.0 CM DE ESPESOR PROMEDIO CON MORTERO-ARENA 1:5  INCLUYE  INCLUYE, MATERIALES, MANO DE OBRA, LIMPIEZA, CARGA Y ACARREO DE MATERIAL DENTRO Y FUERA DE OBRA Y TODO LO NECESARIO PARA SU CORRECTA EJECUCIÓN.","m2",21.8,103.22,2250.1999999999998]
["Concepto",null,"ACA-03","      APLANADO ZARPEADO EN MUROS EXTERIORES ( MUROS LATERALES ) A UNA ALTURA DE 2.80 MT, Y REGLA CON 1.0 CM DE ESPESOR PROMEDIO CON MORTERO-ARENA 1:5  INCLUYE  INCLUYE, MATERIALES, MANO DE OBRA, LIMPIEZA, CARGA Y ACARREO DE MATERIAL DENTRO Y FUERA DE OBRA Y TODO LO NECESARIO PARA SU CORRECTA EJECUCIÓN.","m2",35.369999999999997,103.22,3650.89]
["Concepto",null,"ACA-04","      EMBOQUILLADO EN PUERTAS Y VENTANAS CON MORTERO CEMENTO-ARENA 1:5, DE 1 CM. DE ESPESOR PROMEDIO, PERFILADO DEL VANO DEL ELEMENTO, INCLUYE EMBOQUILLADO DE ARISTAS EN JUNTA CONSTRUCTIVA PARA POSTERIORMENTE COLOCAR TAPAJUNTAS DE PVC DE 2\" Y 10CM DE ANCHO O UNA JUNTA CONSTRUCTIVA A BASE DE NIEVE SECA (POLIESTIRENO) DE 2\" DE ESPESOR EN FACHADA FRONTAL Y TRASERA, INCLUYE MATERIALES, MANO DE OBRA, LIMPIEZA, CARGA Y ACARREOS DENTRO Y FUERA DE LA OBRA Y TODO LO NECESARIO PARA SU CORRECTA EJECUCIÓN.","ML",57.48,51.89,2982.64]
["Concepto",null,"ACA-05","      APLANADO ZARPEADO EN MUROS INTERIORES A UNA ALTURA DE 2.50 MT, Y REGLA CON 1.0 CM DE ESPESOR PROMEDIO CON MORTERO-ARENA 1:5  INCLUYE  INCLUYE, MATERIALES, MANO DE OBRA, LIMPIEZA, CARGA Y ACARREO DE MATERIAL DENTRO Y FUERA DE OBRA Y TODO LO NECESARIO PARA SU CORRECTA EJECUCIÓN.","m2",119.96,103.22,12382.27]
["Concepto",null,"ACA-06.","      SUMINISTRO Y APLICACIÓN DE PINTURA VINÍLICA EN FACHADA PRINCIPAL A DOS MANOS, INCLUYE 1 MANO DE SELLADOR 5x1, 2 MANOS DE PINTURA,  LIMPIEZA DE REBABAS, SE SELLARAN TODAS LAS FISURAS EN LOS APLANADOS Y JUNTAS CONSTRUCTIVAS CON RESINA EPOXICA O SIMILAR PREVIO A LA COLOCACIÓN DEL SELLADOR, CARGA Y ACARREOS DENTRO Y FUERA DE LA OBRA, LIMPIEZA DEL ÁREA DE TRABAJO INCLUYENDO PUERTAS Y VENTANAS Y TODO LO NECESARIO PARA SU CORRECTA EJECUCIÓN.","M2",19.27,33.18,639.38]
["Concepto",null,"ACA-07","      SUMINISTRO Y APLICACIÓN DE PINTURA VINÍLICA EN MUROS  INTERIORES (LA HABITACION PEQUEÑA SERA DE COLOR ROSA) Y PLAFON (TOTAL DE LA VIVIENDA) A DOS MANOS, INCLUYE 1 MANO DE SELLADOR 5x1, 2 MANOS DE PINTURA, LIMPIEZA DE REBABAS, SE SELLARAN TODAS LAS FISURAS EN LOS APLANADOS Y JUNTAS CONSTRUCTIVAS CON RESINA EPOXICA O SIMILAR PREVIO A LA COLOCACIÓN DEL SELLADOR, CARGA Y ACARREOS DENTRO Y FUERA DE LA OBRA, LIMPIEZA DEL ÁREA DE TRABAJO INCLUYENDO PUERTAS Y VENTANAS Y TODO LO NECESARIO PARA SU CORRECTA EJECUCIÓN.","M2",161.69999999999999,33.18,5365.21]
["Concepto",null,"ACA-08","      SUMINISTRO Y APLICACIÓN DE PINTURA VINÍLICA EN EXTERIORES ( EN FACHADA POSTERIOR Y LATERALES ) A DOS MANOS, INCLUYE 1 MANO DE SELLADOR 5x1, 2 MANOS DE PINTURA, LIMPIEZA DE REBABAS, SE SELLARAN TODAS LAS FISURAS EN LOS APLANADOS Y JUNTAS CONSTRUCTIVAS CON RESINA EPOXICA O SIMILAR PREVIO A LA COLOCACIÓN DEL SELLADOR, CARGA Y ACARREOS DENTRO Y FUERA DE LA OBRA, LIMPIEZA DEL ÁREA DE TRABAJO INCLUYENDO PUERTAS Y VENTANAS Y TODO LO NECESARIO PARA SU CORRECTA EJECUCIÓN.","M2",57.17,33.18,1896.9]
["Concepto",null,"ACA-09","      APLANADO DE PLAFOND A UNA CAPA CON MORTERO CG:C:P EN PROPORCION 1:18:9 DE 0.50 CM. DE ESPESOR PROMEDIO A PLOMO Y REGLA : INCLUYE ANDAMIOS, PERFILACIONES, MANO DE OBRA Y QUIPO.","M2",41.74,103.22,4308.3999999999996]
["Subcapítulo","-","5.-","    INSTALACIÓN HIDRO-SANITARIA",null,null,null,19251.689999999999]
["Concepto",null,"INS-01","      SALIDA HIDRÁULICA SEGÚN PROYECTO POR MUEBLE (2-REGADERA, 1-W.C., 1-LAVABO, 1-TARJA, 1-LAVADERO, 1-TINACO, ) A BASE DE POLIPROPILENO LÍNEA ECOPLUS, TUBO-PLUS, CPVC Y/O SIMILAR COLOCACIÓN DE JARRO DE AIRE EN LA SALIDA DEL TINACO, INCLUYE, LIMPIEZA, CARGA Y ACARREO DENTRO Y FUERA DE LA OBRA, MANO DE OBRA, RANURADO, RESANES DE ALBAÑILERÍA, PRUEBA HIDROSTÁTICA, Y TODO LO NECESARIO PARA EL CORRECTO FUNCIONAMIENTO DEL MUEBLE.","SAL",6,544.66999999999996,3268.02]
["Concepto",null,"INS-02","      SALIDA  SANITARIA DE PVC CON DIÁMETRO SEGÚN EL MUEBLE QUE INDIQUE EL PROYECTO (REGADERA, W.C., LAVABO, TARJA, LAVADERO) INCLUYE LIMPIEZA, CARGA Y ACARREO DENTRO Y FUERA DE LA OBRA DE MATERIALES, MANO DE OBRA, RANURADO, RESANES DE ALBAÑILERÍA, PRUEBA SANITARIA, TODO LO NECESARIO PARA EL CORRECTO FUNCIONAMIENTO DEL MUEBLE.","SAL",5,525.58000000000004,2627.9]
["Concepto",null,"INS-03","      SUMINISTRO Y COLOCACIÓN DE TUBO DE PVC SANITARIO CON CAMPANA DE 100 MM (4\") O LO QUE INDIQUE EL PROYECTO PARA CONEXIÓN DE REGISTRO DE DESCARGA DOMICILIARIA, JUNTEADO DICHA CONEXIÓN AL REGISTRO CON MORTERO PARA EVITAR FILTRACIONES INCLUYE EXCAVACIÓN, CAMA DE ARENA, TENDIDO, ACOSTILLADO, RELLENO COMPACTADO Y NIVELACIÓN, CARGA Y ACARREO DENTRO Y FUERA DE LA OBRA, MATERIALES, MANO DE OBRA, PRUEBA SANITARIA Y TODO LO NECESARIO PARA EL CORRECTO FUNCIONAMIENTO DE LA DESCARGA.","ML",10.5,75.349999999999994,791.18]
["Concepto",null,"INS-04","      SUMINISTRO, COLOCACIÓN Y CONEXIÓN DEL DISPARO DEL CUADRO DE MEDICIÓN HASTA LA CONEXIÓN AL TINACO, CON POLIDUCTO RD DE POLIPROPILENO LÍNEA ECOPLUS, TUBO-PLUS, CPVC Y/O SIMILAR Y TUBERÍA RÍGIDA DE 19 MM INCLUYE EXCAVACIÓN, TENDIDO, RELLENO, COMPACTACIÓN Y NIVELACIÓN, MATERIALES, MANO DE OBRA Y TODO LO NECESARIO PARA SU CORRECTO FUNCIONAMIENTO.","ML",15,26.01,390.15]
["Concepto",null,"INS-05","      SUMINISTRO Y COLOCACIÓN DE WC LÍNEA ECONÓMICA COLOR BLANCO DE GRADO ECOLOGICO MAXIMO 5 LTS., INCLUYE HERRAJES DE CONEXIÓN Y FUNCIONAMIENTO, JUNTAS SILICÓN, PRUEBA SANITARIA, SELLO DE CEMENTO GRIS EN SU BASE, LIMPIEZA, CARGA Y ACARREO DENTRO Y FUERA DE LA OBRA Y TODO LO NECESARIO PARA SU CORRECTA COLOCACIÓN Y FUNCIONAMIENTO.","PZA",1,1716.37,1716.37]
["Concepto",null,"INS-06","      SUMINISTRO Y COLOCACIÓN DE LAVABO LÍNEA ECONÓMICA COLOR BLANCO, INCLUYE LLAVE MEZCLADORA METÁLICA CROMADA CON DISPOSITIVO AHORRADOR DE AGUA, CESPOL DE PLÁSTICO RÍGIDO, CONTRAREJILLA, SOPORTES, SELLO ENTRE EL CONTACTO DEL LAVABO CON EL MURO A BASE DE SILICÓN TRANSPARENTE, LIMPIEZA, PRUEBA HIDROSANITARIA, CARGA Y ACARREO DE MATERIAL DENTRO Y FUERA DE LA OBRA Y TODO LO NECESARIO PARA SU CORRECTO FUNCIONAMIENTO.","PZA",1,2042.26,2042.26]
["Concepto",null,"INS-07","      SUMINISTRO Y COLOCACIÓN DE REGADERA CON DISPOSITIVO AHORRADOR DE AGUA INTEGRADO, LLAVES COLOCADAS HOSIZONTALMENTE, MANERALES Y CHAPETONES LÍNEA ECONÓMICA, METÁLICOS CROMADOS, INCLUYE, LIMPIEZA, CARGA, ACARREO DE MATERIALES DENTRO Y FUERA DE LA OBRA, PRUEBA HIDRÁULICA Y TODO LO NECESARIO PARA SU CORRECTO FUNCIONAMIENTO.","PZA",1,178.03,178.03]
["Concepto",null,"INS-08","      SUMINISTRO Y COLOCACIÓN DE LAVADERO CON TINA Y TALLADOR, AMACIZADO CON MORTERO-ARENA 1:5 INCLUYE ANCLAS, SOPORTE A BASE DE BLOCK NORMAL CON MEDIDAS DE 12*20*40, DE 80CM DE ALTURA, LLAVE DE NARIZ, PRUEBA HIDROSANITARIA, LIMPIEZA, CARGA Y ACARREO DENTRO Y FUERA DE LA OBRA Y TODO LO NECESARIO PARA SU CORRECTO FUNCIONAMIENTO.","PZA",1,1761.05,1761.05]
["Concepto",null,"INS-09","      SUMINISTRO Y COLOCACIÓN DE BOTE CESPOL CON COLADERA CROMADA DE 4\" PARA REGADERA DEL BAÑO FIJÁNDOLA CON MORTERO CEMENTO-ARENA 1:4, INCLUYE LIMPIEZA, CARGA, ACARREO DE MATERIAL DENTRO Y FUERA DE OBRA Y TODO LO NECESARIO PARA SU CORRECTO FUNCIONAMIENTO.","PZA",1,231.9,231.9]
["Concepto",null,"INS-10","      SUMINISTRO Y COLOCACIÓN DE TINACO DE POLIETILENO DE 450 LTS COLOR NEGRO MARCA ROTOPLAS O SIMILAR, INCLUYE, TAPA ROSCADA, VÁLVULA DE GLOBO ROSCADA (DE PASO), VARILLA FLOTADOR, LIMPIEZA, CARGA Y ACARREO DENTRO Y FUERA DE LA OBRA Y TODO LO NECESARIO PARA SU CORRECTA COLOCACIÓN Y FUNCIONAMIENTO.","PZA",1,3016.21,3016.21]
["Concepto",null,"INS-11","      SUMINISTRO Y COLOCACIÓN DE TARJA CON TINA, INCLUYE, SUMINISTRO Y COLOCACION, LIMPIEZA, CARGA Y ACARREO DENTRO Y FUERA DE LA OBRA Y TODO LO NECESARIO PARA SU CORRECTA COLOCACIÓN Y FUNCIONAMIENTO.","PZA",1,1259.04,1259.04]
["Concepto",null,"INS-12","      SUMINISTRO Y COLOCACION DE SISTEMA DE CAPTACION DE AGUA PLUVIAL CONECTADA A CISTERNA, INCLUYE: TUBERIA DE PVC 4 PULG CANALETA DE PVC, VALVULA CHECK, BOMBA DE .5 HP PRUEBAS DE BOMBEO DE CISTERNA A TINACO, MATERIAL, MANO DE OBRA, HERRAMIENTA, EQUIPO Y TODO LO NECESARIO PARA SU CORRECTO FUNCIONAMENTO.","PZA",1,1969.58,1969.58]
["Subcapítulo","-","6.-","    INSTALACIÓN ELÉCTRICA",null,null,null,12442.78]
["Concepto",null,"ELEC-01","      SALIDA PARA ACOMETIDA ELÉCTRICA ADOSADA EN EL EXTERIOR DEL MURO DEL EDIFICIO CON COLOCACIÓN DE CENTRO DE CARGA QO-2, CON INTERRUPTOR TERMOMAGNÉTICO DE 15 AMP, INCLUYE MATERIALES, ACARREOS, MANO DE OBRA, LIMPIEZA Y TODOS LOS ACCESORIOS Y MATERIALES NECESARIOS PARA SU CORRECTA COLOCACIÓN.","PZA",1,1030.46,1030.46]
["Concepto",null,"ELEC-02","      SUMINISTRO E INSTALACIÓN DE SALIDA DE CENTRO Y/O ARBOTANTE DONDE INDIQUE EL PROYECTO, DEJANDO UNA PREPARACION PARA FUTUROS CRECIMIENTOS EN VOLADIZO DE LOSA DE COCINA, INCLUYE POLIDUCTO NARANJA REFORZADO, CAJA GALVANIZADA, CABLE No.14, SOQUET DE PLÁSTICO O DE PORCELANA, RANURADO, RESANE DE ALBAÑILERÍA, PRUEBA ELÉCTRICA, LIMPIEZA, MANO DE OBRA, Y TODO LO NECESARIO PARA SU CORRECTA INSTALACIÓN Y FUNCIONAMIENTO.","Sal",8,545.14,4361.12]
["Concepto",null,"ELEC-03","      SUMINISTRO E INSTALACIÓN DE SALIDA DE APAGADOR DONDE INDIQUE EL PROYECTO, INCLUYE POLIDUCTO NARANJA REFORZADO, CAJA GALVANIZADA, CABLE No.14, PLACA DE PLÁSTICO MARCA QUINZIÑO O SIMILAR, RANURADO, RESANE DE ALBAÑILERÍA, PRUEBA ELÉCTRICA, LIMPIEZA, MANO DE OBRA, Y TODO LO NECESARIO PARA SU CORRECTA INSTALACIÓN Y FUNCIONAMIENTO.","Sal",8,439.53,3516.24]
["Concepto",null,"ELEC-04","      SUMINISTRO E INSTALACIÓN DE SALIDA DE CONTACTO DONDE INDIQUE EL PROYECTO, INCLUYE POLIDUCTO NARANJA REFORZADO, CAJA GALVANIZADA, CABLE No.12, PLACA DE PLÁSTICO MARCA QUINZIÑO O SIMILAR, RANURADO, RESANE DE ALBAÑILERÍA, PRUEBA ELÉCTRICA, LIMPIEZA, MANO DE OBRA, Y TODO LO NECESARIO PARA SU CORRECTA INSTALACIÓN Y FUNCIONAMIENTO.","Sal",8,380.09,3040.72]
["Concepto",null,"ELEC-05","      SUMINISTRO Y COLOCACION DE FOCOS AHORRADORES DE 13 WATTS, INCLUYE CARGA, COLOCACION Y ACARREO DENTRO Y FUERA DE LA OBRA","Pza",8,61.78,494.24]
["Subcapítulo","-","7.-","   CANCELERIA",null,null,null,17993.52]
["Concepto",null,"CAN-01","      SUMINISTRO Y COLOCACIÓN DE PUERTA DE ACCESO A LA VIVIENDA, PREFABRICADA MULTIPANEL MIXTA ESTAMPADA (6 TABLEROS) PARA EXTERIORES, DE 0.90 X 2.10 MTS O LA COTA FINAL QUE INDIQUE LA DIRECCIÓN DE LA OBRA, LINEA VALSA O SIMILAR, COLOR BLANCO OSTIÓN, INCLUYE, MARCO METÁLICO DE MEDIO CAJÓN CON PROTECCIÓN DE PRAIMER Y ACABADO A DOS MANOS DE ESMAPZA EN COLOR BLANCO, CHAPA METÁLICA CON CERRADURA, 3 BISAGRAS LATONADAS, SELLADO CON ACRILASTIC EN AMBAS CARAS, LIMPIEZA, CARGA Y DESCARGA DE MATERIAL DENTRO Y FUERA DE LA OBRA Y TODO LO NECESARIO PARA SU CORRECTA COLOCACIÓN Y FUNCIONAMIENTO.","Pza",1,3094.55,3094.55]
["Concepto",null,"CAN-02","      SUMINISTRO Y COLOCACIÓN DE PUERTA TRASERA A LA VIVIENDA PREFABRICADA MULTIPANEL LISA PARA EXTERIORES, DE 0.90 x 2.10M O LA COTA FINAL QUE INDIQUE LA DIRECCION DE LA OBRA, LINEA VALSA O SIMILAR, COLOR BLANCO OSTIÓN, INCLUYE, MARCO METÁLICO DE MEDIO CAJÓN CON PROTECCIÓN DE PRAIMER Y ACABADO A DOS MANOS DE ESMAPZA EN COLOR BLANCO, CHAPA METÁLICA CON CERRADURA, 3 BISAGRAS LATONADAS, SELLADO CON ACRILASTIC EN AMBAS CARAS, LIMPIEZA, CARGA Y DESCARGA DE MATERIAL DENTRO Y FUERA DE LA OBRA Y TODO LO NECESARIO PARA SU CORRECTA COLOCACIÓN Y FUNCIONAMIENTO.","Pza",1,3094.55,3094.55]
["Concepto",null,"CAN-03","      SUMINISTRO Y COLOCACIÓN DE PUERTA DE RECAMARA DE MADERA DE TAMBOR DE 0.80 X 2.10 MTS. BASTIDOR DE MADERA, ACABADO EN COLOR BLANCO OSTION LÍNEA RETIVALSA O SIMILAR, INCLUYE MARCO METÁLICO DE MEDIO CAJÓN CON PROTECCIÓN DE PRAIMER Y ACABADO A DOS MANOS DE ESMAPZA EN COLOR BLANCO, CHAPA METÁLICA ACABADO COLOR SATINADO O LATON CON CERRADURA, 3 BISAGRAS DE LIBRO LATONADAS, SELLADO CON ACRILASTIC EN AMBAS CARAS, LIMPIEZA, CARGA, ACARREO DE MATERIAL DENTRO Y FUERA DE LA OBRA Y TODO LO NECESARIO PARA SU CORRECTO FUNCIONAMIENTO.","Pza",2,1737.43,3474.86]
["Concepto",null,"CAN-04","      SUMINISTRO Y COLOCACIÓN DE PUERTA DE BAÑO PREFABRICADA MULTIPANEL METALICA LISA DE 0.70 X 2.10 MTS. O LA COTA FINAL QUE INDIQUE LA DIRECCION DE LA OBRA  LINEA VALSA O SIMILAR, COLOR BLANCO OSTIÓN, INCLUYE MARCO METÁLICO DE MEDIO CAJÓN CON PROTECCIÓN DE PRAIMER Y ACABADO A DOS MANOS DE ESMAPZA EN COLOR BLANCO, CHAPA METÁLICA ACABADO COLOR SATINADO O LATON CON SEGURO, 3 BISAGRAS DE LIBRO LATONADAS, SELLADO CON ACRILASTIC EN AMBAS CARAS, LIMPIEZA, CARGA, ACARREO DE MATERIAL DENTRO Y FUERA DE LA OBRA Y TODO LO NECESARIO PARA SU CORRECTO FUNCIONAMIENTO.","Pza",1,2334.52,2334.52]
["Concepto",null,"CAN-05","      SUMINISTRO Y COLOCACIÓN DE VENTANA PARA SALA, RECAMARA Y USOS MÚLTIPLES, DE 1.20 x 1.20 M. CON CELOSIA INTEGRADA DE ALUMINIO LÍNEA 1-1/2\" ANODIZADO NATURAL, CON VIDRIO CLARO DE 3MM, JALADERA, CARRETILLAS, APLICACIÓN DE SELLO CON ACRILASTIC EN AMBAS CARAS, LIMPIEZA, CARGA Y ACARREO DE MATERIAL DENTRO Y FUERA DE OBRA Y TODO LO NECESARIO PARA SU CORRECTO FUNCIONAMIENTO.","Pza",4,1276.3699999999999,5105.4799999999996]
["Concepto",null,"CAN-06","      SUMINISTRO Y COLOCACIÓN DE VENTANA PARA SALA, RECAMARA Y USOS MÚLTIPLES, DE 0.40 x 0.60 M. CON CELOSIA INTEGRADA DE ALUMINIO LÍNEA 1-1/2\" ANODIZADO NATURAL, CON VIDRIO CLARO DE 3MM, JALADERA, CARRETILLAS, APLICACIÓN DE SELLO CON ACRILASTIC EN AMBAS CARAS, LIMPIEZA, CARGA Y ACARREO DE MATERIAL DENTRO Y FUERA DE OBRA Y TODO LO NECESARIO PARA SU CORRECTO FUNCIONAMIENTO.","Pza",1,889.56,889.56]
["Subcapítulo","-","9.-","   LIMPIEZA",null,null,null,648.95000000000005]
["Concepto",null,"LIM-01","      LIMPIEZA FINAL, INCLUYE CARGA,  ACARREO DENTRO Y FUERA DE LA OBRA, DURANTE EL PROCESO LO REQUIERA EN VARIAS ETAPAS.","M2",52.25,12.42,648.95000000000005]